﻿Directorate,Service,Division,Responsible Unit,Expense Type,Payment Date,Trans No,Net Amount,Supplier Name
Adults Services,Adults Services,Adults Services,Adults Services,General,03/05/16,Payment Card,549.98,currys online
Adults Services,Adult Social Care,Physical Support - adults (18-64),Older People Commissioning,Social Care - Residential Care,04/05/2016,3643263,"2,010.90",Redacted Section 40 FOI Act
Adults Services,Adult Social Care,Physical Support - adults (18-64),Older People Commissioning,Social Care - Residential Care,04/05/2016,3634603,"1,286.16",ANCHOR TRUST HOMES ACCOUNT
Adults Services,Adult Social Care,Physical Support - adults (18-64),Older People Commissioning,Social Care - Homecare,04/05/2016,3645135,639.00,AQUAFLO CARE LTD
Adults Services,Adult Social Care,Physical Support - adults (18-64),Older People Commissioning,Social Care - Homecare,04/05/2016,3645136,683.33,AQUAFLO CARE LTD
Adults Services,Adult Social Care,Physical Support - adults (18-64),Older People Commissioning,Social Care - Homecare,04/05/2016,3645137,"1,831.80",AQUAFLO CARE LTD
Adults Services,Adult Social Care,Physical Support - adults (18-64),Older People Commissioning,Social Care - Homecare,04/05/2016,3645138,"1,959.60",AQUAFLO CARE LTD
Adults Services,Adult Social Care,Physical Support - adults (18-64),Learning Dis Commissioning,Social Care - Homecare,04/05/2016,3645143,795.20,AQUAFLO CARE LTD
Adults Services,Adult Social Care,Physical Support - adults (18-64),Physical Dis Commissioning,Social Care - Homecare,04/05/2016,3645133,710.00,AQUAFLO CARE LTD
Adults Services,Adult Social Care,Physical Support - adults (18-64),Physical Dis Commissioning,Social Care - Homecare,04/05/2016,3645134,770.32,AQUAFLO CARE LTD
Adults Services,Adult Social Care,Physical Support - adults (18-64),Older People Commissioning,Social Care - Homecare,04/05/2016,3644982,519.00,ATHLONE CARE LTD
Adults Services,Adult Social Care,Physical Support - adults (18-64),Older People Commissioning,Social Care - Homecare,04/05/2016,3645002,612.67,ATHLONE CARE LTD
Adults Services,Adult Social Care,Physical Support - adults (18-64),Older People Commissioning,Social Care - Nursing Care,04/05/2016,3642472,559.20,BARCHESTER HEALTHCARE
Adults Services,Adult Social Care,Physical Support - adults (18-64),Older People Commissioning,Social Care - Nursing Care,04/05/2016,3642476,"2,348.57",BARCHESTER HEALTHCARE
Adults Services,Adult Social Care,Physical Support - adults (18-64),Older People Commissioning,Social Care - Nursing Care,04/05/2016,3642478,"2,348.57",BARCHESTER HEALTHCARE
Adults Services,Adult Social Care,Physical Support - adults (18-64),Older People Commissioning,Social Care - Nursing Care,04/05/2016,3642481,"2,627.14",BARCHESTER HEALTHCARE
Adults Services,Adult Social Care,Physical Support - adults (18-64),Older People Commissioning,Social Care - Nursing Care,04/05/2016,3642482,"3,162.86",BARCHESTER HEALTHCARE
Adults Services,Adult Social Care,Physical Support - adults (18-64),Older People Commissioning,Social Care - Residential Care,04/05/2016,3640192,"1,157.14",BARCHESTER HEALTHCARE
Adults Services,Adult Social Care,Physical Support - adults (18-64),Older People Commissioning,Social Care - Residential Care,04/05/2016,3642473,"2,507.14",BARCHESTER HEALTHCARE
Adults Services,Adult Social Care,Physical Support - adults (18-64),Older People Commissioning,Social Care - Residential Care,04/05/2016,3642474,"2,705.36",BARCHESTER HEALTHCARE
Adults Services,Adult Social Care,Physical Support - adults (18-64),Older People Commissioning,Social Care - Residential Care,04/05/2016,3642475,"2,400.00",BARCHESTER HEALTHCARE
Adults Services,Adult Social Care,Physical Support - adults (18-64),Older People Commissioning,Social Care - Residential Care,04/05/2016,3642477,"2,250.00",BARCHESTER HEALTHCARE
Adults Services,Adult Social Care,Physical Support - adults (18-64),Older People Commissioning,Social Care - Residential Care,04/05/2016,3642477,-541.29,BARCHESTER HEALTHCARE
Adults Services,Adult Social Care,Physical Support - adults (18-64),Older People Commissioning,Social Care - Residential Care,04/05/2016,3642479,"2,707.50",BARCHESTER HEALTHCARE
Adults Services,Adult Social Care,Physical Support - adults (18-64),Physical Dis Commissioning,Social Care - Nursing Care,04/05/2016,3642480,"3,792.86",BARCHESTER HEALTHCARE
Adults Services,Adult Social Care,Support with Memory and Cognition - adults (18-64),Integration Project,Social Care - Nursing Care,04/05/2016,3644667,"8,318.87",Barts Health NHS Trust
Adults Services,Adult Social Care,Support with Memory and Cognition - adults (18-64),Integration Project,Social Care - Nursing Care,04/05/2016,3644677,"8,284.02",Barts Health NHS Trust
Adults Services,Adult Social Care,Physical Support - adults (18-64),Learning Dis Commissioning,Social Care - Help to Live at Home,04/05/2016,3644963,"1,500.00",BAXTER HOUSE SUPPORTED LIVING PROJECT
Adults Services,Adult Social Care,Physical Support - adults (18-64),Older People Commissioning,Social Care - Homecare,04/05/2016,3645231,"1,664.56",Bluebird Care (Rother&Hastings)
Adults Services,Adult Social Care,Physical Support - adults (18-64),Older People Commissioning,Social Care - Homecare,04/05/2016,3645232,"1,934.00",Bluebird Care (Rother&Hastings)
Adults Services,Adult Social Care,Physical Support - adults (18-64),Older People Commissioning,Social Care - Residential Care,04/05/2016,3643526,"3,642.86",CARE UK COMMUNITY PARTNERSHIPS LTD
Adults Services,Adult Social Care,Physical Support - adults (18-64),Older People Commissioning,Social Care - Residential Care,04/05/2016,3643526,-541.29,CARE UK COMMUNITY PARTNERSHIPS LTD
Adults Services,Adult Social Care,Physical Support - adults (18-64),Older People Commissioning,Social Care - Nursing Care,04/05/2016,3643378,"3,119.10",Catchpole Court Care Home
Adults Services,Adult Social Care,Physical Support - adults (18-64),Learning Dis Commissioning,Social Care - Help to Live at Home,04/05/2016,3633012,"5,311.68",Church House
Adults Services,Adult Social Care,Physical Support - adults (18-64),Learning Dis Commissioning,Social Care - Help to Live at Home,04/05/2016,3633013,"5,678.00",Church House
Adults Services,Adult Social Care,Physical Support - adults (18-64),Mental Health Commissioning,Social Care - Prevention & Support,04/05/2016,3645016,"1,470.00",City Inn Express Limited
Adults Services,Adult Social Care,Physical Support - adults (18-64),Learning Dis Commissioning,Social Care - Prevention & Support,04/05/2016,3645275,"3,050.00",CITY VIEW HOTEL LTD
Adults Services,Adult Social Care,Physical Support - adults (18-64),Physical Dis Commissioning,Social Care - Prevention & Support,04/05/2016,3645228,"1,705.00",CITY VIEW HOTEL LTD
Adults Services,Adult Social Care,Physical Support - adults (18-64),Physical Dis Commissioning,Social Care - Prevention & Support,04/05/2016,3645229,"1,736.00",CITY VIEW HOTEL LTD
Adults Services,Adult Social Care,Physical Support - adults (18-64),Physical Dis Commissioning,Social Care - Prevention & Support,04/05/2016,3645230,"1,680.00",CITY VIEW HOTEL LTD
Adults Services,Adult Social Care,Physical Support - adults (18-64),Older People Commissioning,Social Care - Extra Care Sheltered Housing,04/05/2016,3645164,"56,424.16",Creative Support
Adults Services,Adult Social Care,Physical Support - adults (18-64),Older People Commissioning,Social Care - Extra Care Sheltered Housing,04/05/2016,3645165,"26,706.76",Creative Support
Adults Services,Adult Social Care,Physical Support - adults (18-64),Older People Commissioning,Social Care - Extra Care Sheltered Housing,04/05/2016,3645166,"26,706.76",Creative Support
Adults Services,Adult Social Care,Physical Support - adults (18-64),Older People Commissioning,Social Care - Extra Care Sheltered Housing,04/05/2016,3645167,"26,706.76",Creative Support
Adults Services,Adult Social Care,Physical Support - adults (18-64),Older People Commissioning,Social Care - Extra Care Sheltered Housing,04/05/2016,3645168,"26,706.76",Creative Support
Adults Services,Adult Social Care,Physical Support - adults (18-64),Older People Commissioning,Social Care - Extra Care Sheltered Housing,04/05/2016,3645170,941.20,Creative Support
Adults Services,Adult Social Care,Physical Support - adults (18-64),Older People Commissioning,Social Care - Extra Care Sheltered Housing,04/05/2016,3645177,"27,248.91",Creative Support
Adults Services,Adult Social Care,Physical Support - adults (18-64),Older People Commissioning,Social Care - Extra Care Sheltered Housing,04/05/2016,3645178,"27,248.91",Creative Support
Adults Services,Adult Social Care,Physical Support - adults (18-64),Older People Commissioning,Social Care - Extra Care Sheltered Housing,04/05/2016,3645179,"27,248.91",Creative Support
Adults Services,Adult Social Care,Physical Support - adults (18-64),Older People Commissioning,Social Care - Extra Care Sheltered Housing,04/05/2016,3645180,"27,248.91",Creative Support
Adults Services,Adult Social Care,Physical Support - adults (18-64),Older People Commissioning,Social Care - Extra Care Sheltered Housing,04/05/2016,3645181,"-1,000.00",Creative Support
Adults Services,Adult Social Care,Physical Support - adults (18-64),Older People Commissioning,Social Care - Extra Care Sheltered Housing,04/05/2016,3645182,"7,296.89",Creative Support
Adults Services,Adult Social Care,Physical Support - adults (18-64),Older People Commissioning,Social Care - Extra Care Sheltered Housing,04/05/2016,3645183,739.50,Creative Support
Adults Services,Adult Social Care,Physical Support - adults (18-64),Older People Commissioning,Social Care - Extra Care Sheltered Housing,04/05/2016,3645184,"4,018.89",Creative Support
Adults Services,Adult Social Care,Physical Support - adults (18-64),Older People Commissioning,Social Care - Extra Care Sheltered Housing,04/05/2016,3645185,739.50,Creative Support
Adults Services,Adult Social Care,Physical Support - adults (18-64),Older People Commissioning,Social Care - Extra Care Sheltered Housing,04/05/2016,3645186,"-12,986.00",Creative Support
Adults Services,Adult Social Care,Physical Support - adults (18-64),Older People Commissioning,Social Care - Extra Care Sheltered Housing,04/05/2016,3645187,"-12,986.00",Creative Support
Adults Services,Adult Social Care,Physical Support - adults (18-64),Older People Commissioning,Social Care - Extra Care Sheltered Housing,04/05/2016,3645188,"-12,986.00",Creative Support
Adults Services,Adult Social Care,Physical Support - adults (18-64),Older People Commissioning,Social Care - Extra Care Sheltered Housing,04/05/2016,3645189,"-12,986.00",Creative Support
Adults Services,Adult Social Care,Physical Support - adults (18-64),Older People Commissioning,Social Care - Extra Care Sheltered Housing,04/05/2016,3645190,"-12,986.00",Creative Support
Adults Services,Adult Social Care,Physical Support - adults (18-64),Older People Commissioning,Social Care - Extra Care Sheltered Housing,04/05/2016,3645191,"-12,986.00",Creative Support
Adults Services,Adult Social Care,Physical Support - adults (18-64),Older People Commissioning,Social Care - Extra Care Sheltered Housing,04/05/2016,3645192,"-12,986.00",Creative Support
Adults Services,Adult Social Care,Physical Support - adults (18-64),Older People Commissioning,Social Care - Extra Care Sheltered Housing,04/05/2016,3645193,"-12,986.00",Creative Support
Adults Services,Adult Social Care,Physical Support - adults (18-64),Older People Commissioning,Social Care - Extra Care Sheltered Housing,04/05/2016,3645194,"56,424.16",Creative Support
Adults Services,Adult Social Care,Physical Support - adults (18-64),Older People Commissioning,Social Care - Extra Care Sheltered Housing,04/05/2016,3645195,739.50,Creative Support
Adults Services,Adult Social Care,Physical Support - adults (18-64),Older People Commissioning,Social Care - Extra Care Sheltered Housing,04/05/2016,3645196,"7,913.44",Creative Support
Adults Services,Adult Social Care,Physical Support - adults (18-64),Older People Commissioning,Social Care - Extra Care Sheltered Housing,04/05/2016,3645197,"27,570.99",Creative Support
Adults Services,Adult Social Care,Physical Support - adults (18-64),Older People Commissioning,Social Care - Extra Care Sheltered Housing,04/05/2016,3645198,"27,570.99",Creative Support
Adults Services,Adult Social Care,Physical Support - adults (18-64),Older People Commissioning,Social Care - Extra Care Sheltered Housing,04/05/2016,3645199,"27,570.99",Creative Support
Adults Services,Adult Social Care,Physical Support - adults (18-64),Older People Commissioning,Social Care - Extra Care Sheltered Housing,04/05/2016,3645200,"27,570.99",Creative Support
Adults Services,Adult Social Care,Physical Support - adults (18-64),Older People Commissioning,Social Care - Extra Care Sheltered Housing,04/05/2016,3645201,933.97,Creative Support
Adults Services,Adult Social Care,Physical Support - adults (18-64),Older People Commissioning,Social Care - Extra Care Sheltered Housing,04/05/2016,3645202,"1,355.90",Creative Support
Adults Services,Adult Social Care,Physical Support - adults (18-64),Older People Commissioning,Social Care - Extra Care Sheltered Housing,04/05/2016,3645205,"-12,986.00",Creative Support
Adults Services,Adult Social Care,Physical Support - adults (18-64),Older People Commissioning,Social Care - Extra Care Sheltered Housing,04/05/2016,3645206,"-12,986.00",Creative Support
Adults Services,Adult Social Care,Physical Support - adults (18-64),Older People Commissioning,Social Care - Extra Care Sheltered Housing,04/05/2016,3645207,"-12,986.00",Creative Support
Adults Services,Adult Social Care,Physical Support - adults (18-64),Older People Commissioning,Social Care - Extra Care Sheltered Housing,04/05/2016,3645208,"-12,986.00",Creative Support
Adults Services,Adult Social Care,Physical Support - adults (18-64),Older People Commissioning,Social Care - Extra Care Sheltered Housing,04/05/2016,3645209,"56,424.16",Creative Support
Adults Services,Adult Social Care,Physical Support - adults (18-64),Older People Commissioning,Social Care - Extra Care Sheltered Housing,04/05/2016,3645210,"5,508.49",Creative Support
Adults Services,Adult Social Care,Physical Support - adults (18-64),Older People Commissioning,Social Care - Extra Care Sheltered Housing,04/05/2016,3645211,739.50,Creative Support
Adults Services,Adult Social Care,Physical Support - adults (18-64),Older People Commissioning,Social Care - Extra Care Sheltered Housing,04/05/2016,3645212,962.92,Creative Support
Adults Services,Adult Social Care,Physical Support - adults (18-64),Older People Commissioning,Social Care - Extra Care Sheltered Housing,04/05/2016,3645213,781.92,Creative Support
Adults Services,Adult Social Care,Physical Support - adults (18-64),Older People Commissioning,Social Care - Extra Care Sheltered Housing,04/05/2016,3645215,"56,424.16",Creative Support
Adults Services,Adult Social Care,Physical Support - adults (18-64),Older People Commissioning,Social Care - Extra Care Sheltered Housing,04/05/2016,3645216,"4,942.62",Creative Support
Adults Services,Adult Social Care,Physical Support - adults (18-64),Older People Commissioning,Social Care - Extra Care Sheltered Housing,04/05/2016,3645217,739.50,Creative Support
Adults Services,Adult Social Care,Physical Support - adults (18-64),Older People Commissioning,Social Care - Extra Care Sheltered Housing,04/05/2016,3645218,"1,621.76",Creative Support
Adults Services,Adult Social Care,Physical Support - adults (18-64),Older People Commissioning,Social Care - Extra Care Sheltered Housing,04/05/2016,3645220,527.80,Creative Support
Adults Services,Adult Social Care,Physical Support - adults (18-64),Older People Commissioning,Social Care - Extra Care Sheltered Housing,04/05/2016,3645221,"27,425.97",Creative Support
Adults Services,Adult Social Care,Physical Support - adults (18-64),Older People Commissioning,Social Care - Extra Care Sheltered Housing,04/05/2016,3645222,"27,425.97",Creative Support
Adults Services,Adult Social Care,Physical Support - adults (18-64),Older People Commissioning,Social Care - Extra Care Sheltered Housing,04/05/2016,3645223,"27,425.97",Creative Support
Adults Services,Adult Social Care,Physical Support - adults (18-64),Older People Commissioning,Social Care - Extra Care Sheltered Housing,04/05/2016,3645224,"27,425.97",Creative Support
Adults Services,Adult Social Care,Physical Support - adults (18-64),Older People Commissioning,Social Care - Extra Care Sheltered Housing,04/05/2016,3645225,"56,424.16",Creative Support
Adults Services,Adult Social Care,Service Strategy,Commissioning & Strategy M&A,Services - Professional Fees - Consultants Fees,04/05/2016,3630820,"4,000.00",CS Works
Adults Services,Adult Social Care,Physical Support - adults (18-64),Strategic Commissioning,Social Care - MSG Lunch Clubs,04/05/2016,3645277,"1,333.33",EAST LONDON CHINESE COMMUNITY CENTRE
Adults Services,Adult Social Care,Physical Support - adults (18-64),Strategic Commissioning,Social Care - MSG Lunch Clubs,04/05/2016,3645278,"1,333.33",EAST LONDON CHINESE COMMUNITY CENTRE
Adults Services,Adult Social Care,Physical Support - adults (18-64),Older People Commissioning,Social Care - Homecare,04/05/2016,3645043,983.46,Excelcare (Home Care Division) LTD
Adults Services,Adult Social Care,Physical Support - adults (18-64),Older People Commissioning,Social Care - Homecare,04/05/2016,3645051,"1,126.10",Excelcare (Home Care Division) LTD
Adults Services,Adult Social Care,Physical Support - adults (18-64),Older People Commissioning,Social Care - Homecare,04/05/2016,3645067,726.82,Excelcare (Home Care Division) LTD
Adults Services,Adult Social Care,Physical Support - adults (18-64),Older People Commissioning,Social Care - Homecare,04/05/2016,3645070,705.48,Excelcare (Home Care Division) LTD
Adults Services,Adult Social Care,Physical Support - adults (18-64),Older People Commissioning,Social Care - Homecare,04/05/2016,3645071,"1,040.68",Excelcare (Home Care Division) LTD
Adults Services,Adult Social Care,Physical Support - adults (18-64),Older People Commissioning,Social Care - Homecare,04/05/2016,3645075,"1,218.62",Excelcare (Home Care Division) LTD
Adults Services,Adult Social Care,Physical Support - adults (18-64),Older People Commissioning,Social Care - Homecare,04/05/2016,3645079,"2,265.80",Excelcare (Home Care Division) LTD
Adults Services,Adult Social Care,Physical Support - adults (18-64),Older People Commissioning,Social Care - Homecare,04/05/2016,3645082,584.34,Excelcare (Home Care Division) LTD
Adults Services,Adult Social Care,Physical Support - adults (18-64),Older People Commissioning,Social Care - Homecare,04/05/2016,3645091,"1,161.66",Excelcare (Home Care Division) LTD
Adults Services,Adult Social Care,Physical Support - adults (18-64),Older People Commissioning,Social Care - Homecare,04/05/2016,3645093,"4,836.32",Excelcare (Home Care Division) LTD
Adults Services,Adult Social Care,Physical Support - adults (18-64),Older People Commissioning,Social Care - Homecare,04/05/2016,3645124,990.88,Excelcare (Home Care Division) LTD
Adults Services,Adult Social Care,Physical Support - adults (18-64),Learning Dis Commissioning,Social Care - Day Care,04/05/2016,3645115,"3,161.80",Excelcare (Home Care Division) LTD
Adults Services,Adult Social Care,Physical Support - adults (18-64),Learning Dis Commissioning,Social Care - Homecare,04/05/2016,3645117,"4,088.02",Excelcare (Home Care Division) LTD
Adults Services,Adult Social Care,Physical Support - adults (18-64),Physical Dis Commissioning,Social Care - Homecare,04/05/2016,3645064,"4,788.00",Excelcare (Home Care Division) LTD
Adults Services,Adult Social Care,Physical Support - adults (18-64),Physical Dis Commissioning,Social Care - Homecare,04/05/2016,3645101,"4,088.00",Excelcare (Home Care Division) LTD
Adults Services,Adult Social Care,Physical Support - adults (18-64),Physical Dis Commissioning,Social Care - Homecare,04/05/2016,3645102,719.66,Excelcare (Home Care Division) LTD
Adults Services,Adult Social Care,Physical Support - adults (18-64),Physical Dis Commissioning,Social Care - Home Care (Short Term),04/05/2016,3645081,698.01,Excelcare (Home Care Division) LTD
Adults Services,Adult Social Care,Physical Support - adults (18-64),Mental Health Commissioning,Social Care - Homecare,04/05/2016,3645073,"1,097.32",Excelcare (Home Care Division) LTD
Adults Services,Adult Social Care,Physical Support - adults (18-64),Older People Commissioning,Social Care - Homecare,04/05/2016,3645163,580.97,FOCUS CARE LINK LTD
Adults Services,Adult Social Care,Physical Support - adults (18-64),Mental Health Commissioning,Social Care - Supported Accommodation,04/05/2016,3642466,"2,357.14",HAROLD LODGE
Adults Services,Adult Social Care,Physical Support - adults (18-64),Mental Health Commissioning,Social Care - Supported Accommodation,04/05/2016,3642467,"2,357.14",HAROLD LODGE
Adults Services,Adult Social Care,Physical Support - adults (18-64),Mental Health Commissioning,Social Care - Supported Accommodation,04/05/2016,3642483,"2,121.43",HAROLD LODGE
Adults Services,Adult Social Care,Physical Support - adults (18-64),Mental Health Commissioning,Social Care - Supported Accommodation,04/05/2016,3642505,"1,928.57",HAROLD LODGE
Adults Services,Adult Social Care,Physical Support - adults (18-64),Physical Dis Commissioning,Social Care - Day Care,04/05/2016,3642508,782.32,HEADWAY EAST LONDON
Adults Services,Adult Social Care,Physical Support - adults (18-64),Physical Dis Commissioning,Social Care - Day Care,04/05/2016,3642510,686.80,HEADWAY EAST LONDON
Adults Services,Adult Social Care,Physical Support - adults (18-64),Physical Dis Commissioning,Social Care - Day Care,04/05/2016,3642512,686.80,HEADWAY EAST LONDON
Adults Services,Adult Social Care,Physical Support - adults (18-64),Physical Dis Commissioning,Social Care - Day Care,04/05/2016,3642513,889.50,HEADWAY EAST LONDON
Adults Services,Adult Social Care,Physical Support - adults (18-64),Physical Dis Commissioning,Social Care - Day Care,04/05/2016,3642515,"1,011.12",HEADWAY EAST LONDON
Adults Services,Adult Social Care,Physical Support - adults (18-64),Physical Dis Commissioning,Social Care - Day Care,04/05/2016,3642520,531.36,HEADWAY EAST LONDON
Adults Services,Adult Social Care,Physical Support - adults (18-64),Older People Commissioning,Social Care - Nursing Care,04/05/2016,3636479,"4,818.29",Highgate Nursing Home (BUPA)
Adults Services,Adult Social Care,Physical Support - adults (18-64),Learning Dis Commissioning,Social Care - Day Care,04/05/2016,3645020,540.00,I C M FOUNDATION CIC - CORE NEWS PROJECT
Adults Services,Adult Social Care,Physical Support - adults (18-64),Public Health � Healthy Children & Adolescents,Payments to Private Contractors - Other Contractors,04/05/2016,3644816,"2,137.50",Initial
Adults Services,Adult Social Care,Physical Support - adults (18-64),Mental Health Commissioning,Social Care - Residential Care,04/05/2016,3645226,514.28,KADIMA SUPPORT UK LTD
Adults Services,Adult Social Care,Physical Support - adults (18-64),Mental Health Commissioning,Social Care - Residential Care,04/05/2016,3645227,"5,657.14",KADIMA SUPPORT UK LTD
Adults Services,Adult Social Care,Physical Support - adults (18-64),Older People Commissioning,Social Care - Nursing Care,04/05/2016,3643527,"2,305.71",Ladyville Lodge Care Home (part of Four Seasons Health Care Ltd
Adults Services,Adult Social Care,Physical Support - adults (18-64),Learning Dis Commissioning,Social Care - Day Care,04/05/2016,3645024,695.40,MEARS CARE LTD
Adults Services,Adult Social Care,Physical Support - adults (18-64),Learning Dis Commissioning,Social Care - Day Care,04/05/2016,3645025,699.90,MEARS CARE LTD
Adults Services,Adult Social Care,Physical Support - adults (18-64),Learning Dis Commissioning,Social Care - Day Care,04/05/2016,3645026,695.40,MEARS CARE LTD
Adults Services,Adult Social Care,Physical Support - adults (18-64),Learning Dis Commissioning,Social Care - Day Care,04/05/2016,3645027,967.20,MEARS CARE LTD
Adults Services,Adult Social Care,Physical Support - adults (18-64),Learning Dis Commissioning,Social Care - Day Care,04/05/2016,3645028,"2,071.92",MEARS CARE LTD
Adults Services,Adult Social Care,Physical Support - adults (18-64),Learning Dis Commissioning,Social Care - Day Care,04/05/2016,3645029,"1,524.00",MEARS CARE LTD
Adults Services,Adult Social Care,Physical Support - adults (18-64),Learning Dis Commissioning,Social Care - Day Care,04/05/2016,3645030,710.16,MEARS CARE LTD
Adults Services,Adult Social Care,Physical Support - adults (18-64),Learning Dis Commissioning,Social Care - Day Care,04/05/2016,3645031,698.40,MEARS CARE LTD
Adults Services,Adult Social Care,Physical Support - adults (18-64),Learning Dis Commissioning,Social Care - Day Care,04/05/2016,3645032,695.60,MEARS CARE LTD
Adults Services,Adult Social Care,Physical Support - adults (18-64),Learning Dis Commissioning,Social Care - Day Care,04/05/2016,3645033,695.40,MEARS CARE LTD
Adults Services,Adult Social Care,Physical Support - adults (18-64),Learning Dis Commissioning,Social Care - Homecare,04/05/2016,3645034,710.16,MEARS CARE LTD
Adults Services,Adult Social Care,Physical Support - adults (18-64),Learning Dis Commissioning,Social Care - Homecare,04/05/2016,3645058,710.16,MEARS CARE LTD
Adults Services,Adult Social Care,Physical Support - adults (18-64),Learning Dis Commissioning,Social Care - Homecare,04/05/2016,3645060,710.16,MEARS CARE LTD
Adults Services,Adult Social Care,Physical Support - adults (18-64),Learning Dis Commissioning,Social Care - Homecare,04/05/2016,3645127,710.16,MEARS CARE LTD
Adults Services,Adult Social Care,Physical Support - adults (18-64),Learning Dis Commissioning,Social Care - Homecare,04/05/2016,3645128,710.16,MEARS CARE LTD
Adults Services,Adult Social Care,Physical Support - adults (18-64),Learning Dis Commissioning,Social Care - Homecare,04/05/2016,3645129,710.16,MEARS CARE LTD
Adults Services,Adult Social Care,Physical Support - adults (18-64),Learning Dis Commissioning,Social Care - Homecare,04/05/2016,3645130,710.16,MEARS CARE LTD
Adults Services,Adult Social Care,Sensory Support - older people (65+),MH Commissioner,Agency Staff - Health - Salary Recharge,04/05/2016,3632340,"12,039.96",NHS Tower Hamlets Clinical Commissioning Group (CCG)
Adults Services,Adult Social Care,Physical Support - adults (18-64),Learning Dis Commissioning,Social Care - Residential Care,04/05/2016,3643449,"7,364.00",North Down Villa
Adults Services,Adult Social Care,Physical Support - adults (18-64),Physical Dis Commissioning,Social Care - Residential Care,04/05/2016,3642697,"3,642.86",OULTON PARK CARE CENTRE
Adults Services,Adult Social Care,Physical Support - adults (18-64),Older People Commissioning,Social Care - Homecare,04/05/2016,3634812,676.17,POSITIVE CARE LINK
Adults Services,Adult Social Care,Physical Support - adults (18-64),Learning Dis Commissioning,Social Care - Respite Care,04/05/2016,3645303,"1,462.50",QALB Centre Short Break Services
Adults Services,Adult Social Care,Physical Support - adults (18-64),Older People Commissioning,Social Care - Homecare,04/05/2016,3645344,797.94,SANCTUARY HOME CARE LIMITED
Adults Services,Adult Social Care,Physical Support - adults (18-64),Older People Commissioning,Social Care - Homecare,04/05/2016,3645345,540.02,SANCTUARY HOME CARE LIMITED
Adults Services,Adult Social Care,Physical Support - adults (18-64),Older People Commissioning,Social Care - Homecare,04/05/2016,3645348,"1,015.56",SANCTUARY HOME CARE LIMITED
Adults Services,Adult Social Care,Physical Support - adults (18-64),Older People Commissioning,Social Care - Homecare,04/05/2016,3645349,"1,015.56",SANCTUARY HOME CARE LIMITED
Adults Services,Adult Social Care,Physical Support - adults (18-64),Older People Commissioning,Social Care - Homecare,04/05/2016,3645352,564.20,SANCTUARY HOME CARE LIMITED
Adults Services,Adult Social Care,Physical Support - adults (18-64),Older People Commissioning,Social Care - Homecare,04/05/2016,3645358,"1,192.88",SANCTUARY HOME CARE LIMITED
Adults Services,Adult Social Care,Physical Support - adults (18-64),Older People Commissioning,Social Care - Homecare,04/05/2016,3645233,"1,106.25",SEVACARE UK LTD
Adults Services,Adult Social Care,Physical Support - adults (18-64),Older People Commissioning,Social Care - Homecare,04/05/2016,3645234,516.25,SEVACARE UK LTD
Adults Services,Adult Social Care,Physical Support - adults (18-64),Older People Commissioning,Social Care - Homecare,04/05/2016,3645243,780.35,SEVACARE UK LTD
Adults Services,Adult Social Care,Physical Support - adults (18-64),Older People Commissioning,Social Care - Homecare,04/05/2016,3645247,"1,032.50",SEVACARE UK LTD
Adults Services,Adult Social Care,Physical Support - adults (18-64),Older People Commissioning,Social Care - Home Care (Short Term),04/05/2016,3645250,590.00,SEVACARE UK LTD
Adults Services,Adult Social Care,Physical Support - adults (18-64),Older People Commissioning,Social Care - Homecare,04/05/2016,3645366,642.54,Soma Healthcare Ltd
Adults Services,Adult Social Care,Physical Support - adults (18-64),Older People Commissioning,Social Care - Homecare,04/05/2016,3645369,"1,691.17",Soma Healthcare Ltd
Adults Services,Adult Social Care,Physical Support - adults (18-64),Older People Commissioning,Social Care - Homecare,04/05/2016,3645370,517.46,Soma Healthcare Ltd
Adults Services,Adult Social Care,Physical Support - adults (18-64),Older People Commissioning,Social Care - Homecare,04/05/2016,3645373,794.19,Soma Healthcare Ltd
Adults Services,Adult Social Care,Physical Support - adults (18-64),Older People Commissioning,Social Care - Homecare,04/05/2016,3645379,699.65,Soma Healthcare Ltd
Adults Services,Adult Social Care,Physical Support - adults (18-64),Older People Commissioning,Social Care - Homecare,04/05/2016,3645395,"1,766.98",Soma Healthcare Ltd
Adults Services,Adult Social Care,Physical Support - adults (18-64),Older People Commissioning,Social Care - Homecare,04/05/2016,3645400,594.86,Soma Healthcare Ltd
Adults Services,Adult Social Care,Physical Support - adults (18-64),Older People Commissioning,Social Care - Homecare,04/05/2016,3645402,944.25,Soma Healthcare Ltd
Adults Services,Adult Social Care,Physical Support - adults (18-64),Older People Commissioning,Social Care - Homecare,04/05/2016,3645405,565.16,Soma Healthcare Ltd
Adults Services,Adult Social Care,Physical Support - adults (18-64),Older People Commissioning,Social Care - Homecare,04/05/2016,3645412,"1,481.28",Soma Healthcare Ltd
Adults Services,Adult Social Care,Physical Support - adults (18-64),Older People Commissioning,Social Care - Homecare,04/05/2016,3645416,645.25,Soma Healthcare Ltd
Adults Services,Adult Social Care,Physical Support - adults (18-64),Older People Commissioning,Social Care - Homecare,04/05/2016,3645420,"1,466.43",Soma Healthcare Ltd
Adults Services,Adult Social Care,Physical Support - adults (18-64),Older People Commissioning,Social Care - Homecare,04/05/2016,3645422,"1,521.54",Soma Healthcare Ltd
Adults Services,Adult Social Care,Physical Support - adults (18-64),Older People Commissioning,Social Care - Homecare,04/05/2016,3645424,576.86,Soma Healthcare Ltd
Adults Services,Adult Social Care,Physical Support - adults (18-64),Older People Commissioning,Social Care - Homecare,04/05/2016,3645429,"1,185.42",Soma Healthcare Ltd
Adults Services,Adult Social Care,Physical Support - adults (18-64),Older People Commissioning,Social Care - Homecare,04/05/2016,3645436,757.07,Soma Healthcare Ltd
Adults Services,Adult Social Care,Physical Support - adults (18-64),Older People Commissioning,Social Care - Homecare,04/05/2016,3645436,630.56,Soma Healthcare Ltd
Adults Services,Adult Social Care,Physical Support - adults (18-64),Older People Commissioning,Social Care - Homecare,04/05/2016,3645442,"1,935.05",Soma Healthcare Ltd
Adults Services,Adult Social Care,Physical Support - adults (18-64),Older People Commissioning,Social Care - Homecare,04/05/2016,3645448,602.28,Soma Healthcare Ltd
Adults Services,Adult Social Care,Physical Support - adults (18-64),Older People Commissioning,Social Care - Homecare,04/05/2016,3645449,"1,026.35",Soma Healthcare Ltd
Adults Services,Adult Social Care,Physical Support - adults (18-64),Older People Commissioning,Social Care - Homecare,04/05/2016,3645475,"1,178.00",Soma Healthcare Ltd
Adults Services,Adult Social Care,Physical Support - adults (18-64),Older People Commissioning,Social Care - Homecare,04/05/2016,3645476,963.82,Soma Healthcare Ltd
Adults Services,Adult Social Care,Physical Support - adults (18-64),Older People Commissioning,Social Care - Homecare,04/05/2016,3645477,571.00,Soma Healthcare Ltd
Adults Services,Adult Social Care,Physical Support - adults (18-64),Older People Commissioning,Social Care - Homecare,04/05/2016,3645483,605.99,Soma Healthcare Ltd
Adults Services,Adult Social Care,Physical Support - adults (18-64),Older People Commissioning,Social Care - Homecare,04/05/2016,3645494,541.30,Soma Healthcare Ltd
Adults Services,Adult Social Care,Physical Support - adults (18-64),Older People Commissioning,Social Care - Homecare,04/05/2016,3645499,"1,868.22",Soma Healthcare Ltd
Adults Services,Adult Social Care,Physical Support - adults (18-64),Older People Commissioning,Social Care - Home Care (Short Term),04/05/2016,3645460,531.74,Soma Healthcare Ltd
Adults Services,Adult Social Care,Physical Support - adults (18-64),Learning Dis Commissioning,Social Care - Homecare,04/05/2016,3645447,630.84,Soma Healthcare Ltd
Adults Services,Adult Social Care,Physical Support - adults (18-64),Physical Dis Commissioning,Social Care - Homecare,04/05/2016,3645390,"2,171.50",Soma Healthcare Ltd
Adults Services,Adult Social Care,Physical Support - adults (18-64),Physical Dis Commissioning,Social Care - Homecare,04/05/2016,3645409,"1,743.14",Soma Healthcare Ltd
Adults Services,Adult Social Care,Physical Support - adults (18-64),Physical Dis Commissioning,Social Care - Homecare,04/05/2016,3645427,716.79,Soma Healthcare Ltd
Adults Services,Adult Social Care,Physical Support - adults (18-64),Physical Dis Commissioning,Social Care - Homecare,04/05/2016,3645445,707.80,Soma Healthcare Ltd
Adults Services,Adult Social Care,Physical Support - adults (18-64),Physical Dis Commissioning,Social Care - Homecare,04/05/2016,3645446,"1,750.73",Soma Healthcare Ltd
Adults Services,Adult Social Care,Physical Support - adults (18-64),Physical Dis Commissioning,Social Care - Homecare,04/05/2016,3645452,687.09,Soma Healthcare Ltd
Adults Services,Adult Social Care,Physical Support - adults (18-64),Physical Dis Commissioning,Social Care - Homecare,04/05/2016,3645469,767.62,Soma Healthcare Ltd
Adults Services,Adult Social Care,Physical Support - adults (18-64),Mental Health Commissioning,Social Care - Homecare,04/05/2016,3645374,576.86,Soma Healthcare Ltd
Adults Services,Adult Social Care,Physical Support - adults (18-64),Physical Dis Commissioning,Social Care - Homecare,04/05/2016,3642533,"3,920.00",SPINAL & DISABLED HOMECARE
Adults Services,Adult Social Care,Physical Support - adults (18-64),Older People Commissioning,Social Care - Homecare,04/05/2016,3643534,"10,776.12",STAR NURSING & CARE SERVICES LTD
Adults Services,Adult Social Care,Physical Support - adults (18-64),Older People Commissioning,Social Care - Nursing Care,04/05/2016,3643649,"2,113.59",Sunhill Court
Adults Services,Adult Social Care,Physical Support - adults (18-64),Learning Dis Commissioning,Social Care - Residential Care,04/05/2016,3645302,"8,006.17",THE JOHN TOWNSEND TRUST
Adults Services,Adult Social Care,Physical Support - adults (18-64),Strategic Commissioning,Social Care - MSG Prevention Health & Wellbeing,04/05/2016,3645279,"150,000.00",Toynbee Hall
Adults Services,Adult Social Care,Physical Support - adults (18-64),Learning Dis Commissioning,Social Care - Day Care,04/05/2016,3632737,"1,080.00",YOUR CHOICE (BARNET) LTD
Adults Services,No Service Specified,No Division Specified,Capital-Minor Works (SC),Building Works - Main Works,04/05/2016,3627720,"7,142.44",RGE Services
Adults Services,Public Health,Smoking and Tobacco,Public Health Team - 2,Payments to Private Contractors - Other Contractors,04/05/2016,3632383,502.42,ABC Pharmacy 715
Adults Services,Public Health,Smoking and Tobacco,Public Health Team - 2,Payments to Private Contractors - Other Contractors,04/05/2016,3633510,768.60,ARMS CHEMIST
Adults Services,Public Health,Smoking and Tobacco,Public Health Team - 2,Payments to Private Contractors - Other Contractors,04/05/2016,3632399,540.72,Chapel Pharmacy
Adults Services,Public Health,Children 519 Public Health Programmes,Public Health Team 1,Third Party Payments - Other Establishments,04/05/2016,3635038,"131,743.25",COMPASS WELLBEING CIC
Adults Services,Public Health,Smoking and Tobacco,Public Health Team - 2,Payments to Private Contractors - Other Contractors,04/05/2016,3632369,"1,828.17",Day Lewis Plc
Adults Services,Public Health,Smoking and Tobacco,Public Health Team - 2,Payments to Private Contractors - Other Contractors,04/05/2016,3632438,565.52,Docklands Pharmacy
Adults Services,Public Health,Smoking and Tobacco,Public Health Team - 2,Payments to Private Contractors - Other Contractors,04/05/2016,3632407,602.60,Fairdale Pharmacy
Adults Services,Public Health,Smoking and Tobacco,Public Health Team - 2,Payments to Private Contractors - Other Contractors,04/05/2016,3632408,806.36,Fairdale Pharmacy
Adults Services,Public Health,Smoking and Tobacco,Public Health Team - 2,Payments to Private Contractors - Other Contractors,04/05/2016,3632401,"1,419.70",Forward Pharmacy
Adults Services,Public Health,Smoking and Tobacco,Public Health Team - 2,Payments to Private Contractors - Other Contractors,04/05/2016,3632462,635.33,Green Light Pharmacy
Adults Services,Public Health,Smoking and Tobacco,Public Health Team - 2,Payments to Private Contractors - Other Contractors,04/05/2016,3632463,737.00,Green Light Pharmacy Hannaford
Adults Services,Public Health,Smoking and Tobacco,Public Health Team - 2,Payments to Private Contractors - Other Contractors,04/05/2016,3632387,837.90,Guardian Pharmacy t/a Lansbury Chemist
Adults Services,Public Health,Children 519 Public Health Programmes,Public Health Team 1,Third Party Payments - Other Establishments,04/05/2016,3635087,"5,680.00",Kent Community Health NHS Trust
Adults Services,Public Health,Smoking and Tobacco,Public Health Team - 2,Payments to Private Contractors - Other Contractors,04/05/2016,3632365,"1,239.09",Medichem (Bright Bridge Ltd)
Adults Services,Public Health,Smoking and Tobacco,Public Health Team - 2,Payments to Private Contractors - Other Contractors,04/05/2016,3633508,"1,495.51",Pristine Health t/a Bell Pharmacy Bow
Adults Services,Public Health,Smoking and Tobacco,Public Health Team - 2,Payments to Private Contractors - Other Contractors,04/05/2016,3632379,579.10,Sonrak Ltd t/a Massighams Chemist
Adults Services,Adult Social Care,Physical Support - adults (18-64),Older People Commissioning,Social Care - Residential Care,06/05/2016,3642471,"2,797.75",BARCHESTER HEALTHCARE
Adults Services,Adult Social Care,Physical Support - adults (18-64),Older People Commissioning,Social Care - Residential Care,06/05/2016,3643285,"2,480.48",Forest Drive Residential Home Ltd
Adults Services,Adult Social Care,Physical Support - adults (18-64),Older People Commissioning,Social Care - Residential Care,06/05/2016,3643285,"-1,330.08",Forest Drive Residential Home Ltd
Adults Services,Adult Social Care,Physical Support - adults (18-64),Learning Dis Commissioning,Social Care - Residential Care,06/05/2016,3638872,"6,783.00",SAFFRON CARE HOMES LTD
Adults Services,Adult Social Care,Physical Support - adults (18-64),Mental Health Commissioning,Social Care - Prevention & Support,06/05/2016,3647247,763.50,SANCTUARY HOUSING ASSOCIATION
Adults Services,No Service Specified,No Division Specified,Capital-Minor Works (SC),Building Works - Main Works,06/05/2016,3635831,765.00,Colin Toms and Partners LLP
Adults Services,No Service Specified,No Division Specified,Capital-Minor Works (SC),Building Works - Main Works,06/05/2016,3646717,"50,379.00",Early Years Network Tower Hamlets
Adults Services,No Service Specified,No Division Specified,Capital-Minor Works (SC),Other Internal Fees - Other Internal Fees,06/05/2016,3631185,"4,400.00",Greenhatch Group Ltd
Adults Services,Adult Social Care,Physical Support - adults (18-64),Mental Health Commissioning,Social Care - Supported Accommodation,09/05/2016,3634805,749.00,Look Ahead Care & Support Ltd
Adults Services,Adult Social Care,Physical Support - adults (18-64),Mental Health Commissioning,Social Care - Supported Accommodation,09/05/2016,3634806,678.92,Look Ahead Care & Support Ltd
Adults Services,Adult Social Care,Physical Support - adults (18-64),Mental Health Commissioning,Social Care - Supported Accommodation,09/05/2016,3634807,749.00,Look Ahead Care & Support Ltd
Adults Services,Adult Social Care,Physical Support - adults (18-64),Mental Health Commissioning,Social Care - Supported Accommodation,09/05/2016,3634808,597.66,Look Ahead Care & Support Ltd
Adults Services,Adult Social Care,Physical Support - adults (18-64),Mental Health Commissioning,Social Care - Supported Accommodation,09/05/2016,3634809,678.92,Look Ahead Care & Support Ltd
Adults Services,Adult Social Care,Physical Support - adults (18-64),Learning Dis Commissioning,Social Care - Residential Care,09/05/2016,3636480,"10,720.47",ROYAL BOROUGH OF WINDSOR AND MAIDENHEAD
Adults Services,Adult Social Care,Physical Support - adults (18-64),Learning Dis Commissioning,Social Care - Day Care,09/05/2016,3636481,"1,612.28",ROYAL BOROUGH OF WINDSOR AND MAIDENHEAD
Adults Services,Adult Social Care,Sensory Support - older people (65+),Pritchards Road,Water Services - Metered,09/05/2016,3647240,758.57,Thames Water Utilities LTD
Adults Services,No Service Specified,No Division Specified,Capital-Minor Works (SC),Building Works - Main Works,09/05/2016,3633439,"1,475.00",PL Consulting (UK) LTD
Adults Services,Public Health,Smoking and Tobacco,Public Health Team - 2,Third Party Payments - Other Establishments,09/05/2016,3647462,"30,804.12",Barts Health NHS Trust
Adults Services,General,General,General,General,10/05/16,Payment Card,904.98,currys
Adults Services,Adult Social Care,Physical Support - adults (18-64),Strategic Commissioning,Social Care - Prevention & Support - Block,11/05/2016,3649777,"14,000.00",AGE UK EAST LONDON
Adults Services,Adult Social Care,Physical Support - adults (18-64),Riverside Centre,Computing - Purchase of Software,11/05/2016,3636932,"1,088.00",Agilisys Professional Services
Adults Services,Adult Social Care,Physical Support - adults (18-64),Learning Dis Commissioning,Social Care - Residential Care,11/05/2016,3647995,"8,674.75",AITCH CARE HOMES LONDON LTD
Adults Services,Adult Social Care,Physical Support - adults (18-64),Learning Dis Commissioning,Social Care - Help to Live at Home,11/05/2016,3649477,"3,100.00",BAXTER HOUSE SUPPORTED LIVING PROJECT
Adults Services,Adult Social Care,Physical Support - adults (18-64),Older People Commissioning,Social Care - Homecare,11/05/2016,3648783,"2,034.90",COMMUNITY CARE CONSORTIUM
Adults Services,Adult Social Care,Physical Support - adults (18-64),Older People Commissioning,Social Care - Homecare,11/05/2016,3648784,"1,656.80",COMMUNITY CARE CONSORTIUM
Adults Services,Adult Social Care,Physical Support - adults (18-64),Older People Commissioning,Social Care - Homecare,11/05/2016,3648785,"1,322.40",COMMUNITY CARE CONSORTIUM
Adults Services,Adult Social Care,Physical Support - adults (18-64),Older People Commissioning,Social Care - Homecare,11/05/2016,3648789,866.40,COMMUNITY CARE CONSORTIUM
Adults Services,Adult Social Care,Physical Support - adults (18-64),Older People Commissioning,Social Care - Homecare,11/05/2016,3648790,845.50,COMMUNITY CARE CONSORTIUM
Adults Services,Adult Social Care,Physical Support - adults (18-64),Older People Commissioning,Social Care - Homecare,11/05/2016,3648793,722.00,COMMUNITY CARE CONSORTIUM
Adults Services,Adult Social Care,Physical Support - adults (18-64),Older People Commissioning,Social Care - Homecare,11/05/2016,3648795,697.30,COMMUNITY CARE CONSORTIUM
Adults Services,Adult Social Care,Physical Support - adults (18-64),Older People Commissioning,Social Care - Homecare,11/05/2016,3648796,697.30,COMMUNITY CARE CONSORTIUM
Adults Services,Adult Social Care,Physical Support - adults (18-64),Older People Commissioning,Social Care - Homecare,11/05/2016,3648798,672.60,COMMUNITY CARE CONSORTIUM
Adults Services,Adult Social Care,Physical Support - adults (18-64),Older People Commissioning,Social Care - Homecare,11/05/2016,3648803,627.00,COMMUNITY CARE CONSORTIUM
Adults Services,Adult Social Care,Physical Support - adults (18-64),Older People Commissioning,Social Care - Homecare,11/05/2016,3648807,570.00,COMMUNITY CARE CONSORTIUM
Adults Services,Adult Social Care,Physical Support - adults (18-64),Older People Commissioning,Social Care - Homecare,11/05/2016,3648808,519.23,COMMUNITY CARE CONSORTIUM
Adults Services,Adult Social Care,Physical Support - adults (18-64),Older People Commissioning,Social Care - Homecare,11/05/2016,3648812,501.60,COMMUNITY CARE CONSORTIUM
Adults Services,Adult Social Care,Physical Support - adults (18-64),Older People Commissioning,Social Care - Homecare,11/05/2016,3648857,"2,021.60",COMMUNITY CARE CONSORTIUM
Adults Services,Adult Social Care,Physical Support - adults (18-64),Older People Commissioning,Social Care - Homecare,11/05/2016,3648858,"1,664.40",COMMUNITY CARE CONSORTIUM
Adults Services,Adult Social Care,Physical Support - adults (18-64),Older People Commissioning,Social Care - Homecare,11/05/2016,3648859,"1,322.40",COMMUNITY CARE CONSORTIUM
Adults Services,Adult Social Care,Physical Support - adults (18-64),Older People Commissioning,Social Care - Homecare,11/05/2016,3648863,539.60,COMMUNITY CARE CONSORTIUM
Adults Services,Adult Social Care,Physical Support - adults (18-64),Older People Commissioning,Social Care - Homecare,11/05/2016,3648864,841.70,COMMUNITY CARE CONSORTIUM
Adults Services,Adult Social Care,Physical Support - adults (18-64),Older People Commissioning,Social Care - Homecare,11/05/2016,3648866,729.60,COMMUNITY CARE CONSORTIUM
Adults Services,Adult Social Care,Physical Support - adults (18-64),Older People Commissioning,Social Care - Homecare,11/05/2016,3648868,708.70,COMMUNITY CARE CONSORTIUM
Adults Services,Adult Social Care,Physical Support - adults (18-64),Older People Commissioning,Social Care - Homecare,11/05/2016,3648869,699.20,COMMUNITY CARE CONSORTIUM
Adults Services,Adult Social Care,Physical Support - adults (18-64),Older People Commissioning,Social Care - Homecare,11/05/2016,3648870,689.70,COMMUNITY CARE CONSORTIUM
Adults Services,Adult Social Care,Physical Support - adults (18-64),Older People Commissioning,Social Care - Homecare,11/05/2016,3648871,666.90,COMMUNITY CARE CONSORTIUM
Adults Services,Adult Social Care,Physical Support - adults (18-64),Older People Commissioning,Social Care - Homecare,11/05/2016,3648879,627.00,COMMUNITY CARE CONSORTIUM
Adults Services,Adult Social Care,Physical Support - adults (18-64),Older People Commissioning,Social Care - Homecare,11/05/2016,3648881,549.63,COMMUNITY CARE CONSORTIUM
Adults Services,Adult Social Care,Physical Support - adults (18-64),Older People Commissioning,Social Care - Homecare,11/05/2016,3648882,562.40,COMMUNITY CARE CONSORTIUM
Adults Services,Adult Social Care,Physical Support - adults (18-64),Older People Commissioning,Social Care - Home Care (Short Term),11/05/2016,3648801,661.20,COMMUNITY CARE CONSORTIUM
Adults Services,Adult Social Care,Physical Support - adults (18-64),Older People Commissioning,Social Care - Home Care (Short Term),11/05/2016,3648875,661.20,COMMUNITY CARE CONSORTIUM
Adults Services,Adult Social Care,Physical Support - adults (18-64),Learning Dis Commissioning,Social Care - Homecare,11/05/2016,3648786,"1,299.60",COMMUNITY CARE CONSORTIUM
Adults Services,Adult Social Care,Physical Support - adults (18-64),Learning Dis Commissioning,Social Care - Homecare,11/05/2016,3648787,"1,117.20",COMMUNITY CARE CONSORTIUM
Adults Services,Adult Social Care,Physical Support - adults (18-64),Learning Dis Commissioning,Social Care - Homecare,11/05/2016,3648788,"1,117.20",COMMUNITY CARE CONSORTIUM
Adults Services,Adult Social Care,Physical Support - adults (18-64),Learning Dis Commissioning,Social Care - Homecare,11/05/2016,3648792,760.00,COMMUNITY CARE CONSORTIUM
Adults Services,Adult Social Care,Physical Support - adults (18-64),Learning Dis Commissioning,Social Care - Homecare,11/05/2016,3648797,676.40,COMMUNITY CARE CONSORTIUM
Adults Services,Adult Social Care,Physical Support - adults (18-64),Learning Dis Commissioning,Social Care - Homecare,11/05/2016,3648799,665.00,COMMUNITY CARE CONSORTIUM
Adults Services,Adult Social Care,Physical Support - adults (18-64),Learning Dis Commissioning,Social Care - Homecare,11/05/2016,3648800,661.20,COMMUNITY CARE CONSORTIUM
Adults Services,Adult Social Care,Physical Support - adults (18-64),Learning Dis Commissioning,Social Care - Homecare,11/05/2016,3648805,623.20,COMMUNITY CARE CONSORTIUM
Adults Services,Adult Social Care,Physical Support - adults (18-64),Learning Dis Commissioning,Social Care - Homecare,11/05/2016,3648806,615.60,COMMUNITY CARE CONSORTIUM
Adults Services,Adult Social Care,Physical Support - adults (18-64),Learning Dis Commissioning,Social Care - Homecare,11/05/2016,3648810,532.00,COMMUNITY CARE CONSORTIUM
Adults Services,Adult Social Care,Physical Support - adults (18-64),Learning Dis Commissioning,Social Care - Homecare,11/05/2016,3648811,516.80,COMMUNITY CARE CONSORTIUM
Adults Services,Adult Social Care,Physical Support - adults (18-64),Learning Dis Commissioning,Social Care - Homecare,11/05/2016,3648860,"1,117.20",COMMUNITY CARE CONSORTIUM
Adults Services,Adult Social Care,Physical Support - adults (18-64),Learning Dis Commissioning,Social Care - Homecare,11/05/2016,3648861,"1,109.60",COMMUNITY CARE CONSORTIUM
Adults Services,Adult Social Care,Physical Support - adults (18-64),Learning Dis Commissioning,Social Care - Homecare,11/05/2016,3648862,"1,102.00",COMMUNITY CARE CONSORTIUM
Adults Services,Adult Social Care,Physical Support - adults (18-64),Learning Dis Commissioning,Social Care - Homecare,11/05/2016,3648865,760.00,COMMUNITY CARE CONSORTIUM
Adults Services,Adult Social Care,Physical Support - adults (18-64),Learning Dis Commissioning,Social Care - Homecare,11/05/2016,3648872,665.00,COMMUNITY CARE CONSORTIUM
Adults Services,Adult Social Care,Physical Support - adults (18-64),Learning Dis Commissioning,Social Care - Homecare,11/05/2016,3648873,661.20,COMMUNITY CARE CONSORTIUM
Adults Services,Adult Social Care,Physical Support - adults (18-64),Learning Dis Commissioning,Social Care - Homecare,11/05/2016,3648874,661.20,COMMUNITY CARE CONSORTIUM
Adults Services,Adult Social Care,Physical Support - adults (18-64),Learning Dis Commissioning,Social Care - Homecare,11/05/2016,3648877,630.80,COMMUNITY CARE CONSORTIUM
Adults Services,Adult Social Care,Physical Support - adults (18-64),Learning Dis Commissioning,Social Care - Homecare,11/05/2016,3648878,630.80,COMMUNITY CARE CONSORTIUM
Adults Services,Adult Social Care,Physical Support - adults (18-64),Learning Dis Commissioning,Social Care - Homecare,11/05/2016,3648883,532.00,COMMUNITY CARE CONSORTIUM
Adults Services,Adult Social Care,Physical Support - adults (18-64),Physical Dis Commissioning,Social Care - Homecare,11/05/2016,3648791,796.10,COMMUNITY CARE CONSORTIUM
Adults Services,Adult Social Care,Physical Support - adults (18-64),Physical Dis Commissioning,Social Care - Homecare,11/05/2016,3648802,642.20,COMMUNITY CARE CONSORTIUM
Adults Services,Adult Social Care,Physical Support - adults (18-64),Physical Dis Commissioning,Social Care - Homecare,11/05/2016,3648804,627.00,COMMUNITY CARE CONSORTIUM
Adults Services,Adult Social Care,Physical Support - adults (18-64),Physical Dis Commissioning,Social Care - Homecare,11/05/2016,3648809,533.90,COMMUNITY CARE CONSORTIUM
Adults Services,Adult Social Care,Physical Support - adults (18-64),Physical Dis Commissioning,Social Care - Homecare,11/05/2016,3648876,653.60,COMMUNITY CARE CONSORTIUM
Adults Services,Adult Social Care,Physical Support - adults (18-64),Physical Dis Commissioning,Social Care - Homecare,11/05/2016,3648880,611.80,COMMUNITY CARE CONSORTIUM
Adults Services,Adult Social Care,Physical Support - adults (18-64),Physical Dis Commissioning,Social Care - Homecare,11/05/2016,3648884,526.30,COMMUNITY CARE CONSORTIUM
Adults Services,Adult Social Care,Physical Support - adults (18-64),Physical Dis Commissioning,Social Care - Home Care (Short Term),11/05/2016,3648794,714.40,COMMUNITY CARE CONSORTIUM
Adults Services,Adult Social Care,Physical Support - adults (18-64),Physical Dis Commissioning,Social Care - Home Care (Short Term),11/05/2016,3648867,714.40,COMMUNITY CARE CONSORTIUM
Adults Services,Adult Social Care,Physical Support - adults (18-64),Strategic Commissioning,Social Care - MSG Prevention Health & Wellbeing,11/05/2016,3649776,"8,000.00",COMMUNITY OF REFUGEES FROM VIETNAM -
Adults Services,Adult Social Care,Physical Support - adults (18-64),Older People Commissioning,Social Care - Direct Payments,11/05/2016,3648049,"-3,143.64",D D PAYROLL SERVICES
Adults Services,Adult Social Care,Physical Support - adults (18-64),Older People Commissioning,Social Care - Direct Payments,11/05/2016,3648050,"10,946.45",D D PAYROLL SERVICES
Adults Services,Adult Social Care,Physical Support - adults (18-64),Older People Commissioning,Social Care - Direct Payments,11/05/2016,3648051,"8,714.26",D D PAYROLL SERVICES
Adults Services,Adult Social Care,Physical Support - adults (18-64),Older People Commissioning,Social Care - Direct Payments,11/05/2016,3648053,"3,110.80",D D PAYROLL SERVICES
Adults Services,Adult Social Care,Physical Support - adults (18-64),Older People Commissioning,Social Care - Direct Payments,11/05/2016,3649647,-769.39,DAVID HOWARD LTD CLIENT ACCOUNT
Adults Services,Adult Social Care,Physical Support - adults (18-64),Older People Commissioning,Social Care - Direct Payments,11/05/2016,3649648,871.43,DAVID HOWARD LTD CLIENT ACCOUNT
Adults Services,Adult Social Care,Physical Support - adults (18-64),Learning Dis Commissioning,Social Care - Direct Payments,11/05/2016,3648052,608.71,DAVID HOWARD LTD CLIENT ACCOUNT
Adults Services,Adult Social Care,Physical Support - adults (18-64),Learning Dis Commissioning,Social Care - Direct Payments,11/05/2016,3648704,"1,442.64",DAVID HOWARD LTD CLIENT ACCOUNT
Adults Services,Adult Social Care,Physical Support - adults (18-64),Learning Dis Commissioning,Social Care - Direct Payments,11/05/2016,3648705,663.50,DAVID HOWARD LTD CLIENT ACCOUNT
Adults Services,Adult Social Care,Physical Support - adults (18-64),Physical Dis Commissioning,Social Care - Direct Payments,11/05/2016,3648048,"7,932.54",DAVID HOWARD LTD CLIENT ACCOUNT
Adults Services,Adult Social Care,Physical Support - adults (18-64),Learning Dis Commissioning,Social Care - Residential Care,11/05/2016,3648957,"7,071.43",DELROSE HOUSE LIMITED
Adults Services,Adult Social Care,Physical Support - adults (18-64),Learning Dis Commissioning,Social Care - Residential Care,11/05/2016,3648956,"6,600.00",FAIRKYTES
Adults Services,Adult Social Care,Support with Memory and Cognition - adults (18-64),Tower Hamlets Care Alarms,Comms - Purchase of Equipment,11/05/2016,3649946,"1,080.00",Fluidata
Adults Services,Adult Social Care,Physical Support - adults (18-64),Older People Commissioning,Social Care - Homecare,11/05/2016,3648020,"1,690.08",FOCUS CARE LINK LTD
Adults Services,Adult Social Care,Physical Support - adults (18-64),Older People Commissioning,Social Care - Homecare,11/05/2016,3648027,"1,127.98",FOCUS CARE LINK LTD
Adults Services,Adult Social Care,Physical Support - adults (18-64),Older People Commissioning,Social Care - Homecare,11/05/2016,3648033,724.32,FOCUS CARE LINK LTD
Adults Services,Adult Social Care,Physical Support - adults (18-64),Older People Commissioning,Social Care - Homecare,11/05/2016,3648040,"1,478.82",FOCUS CARE LINK LTD
Adults Services,Adult Social Care,Physical Support - adults (18-64),Physical Dis Commissioning,Social Care - Home Care (Short Term),11/05/2016,3648023,548.97,FOCUS CARE LINK LTD
Adults Services,Adult Social Care,Physical Support - adults (18-64),Older People Commissioning,Social Care - Residential Care,11/05/2016,3649644,"17,600.00",GATEWAY HOUSING ASSOCIATION
Adults Services,Adult Social Care,Physical Support - adults (18-64),Older People Commissioning,Social Care - Nursing Care,11/05/2016,3649773,"2,315.19",HAWKINGE HOUSE LTD
Adults Services,Adult Social Care,Physical Support - adults (18-64),Older People Commissioning,Social Care - Residential Care,11/05/2016,3636482,"6,190.00",HOLLY HOUSE CARE HOME
Adults Services,Adult Social Care,Physical Support - adults (18-64),Learning Dis Commissioning,Social Care - Day Care,11/05/2016,3648004,540.00,I C M FOUNDATION CIC - CORE NEWS PROJECT
Adults Services,Adult Social Care,Physical Support - adults (18-64),Learning Dis Commissioning,Social Care - Day Care,11/05/2016,3648007,540.00,I C M FOUNDATION CIC - CORE NEWS PROJECT
Adults Services,Adult Social Care,Physical Support - adults (18-64),Learning Dis Commissioning,Social Care - Homecare,11/05/2016,3648005,540.00,I C M FOUNDATION CIC - CORE NEWS PROJECT
Adults Services,Adult Social Care,Physical Support - adults (18-64),Older People Commissioning,Social Care - Residential Care,11/05/2016,3649480,"3,291.57",J M CAREHOMES LIMITED
Adults Services,Adult Social Care,Physical Support - adults (18-64),Mental Health Commissioning,Social Care - Supported Accommodation,11/05/2016,3649484,"1,705.71",J M CAREHOMES LIMITED
Adults Services,Adult Social Care,Physical Support - adults (18-64),Carers,Social Care - Flexible Breaks-Jewish Care,11/05/2016,3642698,"1,104.53",JEWISH CARE
Adults Services,Adult Social Care,Physical Support - adults (18-64),Older People Commissioning,Social Care - Residential Care,11/05/2016,3649770,"2,807.14",Leona Enterprises Ltd
Adults Services,Adult Social Care,Physical Support - adults (18-64),Older People Commissioning,Social Care - Residential Care,11/05/2016,3649774,"3,077.14",Leona Enterprises Ltd
Adults Services,Adult Social Care,Physical Support - adults (18-64),Learning Dis Commissioning,Social Care - Residential Care,11/05/2016,3649649,"3,675.00",LINKAGE COMMUNITY TRUST
Adults Services,Adult Social Care,Physical Support - adults (18-64),Learning Dis Commissioning,Social Care - Residential Care,11/05/2016,3649650,"3,274.40",LINKAGE COMMUNITY TRUST
Adults Services,Adult Social Care,Physical Support - adults (18-64),Learning Dis Commissioning,Social Care - Residential Care,11/05/2016,3649651,"3,224.00",LINKAGE COMMUNITY TRUST
Adults Services,Adult Social Care,Physical Support - adults (18-64),Learning Dis Commissioning,Social Care - Day Care,11/05/2016,3649485,"7,020.94",London Borough of Haringey
Adults Services,Adult Social Care,Physical Support - adults (18-64),Older People Commissioning,Social Care - Homecare,11/05/2016,3649664,"1,184.40",LONDON COMMUNITY HOMECARE LTD
Adults Services,Adult Social Care,Physical Support - adults (18-64),Older People Commissioning,Social Care - Homecare,11/05/2016,3649666,542.92,LONDON COMMUNITY HOMECARE LTD
Adults Services,Adult Social Care,Physical Support - adults (18-64),Older People Commissioning,Social Care - Homecare,11/05/2016,3649670,"1,156.34",LONDON COMMUNITY HOMECARE LTD
Adults Services,Adult Social Care,Physical Support - adults (18-64),Older People Commissioning,Social Care - Homecare,11/05/2016,3649671,965.92,LONDON COMMUNITY HOMECARE LTD
Adults Services,Adult Social Care,Physical Support - adults (18-64),Older People Commissioning,Social Care - Homecare,11/05/2016,3649675,"2,629.40",LONDON COMMUNITY HOMECARE LTD
Adults Services,Adult Social Care,Physical Support - adults (18-64),Older People Commissioning,Social Care - Homecare,11/05/2016,3649675,"1,184.65",LONDON COMMUNITY HOMECARE LTD
Adults Services,Adult Social Care,Physical Support - adults (18-64),Older People Commissioning,Social Care - Homecare,11/05/2016,3649680,571.20,LONDON COMMUNITY HOMECARE LTD
Adults Services,Adult Social Care,Physical Support - adults (18-64),Older People Commissioning,Social Care - Homecare,11/05/2016,3649713,"1,218.24",LONDON COMMUNITY HOMECARE LTD
Adults Services,Adult Social Care,Physical Support - adults (18-64),Older People Commissioning,Social Care - Homecare,11/05/2016,3649715,558.43,LONDON COMMUNITY HOMECARE LTD
Adults Services,Adult Social Care,Physical Support - adults (18-64),Older People Commissioning,Social Care - Homecare,11/05/2016,3649719,"1,187.36",LONDON COMMUNITY HOMECARE LTD
Adults Services,Adult Social Care,Physical Support - adults (18-64),Older People Commissioning,Social Care - Homecare,11/05/2016,3649720,992.71,LONDON COMMUNITY HOMECARE LTD
Adults Services,Adult Social Care,Physical Support - adults (18-64),Older People Commissioning,Social Care - Homecare,11/05/2016,3649726,897.34,LONDON COMMUNITY HOMECARE LTD
Adults Services,Adult Social Care,Physical Support - adults (18-64),Older People Commissioning,Social Care - Homecare,11/05/2016,3649726,"2,954.78",LONDON COMMUNITY HOMECARE LTD
Adults Services,Adult Social Care,Physical Support - adults (18-64),Older People Commissioning,Social Care - Homecare,11/05/2016,3649732,585.30,LONDON COMMUNITY HOMECARE LTD
Adults Services,Adult Social Care,Physical Support - adults (18-64),Older People Commissioning,Social Care - Homecare,11/05/2016,3649741,715.10,LONDON COMMUNITY HOMECARE LTD
Adults Services,Adult Social Care,Physical Support - adults (18-64),Learning Dis Commissioning,Social Care - Homecare,11/05/2016,3649659,"1,787.29",LONDON COMMUNITY HOMECARE LTD
Adults Services,Adult Social Care,Physical Support - adults (18-64),Learning Dis Commissioning,Social Care - Homecare,11/05/2016,3649708,"1,854.26",LONDON COMMUNITY HOMECARE LTD
Adults Services,Adult Social Care,Physical Support - adults (18-64),Physical Dis Commissioning,Social Care - Homecare,11/05/2016,3649654,535.80,LONDON COMMUNITY HOMECARE LTD
Adults Services,Adult Social Care,Physical Support - adults (18-64),Physical Dis Commissioning,Social Care - Homecare,11/05/2016,3649663,599.46,LONDON COMMUNITY HOMECARE LTD
Adults Services,Adult Social Care,Physical Support - adults (18-64),Physical Dis Commissioning,Social Care - Homecare,11/05/2016,3649665,521.80,LONDON COMMUNITY HOMECARE LTD
Adults Services,Adult Social Care,Physical Support - adults (18-64),Physical Dis Commissioning,Social Care - Homecare,11/05/2016,3649669,"1,579.20",LONDON COMMUNITY HOMECARE LTD
Adults Services,Adult Social Care,Physical Support - adults (18-64),Physical Dis Commissioning,Social Care - Homecare,11/05/2016,3649677,691.04,LONDON COMMUNITY HOMECARE LTD
Adults Services,Adult Social Care,Physical Support - adults (18-64),Physical Dis Commissioning,Social Care - Homecare,11/05/2016,3649699,655.65,LONDON COMMUNITY HOMECARE LTD
Adults Services,Adult Social Care,Physical Support - adults (18-64),Physical Dis Commissioning,Social Care - Homecare,11/05/2016,3649703,549.90,LONDON COMMUNITY HOMECARE LTD
Adults Services,Adult Social Care,Physical Support - adults (18-64),Physical Dis Commissioning,Social Care - Homecare,11/05/2016,3649712,614.97,LONDON COMMUNITY HOMECARE LTD
Adults Services,Adult Social Care,Physical Support - adults (18-64),Physical Dis Commissioning,Social Care - Homecare,11/05/2016,3649714,531.67,LONDON COMMUNITY HOMECARE LTD
Adults Services,Adult Social Care,Physical Support - adults (18-64),Physical Dis Commissioning,Social Care - Homecare,11/05/2016,3649718,"1,553.82",LONDON COMMUNITY HOMECARE LTD
Adults Services,Adult Social Care,Physical Support - adults (18-64),Physical Dis Commissioning,Social Care - Homecare,11/05/2016,3649723,"1,274.92",LONDON COMMUNITY HOMECARE LTD
Adults Services,Adult Social Care,Physical Support - adults (18-64),Physical Dis Commissioning,Social Care - Homecare,11/05/2016,3649728,710.78,LONDON COMMUNITY HOMECARE LTD
Adults Services,Adult Social Care,Physical Support - adults (18-64),Physical Dis Commissioning,Social Care - Homecare,11/05/2016,3649752,679.62,LONDON COMMUNITY HOMECARE LTD
Adults Services,Adult Social Care,Physical Support - adults (18-64),Physical Dis Commissioning,Social Care - Home Care (Short Term),11/05/2016,3649700,761.54,LONDON COMMUNITY HOMECARE LTD
Adults Services,Adult Social Care,Physical Support - adults (18-64),Physical Dis Commissioning,Social Care - Home Care (Short Term),11/05/2016,3649750,"2,233.45",LONDON COMMUNITY HOMECARE LTD
Adults Services,Adult Social Care,Physical Support - adults (18-64),Physical Dis Commissioning,Social Care - Home Care (Short Term),11/05/2016,3649753,778.46,LONDON COMMUNITY HOMECARE LTD
Adults Services,Adult Social Care,Physical Support - adults (18-64),Mental Health Commissioning,Social Care - Prevention & Support,11/05/2016,3647633,744.48,Look Ahead Care & Support Ltd
Adults Services,Adult Social Care,Physical Support - adults (18-64),Mental Health Commissioning,Social Care - Supported Accommodation,11/05/2016,3634810,561.84,Look Ahead Care & Support Ltd
Adults Services,Adult Social Care,Physical Support - adults (18-64),Mental Health Commissioning,Social Care - Supported Accommodation,11/05/2016,3636487,678.92,Look Ahead Care & Support Ltd
Adults Services,Adult Social Care,Physical Support - adults (18-64),Older People Commissioning,Social Care - Homecare,11/05/2016,3649502,714.00,Mantra Recruitment
Adults Services,Adult Social Care,Physical Support - adults (18-64),Older People Commissioning,Social Care - Homecare,11/05/2016,3649522,564.19,Mantra Recruitment
Adults Services,Adult Social Care,Physical Support - adults (18-64),Older People Commissioning,Social Care - Homecare,11/05/2016,3649529,628.75,Mantra Recruitment
Adults Services,Adult Social Care,Physical Support - adults (18-64),Older People Commissioning,Social Care - Homecare,11/05/2016,3649633,535.50,Mantra Recruitment
Adults Services,Adult Social Care,Physical Support - adults (18-64),Learning Dis Commissioning,Social Care - Homecare,11/05/2016,3649519,"1,243.13",Mantra Recruitment
Adults Services,Adult Social Care,Physical Support - adults (18-64),Physical Dis Commissioning,Social Care - Homecare,11/05/2016,3649612,510.00,Mantra Recruitment
Adults Services,Adult Social Care,Physical Support - adults (18-64),Learning Dis Commissioning,Social Care - Homecare,11/05/2016,3647996,504.00,Medstar Domiciliary Care Servies Ltd
Adults Services,Adult Social Care,Physical Support - adults (18-64),Older People Commissioning,Social Care - Homecare,11/05/2016,3648950,513.67,MiHOMECARE LIMITED
Adults Services,Adult Social Care,Physical Support - adults (18-64),Older People Commissioning,Social Care - Homecare,11/05/2016,3648953,"1,215.80",MiHOMECARE LIMITED
Adults Services,Adult Social Care,Physical Support - adults (18-64),Learning Dis Commissioning,Social Care - Homecare,11/05/2016,3648934,"4,516.60",MiHOMECARE LIMITED
Adults Services,Adult Social Care,Physical Support - adults (18-64),Learning Dis Commissioning,Social Care - Homecare,11/05/2016,3648947,768.56,MiHOMECARE LIMITED
Adults Services,Adult Social Care,Physical Support - adults (18-64),Physical Dis Commissioning,Social Care - Homecare,11/05/2016,3648933,"4,705.44",MiHOMECARE LIMITED
Adults Services,Adult Social Care,Physical Support - adults (18-64),Mental Health Commissioning,Social Care - Homecare,11/05/2016,3648931,524.76,MiHOMECARE LIMITED
Adults Services,Adult Social Care,Physical Support - adults (18-64),Older People Commissioning,Social Care - Prevention & Support,11/05/2016,3640584,546.00,Outward Housing
Adults Services,Adult Social Care,Physical Support - adults (18-64),Older People Commissioning,Social Care - Homecare,11/05/2016,3648779,841.60,REDSPOT HOMECARE (CONTRACTS) LTD
Adults Services,Adult Social Care,Physical Support - adults (18-64),Older People Commissioning,Social Care - Homecare,11/05/2016,3648780,844.89,REDSPOT HOMECARE (CONTRACTS) LTD
Adults Services,Adult Social Care,Physical Support - adults (18-64),Older People Commissioning,Social Care - Homecare,11/05/2016,3649754,"1,004.00",REDSPOT HOMECARE (CONTRACTS) LTD
Adults Services,Adult Social Care,Physical Support - adults (18-64),Older People Commissioning,Social Care - Homecare,11/05/2016,3649755,"1,052.24",REDSPOT HOMECARE (CONTRACTS) LTD
Adults Services,Adult Social Care,Physical Support - adults (18-64),Older People Commissioning,Social Care - Homecare,11/05/2016,3649756,"1,004.00",REDSPOT HOMECARE (CONTRACTS) LTD
Adults Services,Adult Social Care,Physical Support - adults (18-64),Older People Commissioning,Social Care - Homecare,11/05/2016,3649757,"1,032.00",REDSPOT HOMECARE (CONTRACTS) LTD
Adults Services,Adult Social Care,Physical Support - adults (18-64),Older People Commissioning,Social Care - Homecare,11/05/2016,3649758,980.40,REDSPOT HOMECARE (CONTRACTS) LTD
Adults Services,Adult Social Care,Physical Support - adults (18-64),Older People Commissioning,Social Care - Homecare,11/05/2016,3649759,"1,042.00",REDSPOT HOMECARE (CONTRACTS) LTD
Adults Services,Adult Social Care,Physical Support - adults (18-64),Older People Commissioning,Social Care - Homecare,11/05/2016,3649760,"1,052.00",REDSPOT HOMECARE (CONTRACTS) LTD
Adults Services,Adult Social Care,Physical Support - adults (18-64),Older People Commissioning,Social Care - Homecare,11/05/2016,3649761,"1,052.00",REDSPOT HOMECARE (CONTRACTS) LTD
Adults Services,Adult Social Care,Physical Support - adults (18-64),Older People Commissioning,Social Care - Homecare,11/05/2016,3649762,"1,120.00",REDSPOT HOMECARE (CONTRACTS) LTD
Adults Services,Adult Social Care,Physical Support - adults (18-64),Older People Commissioning,Social Care - Homecare,11/05/2016,3649763,999.40,REDSPOT HOMECARE (CONTRACTS) LTD
Adults Services,Adult Social Care,Physical Support - adults (18-64),Older People Commissioning,Social Care - Homecare,11/05/2016,3649764,"1,052.00",REDSPOT HOMECARE (CONTRACTS) LTD
Adults Services,Adult Social Care,Physical Support - adults (18-64),Older People Commissioning,Social Care - Homecare,11/05/2016,3649765,894.20,REDSPOT HOMECARE (CONTRACTS) LTD
Adults Services,Adult Social Care,Physical Support - adults (18-64),Older People Commissioning,Social Care - Homecare,11/05/2016,3649766,973.10,REDSPOT HOMECARE (CONTRACTS) LTD
Adults Services,Adult Social Care,Physical Support - adults (18-64),Older People Commissioning,Social Care - Homecare,11/05/2016,3649767,973.10,REDSPOT HOMECARE (CONTRACTS) LTD
Adults Services,Adult Social Care,Physical Support - adults (18-64),Older People Commissioning,Social Care - Homecare,11/05/2016,3649768,"1,018.33",REDSPOT HOMECARE (CONTRACTS) LTD
Adults Services,Adult Social Care,Physical Support - adults (18-64),Older People Commissioning,Social Care - Homecare,11/05/2016,3648966,"2,821.00",SANCTUARY HOME CARE LIMITED
Adults Services,Adult Social Care,Physical Support - adults (18-64),Older People Commissioning,Social Care - Homecare,11/05/2016,3648982,507.78,SANCTUARY HOME CARE LIMITED
Adults Services,Adult Social Care,Physical Support - adults (18-64),Older People Commissioning,Social Care - Homecare,11/05/2016,3648987,910.78,SANCTUARY HOME CARE LIMITED
Adults Services,Adult Social Care,Physical Support - adults (18-64),Older People Commissioning,Social Care - Homecare,11/05/2016,3648992,677.04,SANCTUARY HOME CARE LIMITED
Adults Services,Adult Social Care,Physical Support - adults (18-64),Older People Commissioning,Social Care - Homecare,11/05/2016,3648999,644.80,SANCTUARY HOME CARE LIMITED
Adults Services,Adult Social Care,Physical Support - adults (18-64),Older People Commissioning,Social Care - Homecare,11/05/2016,3649014,515.84,SANCTUARY HOME CARE LIMITED
Adults Services,Adult Social Care,Physical Support - adults (18-64),Older People Commissioning,Social Care - Homecare,11/05/2016,3649017,507.78,SANCTUARY HOME CARE LIMITED
Adults Services,Adult Social Care,Physical Support - adults (18-64),Older People Commissioning,Social Care - Homecare,11/05/2016,3649019,531.96,SANCTUARY HOME CARE LIMITED
Adults Services,Adult Social Care,Physical Support - adults (18-64),Older People Commissioning,Social Care - Homecare,11/05/2016,3649029,515.84,SANCTUARY HOME CARE LIMITED
Adults Services,Adult Social Care,Physical Support - adults (18-64),Older People Commissioning,Social Care - Homecare,11/05/2016,3649030,"1,418.56",SANCTUARY HOME CARE LIMITED
Adults Services,Adult Social Care,Physical Support - adults (18-64),Older People Commissioning,Social Care - Homecare,11/05/2016,3649038,523.90,SANCTUARY HOME CARE LIMITED
Adults Services,Adult Social Care,Physical Support - adults (18-64),Older People Commissioning,Social Care - Homecare,11/05/2016,3649046,"1,579.76",SANCTUARY HOME CARE LIMITED
Adults Services,Adult Social Care,Physical Support - adults (18-64),Older People Commissioning,Social Care - Homecare,11/05/2016,3649051,677.04,SANCTUARY HOME CARE LIMITED
Adults Services,Adult Social Care,Physical Support - adults (18-64),Older People Commissioning,Social Care - Homecare,11/05/2016,3649072,709.28,SANCTUARY HOME CARE LIMITED
Adults Services,Adult Social Care,Physical Support - adults (18-64),Older People Commissioning,Social Care - Homecare,11/05/2016,3649081,507.78,SANCTUARY HOME CARE LIMITED
Adults Services,Adult Social Care,Physical Support - adults (18-64),Older People Commissioning,Social Care - Homecare,11/05/2016,3649094,693.16,SANCTUARY HOME CARE LIMITED
Adults Services,Adult Social Care,Physical Support - adults (18-64),Older People Commissioning,Social Care - Homecare,11/05/2016,3649113,"1,579.76",SANCTUARY HOME CARE LIMITED
Adults Services,Adult Social Care,Physical Support - adults (18-64),Older People Commissioning,Social Care - Homecare,11/05/2016,3649124,507.78,SANCTUARY HOME CARE LIMITED
Adults Services,Adult Social Care,Physical Support - adults (18-64),Older People Commissioning,Social Care - Homecare,11/05/2016,3649131,"1,579.76",SANCTUARY HOME CARE LIMITED
Adults Services,Adult Social Care,Physical Support - adults (18-64),Older People Commissioning,Social Care - Homecare,11/05/2016,3649132,"1,805.44",SANCTUARY HOME CARE LIMITED
Adults Services,Adult Social Care,Physical Support - adults (18-64),Older People Commissioning,Social Care - Homecare,11/05/2016,3649134,588.38,SANCTUARY HOME CARE LIMITED
Adults Services,Adult Social Care,Physical Support - adults (18-64),Older People Commissioning,Social Care - Homecare,11/05/2016,3649142,531.96,SANCTUARY HOME CARE LIMITED
Adults Services,Adult Social Care,Physical Support - adults (18-64),Older People Commissioning,Social Care - Homecare,11/05/2016,3649143,"1,015.56",SANCTUARY HOME CARE LIMITED
Adults Services,Adult Social Care,Physical Support - adults (18-64),Older People Commissioning,Social Care - Homecare,11/05/2016,3649811,"2,821.00",SANCTUARY HOME CARE LIMITED
Adults Services,Adult Social Care,Physical Support - adults (18-64),Older People Commissioning,Social Care - Homecare,11/05/2016,3649826,507.78,SANCTUARY HOME CARE LIMITED
Adults Services,Adult Social Care,Physical Support - adults (18-64),Older People Commissioning,Social Care - Homecare,11/05/2016,3649831,910.78,SANCTUARY HOME CARE LIMITED
Adults Services,Adult Social Care,Physical Support - adults (18-64),Older People Commissioning,Social Care - Homecare,11/05/2016,3649837,"1,249.30",SANCTUARY HOME CARE LIMITED
Adults Services,Adult Social Care,Physical Support - adults (18-64),Older People Commissioning,Social Care - Homecare,11/05/2016,3649845,656.89,SANCTUARY HOME CARE LIMITED
Adults Services,Adult Social Care,Physical Support - adults (18-64),Older People Commissioning,Social Care - Homecare,11/05/2016,3649846,507.78,SANCTUARY HOME CARE LIMITED
Adults Services,Adult Social Care,Physical Support - adults (18-64),Older People Commissioning,Social Care - Homecare,11/05/2016,3649847,507.78,SANCTUARY HOME CARE LIMITED
Adults Services,Adult Social Care,Physical Support - adults (18-64),Older People Commissioning,Social Care - Homecare,11/05/2016,3649850,507.78,SANCTUARY HOME CARE LIMITED
Adults Services,Adult Social Care,Physical Support - adults (18-64),Older People Commissioning,Social Care - Homecare,11/05/2016,3649858,"1,418.56",SANCTUARY HOME CARE LIMITED
Adults Services,Adult Social Care,Physical Support - adults (18-64),Older People Commissioning,Social Care - Home Care (Short Term),11/05/2016,3649028,620.62,SANCTUARY HOME CARE LIMITED
Adults Services,Adult Social Care,Physical Support - adults (18-64),Older People Commissioning,Social Care - Home Care (Short Term),11/05/2016,3649032,660.92,SANCTUARY HOME CARE LIMITED
Adults Services,Adult Social Care,Physical Support - adults (18-64),Older People Commissioning,Social Care - Home Care (Short Term),11/05/2016,3649055,588.38,SANCTUARY HOME CARE LIMITED
Adults Services,Adult Social Care,Physical Support - adults (18-64),Older People Commissioning,Social Care - Home Care (Short Term),11/05/2016,3649067,789.88,SANCTUARY HOME CARE LIMITED
Adults Services,Adult Social Care,Physical Support - adults (18-64),Older People Commissioning,Social Care - Home Care (Short Term),11/05/2016,3649087,515.84,SANCTUARY HOME CARE LIMITED
Adults Services,Adult Social Care,Physical Support - adults (18-64),Physical Dis Commissioning,Social Care - Homecare,11/05/2016,3649041,540.02,SANCTUARY HOME CARE LIMITED
Adults Services,Adult Social Care,Physical Support - adults (18-64),Physical Dis Commissioning,Social Care - Homecare,11/05/2016,3649070,612.56,SANCTUARY HOME CARE LIMITED
Adults Services,Adult Social Care,Physical Support - adults (18-64),Physical Dis Commissioning,Social Care - Homecare,11/05/2016,3649146,612.56,SANCTUARY HOME CARE LIMITED
Adults Services,Adult Social Care,Physical Support - adults (18-64),Physical Dis Commissioning,Social Care - Home Care (Short Term),11/05/2016,3649061,572.26,SANCTUARY HOME CARE LIMITED
Adults Services,Adult Social Care,Physical Support - adults (18-64),Mental Health Commissioning,Social Care - Homecare,11/05/2016,3649057,967.20,SANCTUARY HOME CARE LIMITED
Adults Services,Adult Social Care,Physical Support - adults (18-64),Older People Commissioning,Social Care - Homecare,11/05/2016,3648715,523.63,SEVACARE UK LTD
Adults Services,Adult Social Care,Physical Support - adults (18-64),Older People Commissioning,Social Care - Homecare,11/05/2016,3648719,501.50,SEVACARE UK LTD
Adults Services,Adult Social Care,Physical Support - adults (18-64),Older People Commissioning,Social Care - Homecare,11/05/2016,3648721,848.13,SEVACARE UK LTD
Adults Services,Adult Social Care,Physical Support - adults (18-64),Older People Commissioning,Social Care - Homecare,11/05/2016,3648763,538.38,SEVACARE UK LTD
Adults Services,Adult Social Care,Physical Support - adults (18-64),Older People Commissioning,Social Care - Homecare,11/05/2016,3648769,"1,047.25",SEVACARE UK LTD
Adults Services,Adult Social Care,Physical Support - adults (18-64),Older People Commissioning,Social Care - Homecare,11/05/2016,3648773,575.25,SEVACARE UK LTD
Adults Services,Adult Social Care,Physical Support - adults (18-64),Older People Commissioning,Social Care - Home Care (Short Term),11/05/2016,3648771,"1,076.75",SEVACARE UK LTD
Adults Services,Adult Social Care,Physical Support - adults (18-64),Physical Dis Commissioning,Social Care - Homecare,11/05/2016,3648726,501.50,SEVACARE UK LTD
Adults Services,Adult Social Care,Physical Support - adults (18-64),Physical Dis Commissioning,Social Care - Homecare,11/05/2016,3648732,"1,644.63",SEVACARE UK LTD
Adults Services,Adult Social Care,Physical Support - adults (18-64),Mental Health Commissioning,Social Care - Homecare,11/05/2016,3648768,826.00,SEVACARE UK LTD
Adults Services,Adult Social Care,Physical Support - adults (18-64),Older People Commissioning,Social Care - Homecare,11/05/2016,3649859,835.57,Soma Healthcare Ltd
Adults Services,Adult Social Care,Physical Support - adults (18-64),Older People Commissioning,Social Care - Direct Payments,11/05/2016,3649645,507.50,Soma Healthcare Ltd
Adults Services,Adult Social Care,Physical Support - adults (18-64),Older People Commissioning,Social Care - Home Care (Short Term),11/05/2016,3649859,545.48,Soma Healthcare Ltd
Adults Services,Adult Social Care,Physical Support - adults (18-64),Older People Commissioning,Social Care - Home Care (Short Term),11/05/2016,3649860,846.41,Soma Healthcare Ltd
Adults Services,Adult Social Care,Physical Support - adults (18-64),Older People Commissioning,Social Care - Home Care (Short Term),11/05/2016,3649861,"1,069.20",Soma Healthcare Ltd
Adults Services,Adult Social Care,Physical Support - adults (18-64),Older People Commissioning,Social Care - Home Care (Short Term),11/05/2016,3649863,"1,284.53",Soma Healthcare Ltd
Adults Services,Adult Social Care,Physical Support - adults (18-64),Older People Commissioning,Social Care - Home Care (Short Term),11/05/2016,3649865,"1,358.78",Soma Healthcare Ltd
Adults Services,Adult Social Care,Physical Support - adults (18-64),Older People Commissioning,Social Care - Home Care (Short Term),11/05/2016,3649866,"1,412.45",Soma Healthcare Ltd
Adults Services,Adult Social Care,Physical Support - adults (18-64),Older People Commissioning,Social Care - Home Care (Short Term),11/05/2016,3649867,"1,415.60",Soma Healthcare Ltd
Adults Services,Adult Social Care,Physical Support - adults (18-64),Carers,Social Care - St Hilda's ST Flexible Respite,11/05/2016,3649785,"16,950.94",St Hilda's East Community Centre
Adults Services,Adult Social Care,Sensory Support - older people (65+),MH Commissioner,Social Care - Prevention & Support - Block,11/05/2016,3649785,704.06,St Hilda's East Community Centre
Adults Services,Adult Social Care,Physical Support - adults (18-64),Learning Dis Commissioning,Social Care - Day Care,11/05/2016,3647993,900.00,STALLCOMBE HOUSE
Adults Services,Adult Social Care,Physical Support - adults (18-64),Learning Dis Commissioning,Social Care - Learning Disability Development Fund,11/05/2016,3649479,"30,253.25",THE MAP SQUAD
Adults Services,Adult Social Care,Physical Support - adults (18-64),Learning Dis Commissioning,Social Care - Homecare,11/05/2016,3649640,"1,068.80",TRIANGLE COMMUNITY SERVICES
Adults Services,General Fund/Council Fund,Homelessness,Supporting People Services,SP - Block Subsidy - Old People-Supp Needs,11/05/2016,3648212,807.42,GATEWAY HOUSING ASSOCIATION
Adults Services,General Fund/Council Fund,Homelessness,Supporting People Services,SP - Block Subsidy - Old People-Supp Needs,11/05/2016,3648311,-535.78,GATEWAY HOUSING ASSOCIATION
Adults Services,General Fund/Council Fund,Homelessness,Supporting People Services,SP - Block Subsidy - Old People-Supp Needs,11/05/2016,3648351,707.74,GATEWAY HOUSING ASSOCIATION
Adults Services,General Fund/Council Fund,Homelessness,Supporting People Services,SP - Block Subsidy - Old People-Supp Needs,11/05/2016,3648374,707.74,GATEWAY HOUSING ASSOCIATION
Adults Services,General Fund/Council Fund,Homelessness,Supporting People Services,SP - Block-Gross - Domestic Violence,11/05/2016,3648044,"51,445.16",HESTIA HOUSING & SUPPORT
Adults Services,General Fund/Council Fund,Homelessness,Supporting People Services,SP - Block-Gross - Mental Health,11/05/2016,3648044,"114,128.38",HESTIA HOUSING & SUPPORT
Adults Services,General Fund/Council Fund,Homelessness,Supporting People Services,SP - Block-Gross - Y People Risk/Care Lev,11/05/2016,3648045,"92,566.34",Kipper Project
Adults Services,General Fund/Council Fund,Homelessness,Supporting People Services,SP - Block-Gross - Learning Disabilities,11/05/2016,3648047,"100,776.28",Look Ahead Care & Support Ltd
Adults Services,General Fund/Council Fund,Homelessness,Supporting People Services,SP - Block-Gross - Mental Health,11/05/2016,3648047,"415,545.82",Look Ahead Care & Support Ltd
Adults Services,General Fund/Council Fund,Homelessness,Supporting People Services,SP - Block-Gross - Single Homeless,11/05/2016,3648047,"287,061.66",Look Ahead Care & Support Ltd
Adults Services,General Fund/Council Fund,Homelessness,Supporting People Services,SP - Block-Gross - Y People Risk/Care Lev,11/05/2016,3648047,"125,886.98",Look Ahead Care & Support Ltd
Adults Services,General Fund/Council Fund,Homelessness,Supporting People Services,SP - Block Subsidy - Old People-Supp Needs,11/05/2016,3648130,"-1,161.04",One Housing Group
Adults Services,General Fund/Council Fund,Homelessness,Supporting People Services,SP - Block-Gross - Learning Disabilities,11/05/2016,3648043,"81,537.24",Outward Housing
Adults Services,General Fund/Council Fund,Homelessness,Supporting People Services,SP - Block-Gross - Mental Health,11/05/2016,3648042,"13,302.50",Providence Row Housing Association
Adults Services,General Fund/Council Fund,Homelessness,Supporting People Services,SP - Block-Gross - Single Homeless,11/05/2016,3648042,"294,985.32",Providence Row Housing Association
Adults Services,General Fund/Council Fund,Homelessness,Supporting People Services,SP - Block-Gross - Single Homeless,11/05/2016,3648041,"151,562.10",Salvation Army
Adults Services,No Service Specified,No Division Specified,Capital-Minor Works (SC),Building Works - Main Works,11/05/2016,3635819,"11,594.52",Tower Hamlets Schools LTD
Adults Services,No Service Specified,No Division Specified,Capital-Minor Works (SC),Building Works - Main Works,11/05/2016,3643934,"23,592.00",Tower Hamlets Schools LTD
Adults Services,No Service Specified,No Division Specified,Capital-Minor Works (SC),Building Works - Main Works,11/05/2016,3644071,"23,592.00",Tower Hamlets Schools LTD
Adults Services,Adult Social Care,Physical Support - adults (18-64),Mental Health Commissioning,Social Care - Supported Accommodation,13/05/2016,3651511,"1,971.30",ANTRIM CARE SERVICES LIMITED
Adults Services,Adult Social Care,Physical Support - adults (18-64),Mental Health Commissioning,Social Care - Supported Accommodation,13/05/2016,3651513,"1,971.30",ANTRIM CARE SERVICES LIMITED
Adults Services,Adult Social Care,Support with Memory and Cognition - adults (18-64),Tower Hamlets Care Alarms,Community Equipment  Supplies - Aids and Appliances,13/05/2016,3653929,"10,030.00",Care Tech UK Ltd
Adults Services,Adult Social Care,Physical Support - adults (18-64),Older People Commissioning,Social Care - Homecare,13/05/2016,3651411,"1,117.88",Carewatch Newham Ltd
Adults Services,Adult Social Care,Physical Support - adults (18-64),Older People Commissioning,Social Care - Homecare,13/05/2016,3651423,609.07,Carewatch Newham Ltd
Adults Services,Adult Social Care,Physical Support - adults (18-64),Older People Commissioning,Social Care - Homecare,13/05/2016,3651424,501.62,Carewatch Newham Ltd
Adults Services,Adult Social Care,Physical Support - adults (18-64),Older People Commissioning,Social Care - Homecare,13/05/2016,3651427,924.36,Carewatch Newham Ltd
Adults Services,Adult Social Care,Physical Support - adults (18-64),Older People Commissioning,Social Care - Homecare,13/05/2016,3651431,594.78,Carewatch Newham Ltd
Adults Services,Adult Social Care,Physical Support - adults (18-64),Older People Commissioning,Social Care - Homecare,13/05/2016,3651443,"1,003.10",Carewatch Newham Ltd
Adults Services,Adult Social Care,Physical Support - adults (18-64),Older People Commissioning,Social Care - Homecare,13/05/2016,3651445,601.86,Carewatch Newham Ltd
Adults Services,Adult Social Care,Physical Support - adults (18-64),Older People Commissioning,Social Care - Homecare,13/05/2016,3651448,637.74,Carewatch Newham Ltd
Adults Services,Adult Social Care,Physical Support - adults (18-64),Older People Commissioning,Social Care - Homecare,13/05/2016,3651449,559.08,Carewatch Newham Ltd
Adults Services,Adult Social Care,Physical Support - adults (18-64),Older People Commissioning,Social Care - Homecare,13/05/2016,3651451,523.08,Carewatch Newham Ltd
Adults Services,Adult Social Care,Physical Support - adults (18-64),Older People Commissioning,Social Care - Homecare,13/05/2016,3651463,967.36,Carewatch Newham Ltd
Adults Services,Adult Social Care,Physical Support - adults (18-64),Older People Commissioning,Social Care - Home Care (Short Term),13/05/2016,3651438,512.46,Carewatch Newham Ltd
Adults Services,Adult Social Care,Physical Support - adults (18-64),Physical Dis Commissioning,Social Care - Homecare,13/05/2016,3651412,981.68,Carewatch Newham Ltd
Adults Services,Adult Social Care,Physical Support - adults (18-64),Physical Dis Commissioning,Social Care - Homecare,13/05/2016,3651413,"1,117.72",Carewatch Newham Ltd
Adults Services,Adult Social Care,Physical Support - adults (18-64),Physical Dis Commissioning,Social Care - Homecare,13/05/2016,3651440,"1,447.48",Carewatch Newham Ltd
Adults Services,Adult Social Care,Physical Support - adults (18-64),Physical Dis Commissioning,Social Care - Homecare,13/05/2016,3651454,752.42,Carewatch Newham Ltd
Adults Services,Adult Social Care,Physical Support - adults (18-64),Mental Health Commissioning,Social Care - Homecare,13/05/2016,3651433,501.70,Carewatch Newham Ltd
Adults Services,Adult Social Care,Physical Support - adults (18-64),Mental Health Commissioning,Social Care - Prevention & Support,13/05/2016,3651409,980.00,City Inn Express Limited
Adults Services,Adult Social Care,Physical Support - adults (18-64),Physical Dis Commissioning,Social Care - Direct Payments,13/05/2016,3651535,725.46,D D PAYROLL SERVICES
Adults Services,Adult Social Care,Physical Support - adults (18-64),Older People Commissioning,Social Care - Homecare,13/05/2016,3651522,535.70,FOCUS CARE LINK LTD
Adults Services,Adult Social Care,Physical Support - adults (18-64),Older People Commissioning,Social Care - Homecare,13/05/2016,3651530,558.33,FOCUS CARE LINK LTD
Adults Services,Adult Social Care,Physical Support - adults (18-64),Physical Dis Commissioning,Social Care - Homecare,13/05/2016,3651520,516.83,FOCUS CARE LINK LTD
Adults Services,Adult Social Care,Physical Support - adults (18-64),Physical Dis Commissioning,Social Care - Homecare,13/05/2016,3651529,"1,410.92",FOCUS CARE LINK LTD
Adults Services,Adult Social Care,Physical Support - adults (18-64),Older People Commissioning,Social Care - Nursing Care,13/05/2016,3643448,"2,475.95",H-C ONE LTD - TOWER BRIDGE
Adults Services,Adult Social Care,Physical Support - adults (18-64),Older People Commissioning,Client Contributions for Social Care - Nursing Care,13/05/2016,3643448,-541.29,H-C ONE LTD - TOWER BRIDGE
Adults Services,Adult Social Care,Physical Support - adults (18-64),Older People Commissioning,Social Care - Homecare,13/05/2016,3651491,"1,290.94",Mantra Recruitment
Adults Services,Adult Social Care,Physical Support - adults (18-64),Physical Dis Commissioning,Social Care - Homecare,13/05/2016,3651488,620.29,Mantra Recruitment
Adults Services,Adult Social Care,Physical Support - adults (18-64),Older People Commissioning,Social Care - Homecare,13/05/2016,3651572,"1,375.60",MiHOMECARE LIMITED
Adults Services,Adult Social Care,Physical Support - adults (18-64),Older People Commissioning,Social Care - Homecare,13/05/2016,3651573,"1,375.60",MiHOMECARE LIMITED
Adults Services,Adult Social Care,Physical Support - adults (18-64),Older People Commissioning,Social Care - Residential Care,13/05/2016,3642521,-571.50,MILLARD HOUSE RESIDENTAIL CARE HOME
Adults Services,Adult Social Care,Physical Support - adults (18-64),Older People Commissioning,Social Care - Residential Care,13/05/2016,3642521,"2,088.17",MILLARD HOUSE RESIDENTAIL CARE HOME
Adults Services,Adult Social Care,Physical Support - adults (18-64),Mental Health Commissioning,Social Care - Residential Care,13/05/2016,3651401,"3,542.86",Number Residential Care Home
Adults Services,Adult Social Care,Physical Support - adults (18-64),Mental Health Commissioning,Social Care - Residential Care,13/05/2016,3651402,"3,428.57",Number Residential Care Home
Adults Services,Adult Social Care,Physical Support - adults (18-64),Learning Dis Commissioning,Social Care - Day Care,13/05/2016,3639010,918.72,Outward Housing
Adults Services,Adult Social Care,Physical Support - adults (18-64),Learning Dis Commissioning,Social Care - Homecare,13/05/2016,3638981,"1,177.20",Outward Housing
Adults Services,Adult Social Care,Physical Support - adults (18-64),Learning Dis Commissioning,Social Care - Homecare,13/05/2016,3638983,863.28,Outward Housing
Adults Services,Adult Social Care,Physical Support - adults (18-64),Learning Dis Commissioning,Social Care - Homecare,13/05/2016,3638984,"1,137.96",Outward Housing
Adults Services,Adult Social Care,Physical Support - adults (18-64),Learning Dis Commissioning,Social Care - Homecare,13/05/2016,3638986,"1,119.69",Outward Housing
Adults Services,Adult Social Care,Physical Support - adults (18-64),Learning Dis Commissioning,Social Care - Homecare,13/05/2016,3638988,593.34,Outward Housing
Adults Services,Adult Social Care,Physical Support - adults (18-64),Learning Dis Commissioning,Social Care - Homecare,13/05/2016,3638990,"1,224.96",Outward Housing
Adults Services,Adult Social Care,Physical Support - adults (18-64),Learning Dis Commissioning,Social Care - Homecare,13/05/2016,3638991,861.30,Outward Housing
Adults Services,Adult Social Care,Physical Support - adults (18-64),Learning Dis Commissioning,Social Care - Homecare,13/05/2016,3638992,918.72,Outward Housing
Adults Services,Adult Social Care,Physical Support - adults (18-64),Learning Dis Commissioning,Social Care - Homecare,13/05/2016,3638993,612.48,Outward Housing
Adults Services,Adult Social Care,Physical Support - adults (18-64),Learning Dis Commissioning,Social Care - Homecare,13/05/2016,3638995,535.92,Outward Housing
Adults Services,Adult Social Care,Physical Support - adults (18-64),Learning Dis Commissioning,Social Care - Homecare,13/05/2016,3638996,516.78,Outward Housing
Adults Services,Adult Social Care,Physical Support - adults (18-64),Learning Dis Commissioning,Social Care - Homecare,13/05/2016,3638997,612.48,Outward Housing
Adults Services,Adult Social Care,Physical Support - adults (18-64),Learning Dis Commissioning,Social Care - Homecare,13/05/2016,3638998,535.92,Outward Housing
Adults Services,Adult Social Care,Physical Support - adults (18-64),Learning Dis Commissioning,Social Care - Homecare,13/05/2016,3638999,"1,224.96",Outward Housing
Adults Services,Adult Social Care,Physical Support - adults (18-64),Learning Dis Commissioning,Social Care - Homecare,13/05/2016,3639000,"1,454.64",Outward Housing
Adults Services,Adult Social Care,Physical Support - adults (18-64),Learning Dis Commissioning,Social Care - Homecare,13/05/2016,3639001,"1,186.68",Outward Housing
Adults Services,Adult Social Care,Physical Support - adults (18-64),Learning Dis Commissioning,Social Care - Homecare,13/05/2016,3639003,765.60,Outward Housing
Adults Services,Adult Social Care,Physical Support - adults (18-64),Learning Dis Commissioning,Social Care - Homecare,13/05/2016,3639005,689.04,Outward Housing
Adults Services,Adult Social Care,Physical Support - adults (18-64),Learning Dis Commissioning,Social Care - Homecare,13/05/2016,3639009,689.04,Outward Housing
Adults Services,Adult Social Care,Physical Support - adults (18-64),Learning Dis Commissioning,Social Care - Homecare,13/05/2016,3639141,727.32,Outward Housing
Adults Services,Adult Social Care,Physical Support - adults (18-64),Learning Dis Commissioning,Social Care - Homecare,13/05/2016,3639143,784.80,Outward Housing
Adults Services,Adult Social Care,Physical Support - adults (18-64),Learning Dis Commissioning,Social Care - Homecare,13/05/2016,3639144,"2,411.64",Outward Housing
Adults Services,Adult Social Care,Physical Support - adults (18-64),Learning Dis Commissioning,Social Care - Homecare,13/05/2016,3639147,"1,071.84",Outward Housing
Adults Services,Adult Social Care,Physical Support - adults (18-64),Older People Commissioning,Social Care - Day Care,13/05/2016,3643600,546.30,Peabody Trust
Adults Services,Adult Social Care,Physical Support - adults (18-64),Older People Commissioning,Social Care - Day Care,13/05/2016,3643611,714.02,Peabody Trust
Adults Services,Adult Social Care,Physical Support - adults (18-64),Older People Commissioning,Social Care - Day Care,13/05/2016,3643614,526.12,Peabody Trust
Adults Services,Adult Social Care,Physical Support - adults (18-64),Older People Commissioning,Social Care - Day Care,13/05/2016,3643615,526.12,Peabody Trust
Adults Services,Adult Social Care,Physical Support - adults (18-64),Older People Commissioning,Social Care - Day Care,13/05/2016,3643625,563.70,Peabody Trust
Adults Services,Adult Social Care,Physical Support - adults (18-64),Older People Commissioning,Social Care - Day Care,13/05/2016,3643626,526.12,Peabody Trust
Adults Services,Adult Social Care,Physical Support - adults (18-64),Older People Commissioning,Social Care - Day Care,13/05/2016,3643627,526.12,Peabody Trust
Adults Services,Adult Social Care,Physical Support - adults (18-64),Older People Commissioning,Social Care - Day Care,13/05/2016,3643633,760.30,Peabody Trust
Adults Services,Adult Social Care,Sensory Support - older people (65+),Mental Capacity Act,Services - Professional Fees - Consultants Fees,13/05/2016,3651179,"1,730.00",RADHA CONSULTING LTD
Adults Services,Adult Social Care,Sensory Support - older people (65+),Mental Capacity Act,Services - Professional Fees - Consultants Fees,13/05/2016,3651180,"1,746.20",RADHA CONSULTING LTD
Adults Services,Adult Social Care,Physical Support - adults (18-64),Older People Commissioning,Social Care - Homecare,13/05/2016,3651548,878.87,REDSPOT HOMECARE (CONTRACTS) LTD
Adults Services,Adult Social Care,Physical Support - adults (18-64),Older People Commissioning,Social Care - Homecare,13/05/2016,3651549,972.30,REDSPOT HOMECARE (CONTRACTS) LTD
Adults Services,Adult Social Care,Physical Support - adults (18-64),Older People Commissioning,Social Care - Homecare,13/05/2016,3651551,748.46,REDSPOT HOMECARE (CONTRACTS) LTD
Adults Services,Adult Social Care,Physical Support - adults (18-64),Older People Commissioning,Social Care - Homecare,13/05/2016,3651558,"1,207.62",REDSPOT HOMECARE (CONTRACTS) LTD
Adults Services,Adult Social Care,Physical Support - adults (18-64),Older People Commissioning,Social Care - Homecare,13/05/2016,3651565,658.88,REDSPOT HOMECARE (CONTRACTS) LTD
Adults Services,Adult Social Care,Physical Support - adults (18-64),Physical Dis Commissioning,Social Care - Homecare,13/05/2016,3651552,"1,038.60",REDSPOT HOMECARE (CONTRACTS) LTD
Adults Services,Adult Social Care,Physical Support - adults (18-64),Older People Commissioning,Social Care - Homecare,13/05/2016,3651593,926.90,SANCTUARY HOME CARE LIMITED
Adults Services,Adult Social Care,Physical Support - adults (18-64),Older People Commissioning,Social Care - Homecare,13/05/2016,3651595,677.04,SANCTUARY HOME CARE LIMITED
Adults Services,Adult Social Care,Physical Support - adults (18-64),Older People Commissioning,Social Care - Homecare,13/05/2016,3651613,789.88,SANCTUARY HOME CARE LIMITED
Adults Services,Adult Social Care,Physical Support - adults (18-64),Older People Commissioning,Social Care - Homecare,13/05/2016,3651621,540.02,SANCTUARY HOME CARE LIMITED
Adults Services,Adult Social Care,Physical Support - adults (18-64),Older People Commissioning,Social Care - Homecare,13/05/2016,3651624,564.20,SANCTUARY HOME CARE LIMITED
Adults Services,Adult Social Care,Physical Support - adults (18-64),Older People Commissioning,Social Care - Homecare,13/05/2016,3651662,656.89,SANCTUARY HOME CARE LIMITED
Adults Services,Adult Social Care,Physical Support - adults (18-64),Older People Commissioning,Social Care - Homecare,13/05/2016,3651663,"1,305.72",SANCTUARY HOME CARE LIMITED
Adults Services,Adult Social Care,Physical Support - adults (18-64),Older People Commissioning,Social Care - Homecare,13/05/2016,3651672,588.38,SANCTUARY HOME CARE LIMITED
Adults Services,Adult Social Care,Physical Support - adults (18-64),Older People Commissioning,Social Care - Homecare,13/05/2016,3651673,"1,217.06",SANCTUARY HOME CARE LIMITED
Adults Services,Adult Social Care,Physical Support - adults (18-64),Older People Commissioning,Social Care - Homecare,13/05/2016,3651677,540.02,SANCTUARY HOME CARE LIMITED
Adults Services,Adult Social Care,Physical Support - adults (18-64),Older People Commissioning,Social Care - Homecare,13/05/2016,3651680,515.84,SANCTUARY HOME CARE LIMITED
Adults Services,Adult Social Care,Physical Support - adults (18-64),Older People Commissioning,Social Care - Homecare,13/05/2016,3651681,564.20,SANCTUARY HOME CARE LIMITED
Adults Services,Adult Social Care,Physical Support - adults (18-64),Older People Commissioning,Social Care - Homecare,13/05/2016,3651687,507.78,SANCTUARY HOME CARE LIMITED
Adults Services,Adult Social Care,Physical Support - adults (18-64),Older People Commissioning,Social Care - Home Care (Short Term),13/05/2016,3651602,789.88,SANCTUARY HOME CARE LIMITED
Adults Services,Adult Social Care,Physical Support - adults (18-64),Older People Commissioning,Social Care - Home Care (Short Term),13/05/2016,3651644,870.48,SANCTUARY HOME CARE LIMITED
Adults Services,Adult Social Care,Physical Support - adults (18-64),Older People Commissioning,Social Care - Home Care (Short Term),13/05/2016,3651653,660.92,SANCTUARY HOME CARE LIMITED
Adults Services,Adult Social Care,Physical Support - adults (18-64),Physical Dis Commissioning,Social Care - Home Care (Short Term),13/05/2016,3651597,"1,241.24",SANCTUARY HOME CARE LIMITED
Adults Services,Adult Social Care,Physical Support - adults (18-64),Learning Dis Commissioning,Social Care - Residential Care,13/05/2016,3639894,"3,420.00",Scope
Adults Services,Adult Social Care,Physical Support - adults (18-64),Learning Dis Commissioning,Social Care - Respite Care,13/05/2016,3645131,"2,750.00",Specialized Care & Support Sevices Ltd
Adults Services,Adult Social Care,Physical Support - adults (18-64),Learning Dis Commissioning,Social Care - Respite Care,13/05/2016,3645132,700.00,Specialized Care & Support Sevices Ltd
Adults Services,Adult Social Care,Physical Support - adults (18-64),Older People Commissioning,Social Care - Nursing Care,13/05/2016,3648700,"-2,720.00",TREES PARK (EAST HAM) LIMITED
Adults Services,Adult Social Care,Physical Support - adults (18-64),Older People Commissioning,Social Care - Nursing Care,13/05/2016,3651541,"22,285.71",TREES PARK (EAST HAM) LIMITED
Adults Services,Adult Social Care,Physical Support - adults (18-64),Learning Dis Commissioning,Social Care - Homecare,13/05/2016,3651533,544.00,TRIANGLE COMMUNITY SERVICES
Adults Services,Adult Social Care,Physical Support - adults (18-64),Learning Dis Commissioning,Social Care - Homecare,13/05/2016,3651534,560.00,TRIANGLE COMMUNITY SERVICES
Adults Services,Adult Social Care,Physical Support - adults (18-64),Public Health � Healthy Communities,Third Party Payments - Voluntary Associations,16/05/2016,3650031,"10,500.00",Osmani Trust
Adults Services,Adult Social Care,Physical Support - adults (18-64),Replacement of EHCM,Computing - Purchase of Software,18/05/2016,3630304,"15,013.67",Agilisys Professional Services
Adults Services,Adult Social Care,Service Strategy,Disability and Health M&A,Subscriptions - Associations,18/05/2016,3652622,"1,240.00",CIPFA Business Ltd
Adults Services,Adult Social Care,Physical Support - adults (18-64),Older People Commissioning,Social Care - Nursing Care,18/05/2016,3643261,"2,152.00",Friars Hall Nursing Home
Adults Services,Adult Social Care,Physical Support - adults (18-64),Learning Dis Commissioning,Social Care - Respite Care,18/05/2016,3643287,"1,590.00",HERITAGE CARE
Adults Services,Adult Social Care,Sensory Support - older people (65+),Mental Capacity Act,Services - Professional Fees - Consultants Fees,18/05/2016,3652572,975.00,Kuttoos Ltd
Adults Services,Adult Social Care,Physical Support - adults (18-64),Learning Dis Commissioning,Social Care - Residential Care,18/05/2016,3643260,"6,504.00",OVERLEY HALL SCHOOL LTD
Adults Services,Adult Social Care,Physical Support - adults (18-64),Mental Health Commissioning,Events & Exhibition Supplies,18/05/2016,3652589,975.00,Sainsburys Business Direct
Adults Services,Adult Social Care,Physical Support - adults (18-64),Mental Health Commissioning,Events & Exhibition Supplies,18/05/2016,3652590,975.00,Sainsburys Business Direct
Adults Services,No Service Specified,No Division Specified,Capital-Minor Works (SC),Building Works - Main Works,18/05/2016,3646837,"14,325.00",DATE PALM PRIMARY
Adults Services,Adult Social Care,Sensory Support - older people (65+),"ASCPH Director�s Services		",Training Expenses - Staff External Training (UK Based),20/05/2016,3653928,"2,250.00",Redacted Section 40 FOI Act
Adults Services,Adult Social Care,Support with Memory and Cognition - adults (18-64),Generic Care Packages SE Team -PS,Social Care - Direct Payments,20/05/2016,3654457,"2,719.28",Redacted Section 40 FOI Act
Adults Services,Adult Social Care,Support with Memory and Cognition - adults (18-64),CLDS Longer Term Support Teams,Social Care - Day Care,20/05/2016,3654034,"2,074.17",APASENTH
Adults Services,Adult Social Care,Physical Support - adults (18-64),"Failed Care Package Conversion		",Social Care - Prevention & Support - Block,20/05/2016,3655253,"4,800.00",APASENTH
Adults Services,Adult Social Care,Physical Support - adults (18-64),"Failed Care Package Conversion		",Social Care - Homecare,20/05/2016,3654129,"2,203.20",AQUAFLO CARE LTD
Adults Services,Adult Social Care,Physical Support - adults (18-64),"Failed Care Package Conversion		",Social Care - Homecare,20/05/2016,3654130,"2,203.20",AQUAFLO CARE LTD
Adults Services,Adult Social Care,Physical Support - adults (18-64),"Failed Care Package Conversion		",Social Care - Homecare,20/05/2016,3654131,"2,203.20",AQUAFLO CARE LTD
Adults Services,Adult Social Care,Physical Support - adults (18-64),"Failed Care Package Conversion		",Social Care - Homecare,20/05/2016,3654132,"2,203.20",AQUAFLO CARE LTD
Adults Services,Adult Social Care,Physical Support - adults (18-64),"Failed Care Package Conversion		",Social Care - Homecare,20/05/2016,3654133,"2,291.96",AQUAFLO CARE LTD
Adults Services,Adult Social Care,Physical Support - adults (18-64),"Failed Care Package Conversion		",Social Care - Mental Health,20/05/2016,3655022,975.00,ASUMJWE
Adults Services,Adult Social Care,Support with Memory and Cognition - adults (18-64),Generic Care Packages SE Team -PS,Social Care - Homecare,20/05/2016,3654036,631.62,ATHLONE CARE LTD
Adults Services,Adult Social Care,Support with Memory and Cognition - adults (18-64),Generic Care Packages SE Team -PS,Social Care - Homecare,20/05/2016,3654055,563.36,ATHLONE CARE LTD
Adults Services,Adult Social Care,Physical Support - adults (18-64),Older People Commissioning,Social Care - Nursing Care,20/05/2016,3643295,"2,130.90",Bakers Court Nursing Home
Adults Services,Adult Social Care,Physical Support - adults (18-64),Older People Commissioning,Social Care - Residential Care,20/05/2016,3643296,"2,076.64",Bakers Court Nursing Home
Adults Services,Adult Social Care,Support with Memory and Cognition - adults (18-64),Tower Hamlets Care Alarms,Computing - Purchase of Hardware,20/05/2016,3641296,"1,200.00",Buddi Ltd
Adults Services,Adult Social Care,Physical Support - adults (18-64),"Failed Care Package Conversion		",Social Care - Mental Health,20/05/2016,3655023,"1,087.75",CAFE NIA
Adults Services,Adult Social Care,Physical Support - adults (18-64),"Failed Care Package Conversion		",Social Care - Others,20/05/2016,3654089,980.00,City Inn Express Limited
Adults Services,Adult Social Care,Physical Support - adults (18-64),"Failed Care Package Conversion		",Social Care - Others,20/05/2016,3654090,980.00,City Inn Express Limited
Adults Services,Adult Social Care,Physical Support - adults (18-64),"Failed Care Package Conversion		",Social Care - Others,20/05/2016,3654091,980.00,City Inn Express Limited
Adults Services,Adult Social Care,Physical Support - adults (18-64),"Failed Care Package Conversion		",Social Care - Others,20/05/2016,3654092,980.00,City Inn Express Limited
Adults Services,Adult Social Care,Support with Memory and Cognition - adults (18-64),Generic Care Packages NE Team -PS,Social Care - Direct Payments,20/05/2016,3654255,703.20,D D PAYROLL SERVICES
Adults Services,Adult Social Care,Support with Memory and Cognition - adults (18-64),Generic Care Packages NE Team -PS,Social Care - Direct Payments,20/05/2016,3654259,"2,411.40",D D PAYROLL SERVICES
Adults Services,Adult Social Care,Support with Memory and Cognition - adults (18-64),Generic Care Packages NE Team -PS,Social Care - Direct Payments,20/05/2016,3654263,862.63,D D PAYROLL SERVICES
Adults Services,Adult Social Care,Support with Memory and Cognition - adults (18-64),Generic Care Packages NE Team -PS,Social Care - Direct Payments,20/05/2016,3654295,879.77,D D PAYROLL SERVICES
Adults Services,Adult Social Care,Support with Memory and Cognition - adults (18-64),Generic Care Packages NE Team -PS,Social Care - Direct Payments,20/05/2016,3654428,"1,316.35",D D PAYROLL SERVICES
Adults Services,Adult Social Care,Support with Memory and Cognition - adults (18-64),Generic Care Packages NE Team -PS,Social Care - Direct Payments,20/05/2016,3654441,"1,121.87",D D PAYROLL SERVICES
Adults Services,Adult Social Care,Support with Memory and Cognition - adults (18-64),Generic Care Packages NE Team -PS,Social Care - Direct Payments,20/05/2016,3654577,"3,082.10",D D PAYROLL SERVICES
Adults Services,Adult Social Care,Support with Memory and Cognition - adults (18-64),Generic Care Packages NE Team -PS,Social Care - Direct Payments,20/05/2016,3654714,788.62,D D PAYROLL SERVICES
Adults Services,Adult Social Care,Support with Memory and Cognition - adults (18-64),Generic Care Packages NE Team -PS,Social Care - Direct Payments,20/05/2016,3654737,"1,234.50",D D PAYROLL SERVICES
Adults Services,Adult Social Care,Support with Memory and Cognition - adults (18-64),Generic Care Packages NE Team -PS,Social Care - Direct Payments,20/05/2016,3654755,786.85,D D PAYROLL SERVICES
Adults Services,Adult Social Care,Support with Memory and Cognition - adults (18-64),Generic Care Packages NW Team -PS,Social Care - Direct Payments,20/05/2016,3654277,670.45,D D PAYROLL SERVICES
Adults Services,Adult Social Care,Support with Memory and Cognition - adults (18-64),Generic Care Packages NW Team -PS,Social Care - Direct Payments,20/05/2016,3654323,"1,444.75",D D PAYROLL SERVICES
Adults Services,Adult Social Care,Support with Memory and Cognition - adults (18-64),Generic Care Packages NW Team -PS,Social Care - Direct Payments,20/05/2016,3654350,728.65,D D PAYROLL SERVICES
Adults Services,Adult Social Care,Support with Memory and Cognition - adults (18-64),Generic Care Packages NW Team -PS,Social Care - Direct Payments,20/05/2016,3654437,"3,979.72",D D PAYROLL SERVICES
Adults Services,Adult Social Care,Support with Memory and Cognition - adults (18-64),Generic Care Packages NW Team -PS,Social Care - Direct Payments,20/05/2016,3654470,904.75,D D PAYROLL SERVICES
Adults Services,Adult Social Care,Support with Memory and Cognition - adults (18-64),Generic Care Packages NW Team -PS,Social Care - Direct Payments,20/05/2016,3654485,"2,801.70",D D PAYROLL SERVICES
Adults Services,Adult Social Care,Support with Memory and Cognition - adults (18-64),Generic Care Packages NW Team -PS,Social Care - Direct Payments,20/05/2016,3654521,628.50,D D PAYROLL SERVICES
Adults Services,Adult Social Care,Support with Memory and Cognition - adults (18-64),Generic Care Packages NW Team -PS,Social Care - Direct Payments,20/05/2016,3654638,"6,390.00",D D PAYROLL SERVICES
Adults Services,Adult Social Care,Support with Memory and Cognition - adults (18-64),Generic Care Packages NW Team -PS,Social Care - Direct Payments,20/05/2016,3654690,"2,716.28",D D PAYROLL SERVICES
Adults Services,Adult Social Care,Support with Memory and Cognition - adults (18-64),Generic Care Packages NW Team -PS,Social Care - Direct Payments,20/05/2016,3654761,"6,475.50",D D PAYROLL SERVICES
Adults Services,Adult Social Care,Support with Memory and Cognition - adults (18-64),Generic Care Packages NW Team -PS,Social Care - Direct Payments,20/05/2016,3654777,590.40,D D PAYROLL SERVICES
Adults Services,Adult Social Care,Support with Memory and Cognition - adults (18-64),Generic Care Packages SE Team -PS,Social Care - Direct Payments,20/05/2016,3654250,"2,583.68",D D PAYROLL SERVICES
Adults Services,Adult Social Care,Support with Memory and Cognition - adults (18-64),Generic Care Packages SE Team -PS,Social Care - Direct Payments,20/05/2016,3654264,892.97,D D PAYROLL SERVICES
Adults Services,Adult Social Care,Support with Memory and Cognition - adults (18-64),Generic Care Packages SE Team -PS,Social Care - Direct Payments,20/05/2016,3654290,859.72,D D PAYROLL SERVICES
Adults Services,Adult Social Care,Support with Memory and Cognition - adults (18-64),Generic Care Packages SE Team -PS,Social Care - Direct Payments,20/05/2016,3654324,597.35,D D PAYROLL SERVICES
Adults Services,Adult Social Care,Support with Memory and Cognition - adults (18-64),Generic Care Packages SE Team -PS,Social Care - Direct Payments,20/05/2016,3654371,538.72,D D PAYROLL SERVICES
Adults Services,Adult Social Care,Support with Memory and Cognition - adults (18-64),Generic Care Packages SE Team -PS,Social Care - Direct Payments,20/05/2016,3654432,761.18,D D PAYROLL SERVICES
Adults Services,Adult Social Care,Support with Memory and Cognition - adults (18-64),Generic Care Packages SE Team -PS,Social Care - Direct Payments,20/05/2016,3654520,"1,021.72",D D PAYROLL SERVICES
Adults Services,Adult Social Care,Support with Memory and Cognition - adults (18-64),Generic Care Packages SE Team -PS,Social Care - Direct Payments,20/05/2016,3654681,518.48,D D PAYROLL SERVICES
Adults Services,Adult Social Care,Support with Memory and Cognition - adults (18-64),Generic Care Packages SE Team -PS,Social Care - Direct Payments,20/05/2016,3654735,730.80,D D PAYROLL SERVICES
Adults Services,Adult Social Care,Support with Memory and Cognition - adults (18-64),Generic Care Packages SE Team -PS,Social Care - Direct Payments,20/05/2016,3654740,500.40,D D PAYROLL SERVICES
Adults Services,Adult Social Care,Support with Memory and Cognition - adults (18-64),Generic Care Packages SE Team -PS,Social Care - Direct Payments,20/05/2016,3654773,675.47,D D PAYROLL SERVICES
Adults Services,Adult Social Care,Support with Memory and Cognition - adults (18-64),Generic Care Packages SE Team-SMC,Social Care - Direct Payments,20/05/2016,3654440,"13,386.08",D D PAYROLL SERVICES
Adults Services,Adult Social Care,Support with Memory and Cognition - adults (18-64),Generic Care Packages SW Team -SS,Social Care - Direct Payments,20/05/2016,3654275,"1,113.77",D D PAYROLL SERVICES
Adults Services,Adult Social Care,Support with Memory and Cognition - adults (18-64),Generic Care Packages SW Team -SS,Social Care - Direct Payments,20/05/2016,3654289,"1,241.23",D D PAYROLL SERVICES
Adults Services,Adult Social Care,Support with Memory and Cognition - adults (18-64),Generic Care Packages SW Team -SS,Social Care - Direct Payments,20/05/2016,3654351,626.57,D D PAYROLL SERVICES
Adults Services,Adult Social Care,Support with Memory and Cognition - adults (18-64),Generic Care Packages SW Team -SS,Social Care - Direct Payments,20/05/2016,3654404,669.55,D D PAYROLL SERVICES
Adults Services,Adult Social Care,Support with Memory and Cognition - adults (18-64),Generic Care Packages SW Team -SS,Social Care - Direct Payments,20/05/2016,3654445,664.15,D D PAYROLL SERVICES
Adults Services,Adult Social Care,Support with Memory and Cognition - adults (18-64),Generic Care Packages SW Team -SS,Social Care - Direct Payments,20/05/2016,3654446,687.22,D D PAYROLL SERVICES
Adults Services,Adult Social Care,Support with Memory and Cognition - adults (18-64),Generic Care Packages SW Team -SS,Social Care - Direct Payments,20/05/2016,3654493,692.95,D D PAYROLL SERVICES
Adults Services,Adult Social Care,Support with Memory and Cognition - adults (18-64),Generic Care Packages SW Team -SS,Social Care - Direct Payments,20/05/2016,3654507,"2,974.12",D D PAYROLL SERVICES
Adults Services,Adult Social Care,Support with Memory and Cognition - adults (18-64),Generic Care Packages SW Team -SS,Social Care - Direct Payments,20/05/2016,3654538,"1,200.08",D D PAYROLL SERVICES
Adults Services,Adult Social Care,Support with Memory and Cognition - adults (18-64),Generic Care Packages SW Team -SS,Social Care - Direct Payments,20/05/2016,3654557,"1,278.17",D D PAYROLL SERVICES
Adults Services,Adult Social Care,Support with Memory and Cognition - adults (18-64),Generic Care Packages SW Team -SS,Social Care - Direct Payments,20/05/2016,3654565,601.88,D D PAYROLL SERVICES
Adults Services,Adult Social Care,Support with Memory and Cognition - adults (18-64),Generic Care Packages SW Team -SS,Social Care - Direct Payments,20/05/2016,3654569,769.07,D D PAYROLL SERVICES
Adults Services,Adult Social Care,Support with Memory and Cognition - adults (18-64),Generic Care Packages SW Team -SS,Social Care - Direct Payments,20/05/2016,3654570,704.65,D D PAYROLL SERVICES
Adults Services,Adult Social Care,Support with Memory and Cognition - adults (18-64),Generic Care Packages SW Team -PS,Social Care - Direct Payments,20/05/2016,3654278,604.80,D D PAYROLL SERVICES
Adults Services,Adult Social Care,Support with Memory and Cognition - adults (18-64),Cmht For Older People,Social Care - Direct Payments,20/05/2016,3654508,"1,689.60",D D PAYROLL SERVICES
Adults Services,Adult Social Care,Support with Memory and Cognition - adults (18-64),Cmht Iod / Poplar South,Social Care - Direct Payments,20/05/2016,3654710,642.17,D D PAYROLL SERVICES
Adults Services,Adult Social Care,Support with Memory and Cognition - adults (18-64),Cmht Iod / Poplar South,Social Care - Direct Payments,20/05/2016,3654792,718.25,D D PAYROLL SERVICES
Adults Services,Adult Social Care,Support with Memory and Cognition - adults (18-64),CLDS Longer Term Support Teams,Social Care - Direct Payments,20/05/2016,3654232,"1,068.65",D D PAYROLL SERVICES
Adults Services,Adult Social Care,Support with Memory and Cognition - adults (18-64),CLDS Longer Term Support Teams,Social Care - Direct Payments,20/05/2016,3654287,"1,498.07",D D PAYROLL SERVICES
Adults Services,Adult Social Care,Support with Memory and Cognition - adults (18-64),CLDS Longer Term Support Teams,Social Care - Direct Payments,20/05/2016,3654297,771.43,D D PAYROLL SERVICES
Adults Services,Adult Social Care,Support with Memory and Cognition - adults (18-64),CLDS Longer Term Support Teams,Social Care - Direct Payments,20/05/2016,3654300,"3,724.85",D D PAYROLL SERVICES
Adults Services,Adult Social Care,Support with Memory and Cognition - adults (18-64),CLDS Longer Term Support Teams,Social Care - Direct Payments,20/05/2016,3654318,625.75,D D PAYROLL SERVICES
Adults Services,Adult Social Care,Support with Memory and Cognition - adults (18-64),CLDS Longer Term Support Teams,Social Care - Direct Payments,20/05/2016,3654333,"1,118.35",D D PAYROLL SERVICES
Adults Services,Adult Social Care,Support with Memory and Cognition - adults (18-64),CLDS Longer Term Support Teams,Social Care - Direct Payments,20/05/2016,3654335,805.50,D D PAYROLL SERVICES
Adults Services,Adult Social Care,Support with Memory and Cognition - adults (18-64),CLDS Longer Term Support Teams,Social Care - Direct Payments,20/05/2016,3654338,"3,217.15",D D PAYROLL SERVICES
Adults Services,Adult Social Care,Support with Memory and Cognition - adults (18-64),CLDS Longer Term Support Teams,Social Care - Direct Payments,20/05/2016,3654346,"1,342.28",D D PAYROLL SERVICES
Adults Services,Adult Social Care,Support with Memory and Cognition - adults (18-64),CLDS Longer Term Support Teams,Social Care - Direct Payments,20/05/2016,3654348,"2,275.03",D D PAYROLL SERVICES
Adults Services,Adult Social Care,Support with Memory and Cognition - adults (18-64),CLDS Longer Term Support Teams,Social Care - Direct Payments,20/05/2016,3654356,"1,333.63",D D PAYROLL SERVICES
Adults Services,Adult Social Care,Support with Memory and Cognition - adults (18-64),CLDS Longer Term Support Teams,Social Care - Direct Payments,20/05/2016,3654361,"4,178.57",D D PAYROLL SERVICES
Adults Services,Adult Social Care,Support with Memory and Cognition - adults (18-64),CLDS Longer Term Support Teams,Social Care - Direct Payments,20/05/2016,3654380,"3,912.65",D D PAYROLL SERVICES
Adults Services,Adult Social Care,Support with Memory and Cognition - adults (18-64),CLDS Longer Term Support Teams,Social Care - Direct Payments,20/05/2016,3654381,"1,868.83",D D PAYROLL SERVICES
Adults Services,Adult Social Care,Support with Memory and Cognition - adults (18-64),CLDS Longer Term Support Teams,Social Care - Direct Payments,20/05/2016,3654393,968.75,D D PAYROLL SERVICES
Adults Services,Adult Social Care,Support with Memory and Cognition - adults (18-64),CLDS Longer Term Support Teams,Social Care - Direct Payments,20/05/2016,3654394,"2,961.95",D D PAYROLL SERVICES
Adults Services,Adult Social Care,Support with Memory and Cognition - adults (18-64),CLDS Longer Term Support Teams,Social Care - Direct Payments,20/05/2016,3654405,871.93,D D PAYROLL SERVICES
Adults Services,Adult Social Care,Support with Memory and Cognition - adults (18-64),CLDS Longer Term Support Teams,Social Care - Direct Payments,20/05/2016,3654406,871.93,D D PAYROLL SERVICES
Adults Services,Adult Social Care,Support with Memory and Cognition - adults (18-64),CLDS Longer Term Support Teams,Social Care - Direct Payments,20/05/2016,3654429,629.32,D D PAYROLL SERVICES
Adults Services,Adult Social Care,Support with Memory and Cognition - adults (18-64),CLDS Longer Term Support Teams,Social Care - Direct Payments,20/05/2016,3654453,957.43,D D PAYROLL SERVICES
Adults Services,Adult Social Care,Support with Memory and Cognition - adults (18-64),CLDS Longer Term Support Teams,Social Care - Direct Payments,20/05/2016,3654512,"8,120.32",D D PAYROLL SERVICES
Adults Services,Adult Social Care,Support with Memory and Cognition - adults (18-64),CLDS Longer Term Support Teams,Social Care - Direct Payments,20/05/2016,3654513,"4,265.40",D D PAYROLL SERVICES
Adults Services,Adult Social Care,Support with Memory and Cognition - adults (18-64),CLDS Longer Term Support Teams,Social Care - Direct Payments,20/05/2016,3654526,526.50,D D PAYROLL SERVICES
Adults Services,Adult Social Care,Support with Memory and Cognition - adults (18-64),CLDS Longer Term Support Teams,Social Care - Direct Payments,20/05/2016,3654540,"1,371.73",D D PAYROLL SERVICES
Adults Services,Adult Social Care,Support with Memory and Cognition - adults (18-64),CLDS Longer Term Support Teams,Social Care - Direct Payments,20/05/2016,3654549,"11,718.38",D D PAYROLL SERVICES
Adults Services,Adult Social Care,Support with Memory and Cognition - adults (18-64),CLDS Longer Term Support Teams,Social Care - Direct Payments,20/05/2016,3654559,"3,106.37",D D PAYROLL SERVICES
Adults Services,Adult Social Care,Support with Memory and Cognition - adults (18-64),CLDS Longer Term Support Teams,Social Care - Direct Payments,20/05/2016,3654561,"1,762.55",D D PAYROLL SERVICES
Adults Services,Adult Social Care,Support with Memory and Cognition - adults (18-64),CLDS Longer Term Support Teams,Social Care - Direct Payments,20/05/2016,3654568,522.30,D D PAYROLL SERVICES
Adults Services,Adult Social Care,Support with Memory and Cognition - adults (18-64),CLDS Longer Term Support Teams,Social Care - Direct Payments,20/05/2016,3654746,"1,885.50",D D PAYROLL SERVICES
Adults Services,Adult Social Care,Physical Support - adults (18-64),"Failed Care Package Conversion		",Social Care - Others,20/05/2016,3654254,"2,442.85",D D PAYROLL SERVICES
Adults Services,Adult Social Care,Physical Support - adults (18-64),"Failed Care Package Conversion		",Social Care - Others,20/05/2016,3654280,"1,288.03",D D PAYROLL SERVICES
Adults Services,Adult Social Care,Physical Support - adults (18-64),"Failed Care Package Conversion		",Social Care - Others,20/05/2016,3654283,"1,755.00",D D PAYROLL SERVICES
Adults Services,Adult Social Care,Physical Support - adults (18-64),"Failed Care Package Conversion		",Social Care - Others,20/05/2016,3654319,"1,004.53",D D PAYROLL SERVICES
Adults Services,Adult Social Care,Physical Support - adults (18-64),"Failed Care Package Conversion		",Social Care - Others,20/05/2016,3654574,"1,360.25",D D PAYROLL SERVICES
Adults Services,Adult Social Care,Support with Memory and Cognition - adults (18-64),Generic Care Packages NE Team -PS,Social Care - Direct Payments,20/05/2016,3654257,"1,102.07",DAVID HOWARD LTD CLIENT ACCOUNT
Adults Services,Adult Social Care,Support with Memory and Cognition - adults (18-64),Generic Care Packages NE Team -PS,Social Care - Direct Payments,20/05/2016,3654271,874.97,DAVID HOWARD LTD CLIENT ACCOUNT
Adults Services,Adult Social Care,Support with Memory and Cognition - adults (18-64),Generic Care Packages NE Team -PS,Social Care - Direct Payments,20/05/2016,3654296,724.50,DAVID HOWARD LTD CLIENT ACCOUNT
Adults Services,Adult Social Care,Support with Memory and Cognition - adults (18-64),Generic Care Packages NE Team -PS,Social Care - Direct Payments,20/05/2016,3654311,"3,513.55",DAVID HOWARD LTD CLIENT ACCOUNT
Adults Services,Adult Social Care,Support with Memory and Cognition - adults (18-64),Generic Care Packages NE Team -PS,Social Care - Direct Payments,20/05/2016,3654342,510.13,DAVID HOWARD LTD CLIENT ACCOUNT
Adults Services,Adult Social Care,Support with Memory and Cognition - adults (18-64),Generic Care Packages NE Team -PS,Social Care - Direct Payments,20/05/2016,3654402,603.43,DAVID HOWARD LTD CLIENT ACCOUNT
Adults Services,Adult Social Care,Support with Memory and Cognition - adults (18-64),Generic Care Packages NE Team -PS,Social Care - Direct Payments,20/05/2016,3654412,"1,815.35",DAVID HOWARD LTD CLIENT ACCOUNT
Adults Services,Adult Social Care,Support with Memory and Cognition - adults (18-64),Generic Care Packages NE Team -PS,Social Care - Direct Payments,20/05/2016,3654420,696.60,DAVID HOWARD LTD CLIENT ACCOUNT
Adults Services,Adult Social Care,Support with Memory and Cognition - adults (18-64),Generic Care Packages NE Team -PS,Social Care - Direct Payments,20/05/2016,3654468,804.43,DAVID HOWARD LTD CLIENT ACCOUNT
Adults Services,Adult Social Care,Support with Memory and Cognition - adults (18-64),Generic Care Packages NE Team -PS,Social Care - Direct Payments,20/05/2016,3654546,"1,103.83",DAVID HOWARD LTD CLIENT ACCOUNT
Adults Services,Adult Social Care,Support with Memory and Cognition - adults (18-64),Generic Care Packages NE Team -PS,Social Care - Direct Payments,20/05/2016,3654548,969.98,DAVID HOWARD LTD CLIENT ACCOUNT
Adults Services,Adult Social Care,Support with Memory and Cognition - adults (18-64),Generic Care Packages NE Team -PS,Social Care - Direct Payments,20/05/2016,3654551,"1,151.15",DAVID HOWARD LTD CLIENT ACCOUNT
Adults Services,Adult Social Care,Support with Memory and Cognition - adults (18-64),Generic Care Packages NE Team -PS,Social Care - Direct Payments,20/05/2016,3654590,"1,429.33",DAVID HOWARD LTD CLIENT ACCOUNT
Adults Services,Adult Social Care,Support with Memory and Cognition - adults (18-64),Generic Care Packages NE Team -PS,Social Care - Direct Payments,20/05/2016,3654607,"1,245.73",DAVID HOWARD LTD CLIENT ACCOUNT
Adults Services,Adult Social Care,Support with Memory and Cognition - adults (18-64),Generic Care Packages NE Team -PS,Social Care - Direct Payments,20/05/2016,3654770,"1,472.45",DAVID HOWARD LTD CLIENT ACCOUNT
Adults Services,Adult Social Care,Support with Memory and Cognition - adults (18-64),Generic Care Packages NE Team -PS,Social Care - Direct Payments,20/05/2016,3654786,572.48,DAVID HOWARD LTD CLIENT ACCOUNT
Adults Services,Adult Social Care,Support with Memory and Cognition - adults (18-64),Generic Care Packages NE Team -SP,Social Care - Direct Payments,20/05/2016,3654680,843.00,DAVID HOWARD LTD CLIENT ACCOUNT
Adults Services,Adult Social Care,Support with Memory and Cognition - adults (18-64),Generic Care Packages NE Team -SI,Social Care - Direct Payments,20/05/2016,3654253,"1,133.95",DAVID HOWARD LTD CLIENT ACCOUNT
Adults Services,Adult Social Care,Support with Memory and Cognition - adults (18-64),Generic Care Packages NE Team -SI,Social Care - Direct Payments,20/05/2016,3654310,"2,103.25",DAVID HOWARD LTD CLIENT ACCOUNT
Adults Services,Adult Social Care,Support with Memory and Cognition - adults (18-64),Generic Care Packages NW Team -PS,Social Care - Direct Payments,20/05/2016,3654281,986.10,DAVID HOWARD LTD CLIENT ACCOUNT
Adults Services,Adult Social Care,Support with Memory and Cognition - adults (18-64),Generic Care Packages NW Team -PS,Social Care - Direct Payments,20/05/2016,3654303,824.70,DAVID HOWARD LTD CLIENT ACCOUNT
Adults Services,Adult Social Care,Support with Memory and Cognition - adults (18-64),Generic Care Packages NW Team -PS,Social Care - Direct Payments,20/05/2016,3654328,722.05,DAVID HOWARD LTD CLIENT ACCOUNT
Adults Services,Adult Social Care,Support with Memory and Cognition - adults (18-64),Generic Care Packages NW Team -PS,Social Care - Direct Payments,20/05/2016,3654334,"1,019.57",DAVID HOWARD LTD CLIENT ACCOUNT
Adults Services,Adult Social Care,Support with Memory and Cognition - adults (18-64),Generic Care Packages NW Team -PS,Social Care - Direct Payments,20/05/2016,3654359,"4,110.60",DAVID HOWARD LTD CLIENT ACCOUNT
Adults Services,Adult Social Care,Support with Memory and Cognition - adults (18-64),Generic Care Packages NW Team -PS,Social Care - Direct Payments,20/05/2016,3654364,588.13,DAVID HOWARD LTD CLIENT ACCOUNT
Adults Services,Adult Social Care,Support with Memory and Cognition - adults (18-64),Generic Care Packages NW Team -PS,Social Care - Direct Payments,20/05/2016,3654370,521.27,DAVID HOWARD LTD CLIENT ACCOUNT
Adults Services,Adult Social Care,Support with Memory and Cognition - adults (18-64),Generic Care Packages NW Team -PS,Social Care - Direct Payments,20/05/2016,3654386,"1,131.30",DAVID HOWARD LTD CLIENT ACCOUNT
Adults Services,Adult Social Care,Support with Memory and Cognition - adults (18-64),Generic Care Packages NW Team -PS,Social Care - Direct Payments,20/05/2016,3654391,614.62,DAVID HOWARD LTD CLIENT ACCOUNT
Adults Services,Adult Social Care,Support with Memory and Cognition - adults (18-64),Generic Care Packages NW Team -PS,Social Care - Direct Payments,20/05/2016,3654397,"7,574.78",DAVID HOWARD LTD CLIENT ACCOUNT
Adults Services,Adult Social Care,Support with Memory and Cognition - adults (18-64),Generic Care Packages NW Team -PS,Social Care - Direct Payments,20/05/2016,3654414,687.30,DAVID HOWARD LTD CLIENT ACCOUNT
Adults Services,Adult Social Care,Support with Memory and Cognition - adults (18-64),Generic Care Packages NW Team -PS,Social Care - Direct Payments,20/05/2016,3654419,844.93,DAVID HOWARD LTD CLIENT ACCOUNT
Adults Services,Adult Social Care,Support with Memory and Cognition - adults (18-64),Generic Care Packages NW Team -PS,Social Care - Direct Payments,20/05/2016,3654431,"1,367.78",DAVID HOWARD LTD CLIENT ACCOUNT
Adults Services,Adult Social Care,Support with Memory and Cognition - adults (18-64),Generic Care Packages NW Team -PS,Social Care - Direct Payments,20/05/2016,3654482,798.08,DAVID HOWARD LTD CLIENT ACCOUNT
Adults Services,Adult Social Care,Support with Memory and Cognition - adults (18-64),Generic Care Packages NW Team -PS,Social Care - Direct Payments,20/05/2016,3654487,"2,286.55",DAVID HOWARD LTD CLIENT ACCOUNT
Adults Services,Adult Social Care,Support with Memory and Cognition - adults (18-64),Generic Care Packages NW Team -PS,Social Care - Direct Payments,20/05/2016,3654500,876.68,DAVID HOWARD LTD CLIENT ACCOUNT
Adults Services,Adult Social Care,Support with Memory and Cognition - adults (18-64),Generic Care Packages NW Team -PS,Social Care - Direct Payments,20/05/2016,3654510,525.55,DAVID HOWARD LTD CLIENT ACCOUNT
Adults Services,Adult Social Care,Support with Memory and Cognition - adults (18-64),Generic Care Packages NW Team -PS,Social Care - Direct Payments,20/05/2016,3654558,"1,131.22",DAVID HOWARD LTD CLIENT ACCOUNT
Adults Services,Adult Social Care,Support with Memory and Cognition - adults (18-64),Generic Care Packages NW Team -PS,Social Care - Direct Payments,20/05/2016,3654566,"4,602.38",DAVID HOWARD LTD CLIENT ACCOUNT
Adults Services,Adult Social Care,Support with Memory and Cognition - adults (18-64),Generic Care Packages NW Team -PS,Social Care - Direct Payments,20/05/2016,3654654,"1,680.00",DAVID HOWARD LTD CLIENT ACCOUNT
Adults Services,Adult Social Care,Support with Memory and Cognition - adults (18-64),Generic Care Packages NW Team -PS,Social Care - Direct Payments,20/05/2016,3654668,627.43,DAVID HOWARD LTD CLIENT ACCOUNT
Adults Services,Adult Social Care,Support with Memory and Cognition - adults (18-64),Generic Care Packages NW Team -PS,Social Care - Direct Payments,20/05/2016,3654736,562.12,DAVID HOWARD LTD CLIENT ACCOUNT
Adults Services,Adult Social Care,Support with Memory and Cognition - adults (18-64),Generic Care Packages NW Team -PS,Social Care - Direct Payments,20/05/2016,3654766,536.70,DAVID HOWARD LTD CLIENT ACCOUNT
Adults Services,Adult Social Care,Support with Memory and Cognition - adults (18-64),Generic Care Packages NW Team -PS,Social Care - Direct Payments,20/05/2016,3654782,637.80,DAVID HOWARD LTD CLIENT ACCOUNT
Adults Services,Adult Social Care,Support with Memory and Cognition - adults (18-64),Generic Care Packages NW Team -PS,Social Care - Direct Payments,20/05/2016,3654793,938.10,DAVID HOWARD LTD CLIENT ACCOUNT
Adults Services,Adult Social Care,Support with Memory and Cognition - adults (18-64),Generic Care Packages NW Team -SP,Social Care - Direct Payments,20/05/2016,3654471,526.75,DAVID HOWARD LTD CLIENT ACCOUNT
Adults Services,Adult Social Care,Support with Memory and Cognition - adults (18-64),Generic Care Packages SE Team -PS,Social Care - Direct Payments,20/05/2016,3654251,"13,290.30",DAVID HOWARD LTD CLIENT ACCOUNT
Adults Services,Adult Social Care,Support with Memory and Cognition - adults (18-64),Generic Care Packages SE Team -PS,Social Care - Direct Payments,20/05/2016,3654265,"1,060.25",DAVID HOWARD LTD CLIENT ACCOUNT
Adults Services,Adult Social Care,Support with Memory and Cognition - adults (18-64),Generic Care Packages SE Team -PS,Social Care - Direct Payments,20/05/2016,3654267,991.63,DAVID HOWARD LTD CLIENT ACCOUNT
Adults Services,Adult Social Care,Support with Memory and Cognition - adults (18-64),Generic Care Packages SE Team -PS,Social Care - Direct Payments,20/05/2016,3654272,653.27,DAVID HOWARD LTD CLIENT ACCOUNT
Adults Services,Adult Social Care,Support with Memory and Cognition - adults (18-64),Generic Care Packages SE Team -PS,Social Care - Direct Payments,20/05/2016,3654302,751.15,DAVID HOWARD LTD CLIENT ACCOUNT
Adults Services,Adult Social Care,Support with Memory and Cognition - adults (18-64),Generic Care Packages SE Team -PS,Social Care - Direct Payments,20/05/2016,3654313,"1,445.70",DAVID HOWARD LTD CLIENT ACCOUNT
Adults Services,Adult Social Care,Support with Memory and Cognition - adults (18-64),Generic Care Packages SE Team -PS,Social Care - Direct Payments,20/05/2016,3654340,"1,068.17",DAVID HOWARD LTD CLIENT ACCOUNT
Adults Services,Adult Social Care,Support with Memory and Cognition - adults (18-64),Generic Care Packages SE Team -PS,Social Care - Direct Payments,20/05/2016,3654378,551.65,DAVID HOWARD LTD CLIENT ACCOUNT
Adults Services,Adult Social Care,Support with Memory and Cognition - adults (18-64),Generic Care Packages SE Team -PS,Social Care - Direct Payments,20/05/2016,3654392,"1,225.45",DAVID HOWARD LTD CLIENT ACCOUNT
Adults Services,Adult Social Care,Support with Memory and Cognition - adults (18-64),Generic Care Packages SE Team -PS,Social Care - Direct Payments,20/05/2016,3654425,"6,772.80",DAVID HOWARD LTD CLIENT ACCOUNT
Adults Services,Adult Social Care,Support with Memory and Cognition - adults (18-64),Generic Care Packages SE Team -PS,Social Care - Direct Payments,20/05/2016,3654430,"1,013.48",DAVID HOWARD LTD CLIENT ACCOUNT
Adults Services,Adult Social Care,Support with Memory and Cognition - adults (18-64),Generic Care Packages SE Team -PS,Social Care - Direct Payments,20/05/2016,3654433,895.97,DAVID HOWARD LTD CLIENT ACCOUNT
Adults Services,Adult Social Care,Support with Memory and Cognition - adults (18-64),Generic Care Packages SE Team -PS,Social Care - Direct Payments,20/05/2016,3654435,588.05,DAVID HOWARD LTD CLIENT ACCOUNT
Adults Services,Adult Social Care,Support with Memory and Cognition - adults (18-64),Generic Care Packages SE Team -PS,Social Care - Direct Payments,20/05/2016,3654444,"1,413.30",DAVID HOWARD LTD CLIENT ACCOUNT
Adults Services,Adult Social Care,Support with Memory and Cognition - adults (18-64),Generic Care Packages SE Team -PS,Social Care - Direct Payments,20/05/2016,3654489,"2,914.07",DAVID HOWARD LTD CLIENT ACCOUNT
Adults Services,Adult Social Care,Support with Memory and Cognition - adults (18-64),Generic Care Packages SE Team -PS,Social Care - Direct Payments,20/05/2016,3654515,595.67,DAVID HOWARD LTD CLIENT ACCOUNT
Adults Services,Adult Social Care,Support with Memory and Cognition - adults (18-64),Generic Care Packages SE Team -PS,Social Care - Direct Payments,20/05/2016,3654532,629.27,DAVID HOWARD LTD CLIENT ACCOUNT
Adults Services,Adult Social Care,Support with Memory and Cognition - adults (18-64),Generic Care Packages SE Team -PS,Social Care - Direct Payments,20/05/2016,3654597,880.12,DAVID HOWARD LTD CLIENT ACCOUNT
Adults Services,Adult Social Care,Support with Memory and Cognition - adults (18-64),Generic Care Packages SE Team -PS,Social Care - Direct Payments,20/05/2016,3654604,"2,986.45",DAVID HOWARD LTD CLIENT ACCOUNT
Adults Services,Adult Social Care,Support with Memory and Cognition - adults (18-64),Generic Care Packages SE Team -PS,Social Care - Direct Payments,20/05/2016,3654614,725.35,DAVID HOWARD LTD CLIENT ACCOUNT
Adults Services,Adult Social Care,Support with Memory and Cognition - adults (18-64),Generic Care Packages SE Team -PS,Social Care - Direct Payments,20/05/2016,3654621,949.20,DAVID HOWARD LTD CLIENT ACCOUNT
Adults Services,Adult Social Care,Support with Memory and Cognition - adults (18-64),Generic Care Packages SE Team -PS,Social Care - Direct Payments,20/05/2016,3654655,"1,377.30",DAVID HOWARD LTD CLIENT ACCOUNT
Adults Services,Adult Social Care,Support with Memory and Cognition - adults (18-64),Generic Care Packages SE Team -PS,Social Care - Direct Payments,20/05/2016,3654675,982.20,DAVID HOWARD LTD CLIENT ACCOUNT
Adults Services,Adult Social Care,Support with Memory and Cognition - adults (18-64),Generic Care Packages SE Team -PS,Social Care - Direct Payments,20/05/2016,3654683,565.33,DAVID HOWARD LTD CLIENT ACCOUNT
Adults Services,Adult Social Care,Support with Memory and Cognition - adults (18-64),Generic Care Packages SE Team -PS,Social Care - Direct Payments,20/05/2016,3654708,782.32,DAVID HOWARD LTD CLIENT ACCOUNT
Adults Services,Adult Social Care,Support with Memory and Cognition - adults (18-64),Generic Care Packages SE Team -PS,Social Care - Direct Payments,20/05/2016,3654709,726.82,DAVID HOWARD LTD CLIENT ACCOUNT
Adults Services,Adult Social Care,Support with Memory and Cognition - adults (18-64),Generic Care Packages SE Team -PS,Social Care - Direct Payments,20/05/2016,3654712,823.66,DAVID HOWARD LTD CLIENT ACCOUNT
Adults Services,Adult Social Care,Support with Memory and Cognition - adults (18-64),Generic Care Packages SE Team -PS,Social Care - Direct Payments,20/05/2016,3654727,592.85,DAVID HOWARD LTD CLIENT ACCOUNT
Adults Services,Adult Social Care,Support with Memory and Cognition - adults (18-64),Generic Care Packages SE Team -PS,Social Care - Direct Payments,20/05/2016,3654730,621.65,DAVID HOWARD LTD CLIENT ACCOUNT
Adults Services,Adult Social Care,Support with Memory and Cognition - adults (18-64),Generic Care Packages SE Team -PS,Social Care - Direct Payments,20/05/2016,3654732,"1,145.10",DAVID HOWARD LTD CLIENT ACCOUNT
Adults Services,Adult Social Care,Support with Memory and Cognition - adults (18-64),Generic Care Packages SE Team -PS,Social Care - Direct Payments,20/05/2016,3654747,764.40,DAVID HOWARD LTD CLIENT ACCOUNT
Adults Services,Adult Social Care,Support with Memory and Cognition - adults (18-64),Generic Care Packages SE Team -PS,Social Care - Direct Payments,20/05/2016,3654748,"1,713.60",DAVID HOWARD LTD CLIENT ACCOUNT
Adults Services,Adult Social Care,Support with Memory and Cognition - adults (18-64),Generic Care Packages SE Team -PS,Social Care - Direct Payments,20/05/2016,3654764,893.15,DAVID HOWARD LTD CLIENT ACCOUNT
Adults Services,Adult Social Care,Support with Memory and Cognition - adults (18-64),Generic Care Packages SE Team -PS,Social Care - Direct Payments,20/05/2016,3654780,855.17,DAVID HOWARD LTD CLIENT ACCOUNT
Adults Services,Adult Social Care,Support with Memory and Cognition - adults (18-64),Generic Care Packages SE Team -PS,Social Care - Direct Payments,20/05/2016,3654794,"2,264.83",DAVID HOWARD LTD CLIENT ACCOUNT
Adults Services,Adult Social Care,Support with Memory and Cognition - adults (18-64),Generic Care Packages SE Team -SP,Social Care - Direct Payments,20/05/2016,3654677,686.75,DAVID HOWARD LTD CLIENT ACCOUNT
Adults Services,Adult Social Care,Support with Memory and Cognition - adults (18-64),Generic Care Packages SE Team-SMC,Social Care - Direct Payments,20/05/2016,3654707,"1,172.40",DAVID HOWARD LTD CLIENT ACCOUNT
Adults Services,Adult Social Care,Support with Memory and Cognition - adults (18-64),Generic Care Packages SE Team-SMC,Social Care - Direct Payments,20/05/2016,3654752,679.58,DAVID HOWARD LTD CLIENT ACCOUNT
Adults Services,Adult Social Care,Support with Memory and Cognition - adults (18-64),Generic Care Packages SW Team -SS,Social Care - Direct Payments,20/05/2016,3654238,"1,048.80",DAVID HOWARD LTD CLIENT ACCOUNT
Adults Services,Adult Social Care,Support with Memory and Cognition - adults (18-64),Generic Care Packages SW Team -SS,Social Care - Direct Payments,20/05/2016,3654269,"2,449.20",DAVID HOWARD LTD CLIENT ACCOUNT
Adults Services,Adult Social Care,Support with Memory and Cognition - adults (18-64),Generic Care Packages SW Team -SS,Social Care - Direct Payments,20/05/2016,3654308,"1,115.70",DAVID HOWARD LTD CLIENT ACCOUNT
Adults Services,Adult Social Care,Support with Memory and Cognition - adults (18-64),Generic Care Packages SW Team -SS,Social Care - Direct Payments,20/05/2016,3654317,"1,251.65",DAVID HOWARD LTD CLIENT ACCOUNT
Adults Services,Adult Social Care,Support with Memory and Cognition - adults (18-64),Generic Care Packages SW Team -SS,Social Care - Direct Payments,20/05/2016,3654345,742.58,DAVID HOWARD LTD CLIENT ACCOUNT
Adults Services,Adult Social Care,Support with Memory and Cognition - adults (18-64),Generic Care Packages SW Team -SS,Social Care - Direct Payments,20/05/2016,3654362,698.40,DAVID HOWARD LTD CLIENT ACCOUNT
Adults Services,Adult Social Care,Support with Memory and Cognition - adults (18-64),Generic Care Packages SW Team -SS,Social Care - Direct Payments,20/05/2016,3654373,"2,095.93",DAVID HOWARD LTD CLIENT ACCOUNT
Adults Services,Adult Social Care,Support with Memory and Cognition - adults (18-64),Generic Care Packages SW Team -SS,Social Care - Direct Payments,20/05/2016,3654389,"1,201.20",DAVID HOWARD LTD CLIENT ACCOUNT
Adults Services,Adult Social Care,Support with Memory and Cognition - adults (18-64),Generic Care Packages SW Team -SS,Social Care - Direct Payments,20/05/2016,3654407,748.93,DAVID HOWARD LTD CLIENT ACCOUNT
Adults Services,Adult Social Care,Support with Memory and Cognition - adults (18-64),Generic Care Packages SW Team -SS,Social Care - Direct Payments,20/05/2016,3654408,590.10,DAVID HOWARD LTD CLIENT ACCOUNT
Adults Services,Adult Social Care,Support with Memory and Cognition - adults (18-64),Generic Care Packages SW Team -SS,Social Care - Direct Payments,20/05/2016,3654424,678.90,DAVID HOWARD LTD CLIENT ACCOUNT
Adults Services,Adult Social Care,Support with Memory and Cognition - adults (18-64),Generic Care Packages SW Team -SS,Social Care - Direct Payments,20/05/2016,3654472,542.27,DAVID HOWARD LTD CLIENT ACCOUNT
Adults Services,Adult Social Care,Support with Memory and Cognition - adults (18-64),Generic Care Packages SW Team -SS,Social Care - Direct Payments,20/05/2016,3654496,724.12,DAVID HOWARD LTD CLIENT ACCOUNT
Adults Services,Adult Social Care,Support with Memory and Cognition - adults (18-64),Generic Care Packages SW Team -SS,Social Care - Direct Payments,20/05/2016,3654497,"1,043.02",DAVID HOWARD LTD CLIENT ACCOUNT
Adults Services,Adult Social Care,Support with Memory and Cognition - adults (18-64),Generic Care Packages SW Team -SS,Social Care - Direct Payments,20/05/2016,3654511,"1,442.83",DAVID HOWARD LTD CLIENT ACCOUNT
Adults Services,Adult Social Care,Support with Memory and Cognition - adults (18-64),Generic Care Packages SW Team -SS,Social Care - Direct Payments,20/05/2016,3654530,914.18,DAVID HOWARD LTD CLIENT ACCOUNT
Adults Services,Adult Social Care,Support with Memory and Cognition - adults (18-64),Generic Care Packages SW Team -SS,Social Care - Direct Payments,20/05/2016,3654547,701.10,DAVID HOWARD LTD CLIENT ACCOUNT
Adults Services,Adult Social Care,Support with Memory and Cognition - adults (18-64),Generic Care Packages SW Team -SS,Social Care - Direct Payments,20/05/2016,3654553,944.83,DAVID HOWARD LTD CLIENT ACCOUNT
Adults Services,Adult Social Care,Support with Memory and Cognition - adults (18-64),Generic Care Packages SW Team -SS,Social Care - Direct Payments,20/05/2016,3654564,916.50,DAVID HOWARD LTD CLIENT ACCOUNT
Adults Services,Adult Social Care,Support with Memory and Cognition - adults (18-64),Generic Care Packages SW Team -SS,Social Care - Direct Payments,20/05/2016,3654610,"-4,775.80",DAVID HOWARD LTD CLIENT ACCOUNT
Adults Services,Adult Social Care,Support with Memory and Cognition - adults (18-64),Generic Care Packages SW Team -SS,Social Care - Direct Payments,20/05/2016,3654648,"1,091.57",DAVID HOWARD LTD CLIENT ACCOUNT
Adults Services,Adult Social Care,Support with Memory and Cognition - adults (18-64),Generic Care Packages SW Team -SS,Social Care - Direct Payments,20/05/2016,3654670,510.30,DAVID HOWARD LTD CLIENT ACCOUNT
Adults Services,Adult Social Care,Support with Memory and Cognition - adults (18-64),Generic Care Packages SW Team -SS,Social Care - Direct Payments,20/05/2016,3654711,525.00,DAVID HOWARD LTD CLIENT ACCOUNT
Adults Services,Adult Social Care,Support with Memory and Cognition - adults (18-64),Generic Care Packages SW Team -SS,Social Care - Direct Payments,20/05/2016,3654726,677.40,DAVID HOWARD LTD CLIENT ACCOUNT
Adults Services,Adult Social Care,Support with Memory and Cognition - adults (18-64),Generic Care Packages SW Team -SS,Social Care - Direct Payments,20/05/2016,3654765,580.28,DAVID HOWARD LTD CLIENT ACCOUNT
Adults Services,Adult Social Care,Support with Memory and Cognition - adults (18-64),Generic Care Packages SW Team -SS,Social Care - Direct Payments,20/05/2016,3654784,957.00,DAVID HOWARD LTD CLIENT ACCOUNT
Adults Services,Adult Social Care,Support with Memory and Cognition - adults (18-64),Generic Care Packages SW Team -SC,Social Care - Direct Payments,20/05/2016,3654344,625.25,DAVID HOWARD LTD CLIENT ACCOUNT
Adults Services,Adult Social Care,Support with Memory and Cognition - adults (18-64),Cmht Bethnal Green,Social Care - Direct Payments,20/05/2016,3654304,688.33,DAVID HOWARD LTD CLIENT ACCOUNT
Adults Services,Adult Social Care,Support with Memory and Cognition - adults (18-64),Cmht For Older People,Social Care - Direct Payments,20/05/2016,3654552,"2,404.20",DAVID HOWARD LTD CLIENT ACCOUNT
Adults Services,Adult Social Care,Support with Memory and Cognition - adults (18-64),Cmht Iod / Poplar South,Social Care - Direct Payments,20/05/2016,3654385,506.57,DAVID HOWARD LTD CLIENT ACCOUNT
Adults Services,Adult Social Care,Support with Memory and Cognition - adults (18-64),Cmht Stepney / Wapping,Social Care - Direct Payments,20/05/2016,3654533,611.05,DAVID HOWARD LTD CLIENT ACCOUNT
Adults Services,Adult Social Care,Support with Memory and Cognition - adults (18-64),CLDS Longer Term Support Teams,Social Care - Direct Payments,20/05/2016,3654256,"1,088.65",DAVID HOWARD LTD CLIENT ACCOUNT
Adults Services,Adult Social Care,Support with Memory and Cognition - adults (18-64),CLDS Longer Term Support Teams,Social Care - Direct Payments,20/05/2016,3654276,"1,824.77",DAVID HOWARD LTD CLIENT ACCOUNT
Adults Services,Adult Social Care,Support with Memory and Cognition - adults (18-64),CLDS Longer Term Support Teams,Social Care - Direct Payments,20/05/2016,3654312,"2,835.87",DAVID HOWARD LTD CLIENT ACCOUNT
Adults Services,Adult Social Care,Support with Memory and Cognition - adults (18-64),CLDS Longer Term Support Teams,Social Care - Direct Payments,20/05/2016,3654314,"3,282.82",DAVID HOWARD LTD CLIENT ACCOUNT
Adults Services,Adult Social Care,Support with Memory and Cognition - adults (18-64),CLDS Longer Term Support Teams,Social Care - Direct Payments,20/05/2016,3654322,"-1,345.95",DAVID HOWARD LTD CLIENT ACCOUNT
Adults Services,Adult Social Care,Support with Memory and Cognition - adults (18-64),CLDS Longer Term Support Teams,Social Care - Direct Payments,20/05/2016,3654325,"5,012.95",DAVID HOWARD LTD CLIENT ACCOUNT
Adults Services,Adult Social Care,Support with Memory and Cognition - adults (18-64),CLDS Longer Term Support Teams,Social Care - Direct Payments,20/05/2016,3654327,741.60,DAVID HOWARD LTD CLIENT ACCOUNT
Adults Services,Adult Social Care,Support with Memory and Cognition - adults (18-64),CLDS Longer Term Support Teams,Social Care - Direct Payments,20/05/2016,3654375,"2,056.72",DAVID HOWARD LTD CLIENT ACCOUNT
Adults Services,Adult Social Care,Support with Memory and Cognition - adults (18-64),CLDS Longer Term Support Teams,Social Care - Direct Payments,20/05/2016,3654396,"2,785.72",DAVID HOWARD LTD CLIENT ACCOUNT
Adults Services,Adult Social Care,Support with Memory and Cognition - adults (18-64),CLDS Longer Term Support Teams,Social Care - Direct Payments,20/05/2016,3654403,"1,260.95",DAVID HOWARD LTD CLIENT ACCOUNT
Adults Services,Adult Social Care,Support with Memory and Cognition - adults (18-64),CLDS Longer Term Support Teams,Social Care - Direct Payments,20/05/2016,3654409,"1,918.12",DAVID HOWARD LTD CLIENT ACCOUNT
Adults Services,Adult Social Care,Support with Memory and Cognition - adults (18-64),CLDS Longer Term Support Teams,Social Care - Direct Payments,20/05/2016,3654410,"1,084.75",DAVID HOWARD LTD CLIENT ACCOUNT
Adults Services,Adult Social Care,Support with Memory and Cognition - adults (18-64),CLDS Longer Term Support Teams,Social Care - Direct Payments,20/05/2016,3654411,"1,612.50",DAVID HOWARD LTD CLIENT ACCOUNT
Adults Services,Adult Social Care,Support with Memory and Cognition - adults (18-64),CLDS Longer Term Support Teams,Social Care - Direct Payments,20/05/2016,3654469,"7,410.22",DAVID HOWARD LTD CLIENT ACCOUNT
Adults Services,Adult Social Care,Support with Memory and Cognition - adults (18-64),CLDS Longer Term Support Teams,Social Care - Direct Payments,20/05/2016,3654475,"2,618.78",DAVID HOWARD LTD CLIENT ACCOUNT
Adults Services,Adult Social Care,Support with Memory and Cognition - adults (18-64),CLDS Longer Term Support Teams,Social Care - Direct Payments,20/05/2016,3654476,"2,152.88",DAVID HOWARD LTD CLIENT ACCOUNT
Adults Services,Adult Social Care,Support with Memory and Cognition - adults (18-64),CLDS Longer Term Support Teams,Social Care - Direct Payments,20/05/2016,3654477,"3,347.92",DAVID HOWARD LTD CLIENT ACCOUNT
Adults Services,Adult Social Care,Support with Memory and Cognition - adults (18-64),CLDS Longer Term Support Teams,Social Care - Direct Payments,20/05/2016,3654509,"1,453.88",DAVID HOWARD LTD CLIENT ACCOUNT
Adults Services,Adult Social Care,Support with Memory and Cognition - adults (18-64),CLDS Longer Term Support Teams,Social Care - Direct Payments,20/05/2016,3654524,"2,989.97",DAVID HOWARD LTD CLIENT ACCOUNT
Adults Services,Adult Social Care,Support with Memory and Cognition - adults (18-64),CLDS Longer Term Support Teams,Social Care - Direct Payments,20/05/2016,3654525,771.43,DAVID HOWARD LTD CLIENT ACCOUNT
Adults Services,Adult Social Care,Support with Memory and Cognition - adults (18-64),CLDS Longer Term Support Teams,Social Care - Direct Payments,20/05/2016,3654534,713.27,DAVID HOWARD LTD CLIENT ACCOUNT
Adults Services,Adult Social Care,Support with Memory and Cognition - adults (18-64),CLDS Longer Term Support Teams,Social Care - Direct Payments,20/05/2016,3654571,589.07,DAVID HOWARD LTD CLIENT ACCOUNT
Adults Services,Adult Social Care,Support with Memory and Cognition - adults (18-64),CLDS Longer Term Support Teams,Social Care - Direct Payments,20/05/2016,3654572,622.03,DAVID HOWARD LTD CLIENT ACCOUNT
Adults Services,Adult Social Care,Support with Memory and Cognition - adults (18-64),CLDS Longer Term Support Teams,Social Care - Direct Payments,20/05/2016,3654760,684.38,DAVID HOWARD LTD CLIENT ACCOUNT
Adults Services,Adult Social Care,Support with Memory and Cognition - adults (18-64),CLDS Longer Term Support Teams,Social Care - Direct Payments,20/05/2016,3654790,"1,091.10",DAVID HOWARD LTD CLIENT ACCOUNT
Adults Services,Adult Social Care,Physical Support - adults (18-64),"Failed Care Package Conversion		",Social Care - Others,20/05/2016,3654240,532.80,DAVID HOWARD LTD CLIENT ACCOUNT
Adults Services,Adult Social Care,Physical Support - adults (18-64),"Failed Care Package Conversion		",Social Care - Others,20/05/2016,3654336,"3,626.53",DAVID HOWARD LTD CLIENT ACCOUNT
Adults Services,Adult Social Care,Physical Support - adults (18-64),"Failed Care Package Conversion		",Social Care - Others,20/05/2016,3654343,510.00,DAVID HOWARD LTD CLIENT ACCOUNT
Adults Services,Adult Social Care,Physical Support - adults (18-64),"Failed Care Package Conversion		",Social Care - Others,20/05/2016,3654382,"1,222.50",DAVID HOWARD LTD CLIENT ACCOUNT
Adults Services,Adult Social Care,Physical Support - adults (18-64),"Failed Care Package Conversion		",Social Care - Others,20/05/2016,3654384,873.25,DAVID HOWARD LTD CLIENT ACCOUNT
Adults Services,Adult Social Care,Physical Support - adults (18-64),"Failed Care Package Conversion		",Social Care - Others,20/05/2016,3654417,622.20,DAVID HOWARD LTD CLIENT ACCOUNT
Adults Services,Adult Social Care,Physical Support - adults (18-64),"Failed Care Package Conversion		",Social Care - Others,20/05/2016,3654443,514.28,DAVID HOWARD LTD CLIENT ACCOUNT
Adults Services,Adult Social Care,Physical Support - adults (18-64),"Failed Care Package Conversion		",Social Care - Others,20/05/2016,3654467,"1,327.63",DAVID HOWARD LTD CLIENT ACCOUNT
Adults Services,Adult Social Care,Physical Support - adults (18-64),"Failed Care Package Conversion		",Social Care - Others,20/05/2016,3654505,"6,534.08",DAVID HOWARD LTD CLIENT ACCOUNT
Adults Services,Adult Social Care,Physical Support - adults (18-64),"Failed Care Package Conversion		",Social Care - Others,20/05/2016,3654519,789.98,DAVID HOWARD LTD CLIENT ACCOUNT
Adults Services,Adult Social Care,Physical Support - adults (18-64),"Failed Care Package Conversion		",Social Care - Others,20/05/2016,3654527,"1,490.45",DAVID HOWARD LTD CLIENT ACCOUNT
Adults Services,Adult Social Care,Physical Support - adults (18-64),"Failed Care Package Conversion		",Social Care - Others,20/05/2016,3654529,"1,681.03",DAVID HOWARD LTD CLIENT ACCOUNT
Adults Services,Adult Social Care,Physical Support - adults (18-64),"Failed Care Package Conversion		",Social Care - Others,20/05/2016,3654567,502.97,DAVID HOWARD LTD CLIENT ACCOUNT
Adults Services,Adult Social Care,Physical Support - adults (18-64),"Failed Care Package Conversion		",Social Care - Others,20/05/2016,3654575,"2,430.81",DAVID HOWARD LTD CLIENT ACCOUNT
Adults Services,Adult Social Care,Physical Support - adults (18-64),"Failed Care Package Conversion		",Social Care - Others,20/05/2016,3654616,701.75,DAVID HOWARD LTD CLIENT ACCOUNT
Adults Services,Adult Social Care,Physical Support - adults (18-64),"Failed Care Package Conversion		",Social Care - Others,20/05/2016,3654660,"2,080.15",DAVID HOWARD LTD CLIENT ACCOUNT
Adults Services,Adult Social Care,Physical Support - adults (18-64),"Failed Care Package Conversion		",Social Care - Others,20/05/2016,3654698,726.38,DAVID HOWARD LTD CLIENT ACCOUNT
Adults Services,Adult Social Care,Physical Support - adults (18-64),"Failed Care Package Conversion		",Social Care - Others,20/05/2016,3654757,"1,026.55",DAVID HOWARD LTD CLIENT ACCOUNT
Adults Services,Adult Social Care,Physical Support - adults (18-64),"Failed Care Package Conversion		",Social Care - Others,20/05/2016,3654762,867.73,DAVID HOWARD LTD CLIENT ACCOUNT
Adults Services,Adult Social Care,Support with Memory and Cognition - adults (18-64),CLDS Longer Term Support Teams,Social Care - Homecare,20/05/2016,3655036,799.54,East Thames Group Ltd
Adults Services,Adult Social Care,Support with Memory and Cognition - adults (18-64),CLDS Longer Term Support Teams,Social Care - Residential Care,20/05/2016,3655104,"7,714.29",ELEANOR NURSING CARE LTD
Adults Services,Adult Social Care,Support with Memory and Cognition - adults (18-64),CLDS Longer Term Support Teams,Social Care - Direct Payments,20/05/2016,3654225,"2,314.12",Excelcare (Home Care Division) LTD
Adults Services,Adult Social Care,Physical Support - adults (18-64),Public Health � Healthy Young Adults,Payments to Private Contractors - Other Contractors,20/05/2016,3647534,"1,239.00",FLORIDA PHARMACY
Adults Services,Adult Social Care,Physical Support - adults (18-64),Public Health � Healthy Middle Age & Older People.,Payments to Private Contractors - Other Contractors,20/05/2016,3651867,568.12,FLORIDA PHARMACY
Adults Services,Adult Social Care,Support with Memory and Cognition - adults (18-64),Generic Care Packages SE Team -PS,Social Care - Homecare,20/05/2016,3654152,"1,544.05",FOCUS CARE LINK LTD
Adults Services,Adult Social Care,Support with Memory and Cognition - adults (18-64),Generic Care Packages SE Team -PS,Social Care - Homecare,20/05/2016,3654153,588.28,FOCUS CARE LINK LTD
Adults Services,Adult Social Care,Physical Support - adults (18-64),"Failed Care Package Conversion		",Social Care - Mental Health,20/05/2016,3655024,765.50,HEALTH & FITNESS GROUP
Adults Services,Adult Social Care,Physical Support - adults (18-64),"Failed Care Package Conversion		",Social Care - Mental Health,20/05/2016,3655025,"1,184.75",HUSH
Adults Services,Adult Social Care,Support with Memory and Cognition - adults (18-64),CLDS Longer Term Support Teams,Social Care - Residential Care,20/05/2016,3654030,"12,532.06",Kisimul Group Ltd
Adults Services,Adult Social Care,Physical Support - adults (18-64),Mental Health Commissioning,Social Care - Supported Accommodation,20/05/2016,3643538,753.72,Look Ahead Care & Support Ltd
Adults Services,Adult Social Care,Physical Support - adults (18-64),Mental Health Commissioning,Social Care - Supported Accommodation,20/05/2016,3643539,753.72,Look Ahead Care & Support Ltd
Adults Services,Adult Social Care,Physical Support - adults (18-64),Mental Health Commissioning,Social Care - Supported Accommodation,20/05/2016,3643540,753.72,Look Ahead Care & Support Ltd
Adults Services,Adult Social Care,Physical Support - adults (18-64),Mental Health Commissioning,Social Care - Supported Accommodation,20/05/2016,3643541,753.72,Look Ahead Care & Support Ltd
Adults Services,Adult Social Care,Physical Support - adults (18-64),"Failed Care Package Conversion		",Social Care - Others,20/05/2016,3654093,"1,275.75",Mantra Recruitment
Adults Services,Adult Social Care,Support with Memory and Cognition - adults (18-64),CLDS Longer Term Support Teams,Social Care - Homecare,20/05/2016,3654121,"1,743.33",MEARS CARE LTD
Adults Services,Adult Social Care,Support with Memory and Cognition - adults (18-64),CLDS Longer Term Support Teams,Social Care - Homecare,20/05/2016,3654122,"2,599.80",MEARS CARE LTD
Adults Services,Adult Social Care,Support with Memory and Cognition - adults (18-64),CLDS Longer Term Support Teams,Social Care - Homecare,20/05/2016,3654125,"1,743.33",MEARS CARE LTD
Adults Services,Adult Social Care,Support with Memory and Cognition - adults (18-64),CLDS Longer Term Support Teams,Social Care - Homecare,20/05/2016,3654126,"2,599.80",MEARS CARE LTD
Adults Services,Adult Social Care,Support with Memory and Cognition - adults (18-64),CLDS Longer Term Support Teams,Social Care - Homecare,20/05/2016,3654084,672.00,Medstar Domiciliary Care Servies Ltd
Adults Services,Adult Social Care,Support with Memory and Cognition - adults (18-64),Generic Care Packages NW Team -PS,Social Care - Homecare,20/05/2016,3655003,554.31,MiHOMECARE LIMITED
Adults Services,Adult Social Care,Support with Memory and Cognition - adults (18-64),Generic Care Packages NW Team -PS,Social Care - Homecare,20/05/2016,3655007,916.64,MiHOMECARE LIMITED
Adults Services,Adult Social Care,Physical Support - adults (18-64),Public Health � Healthy Middle Age & Older People.,Payments to Private Contractors - Other Contractors,20/05/2016,3651864,"2,309.78",MRS T PIANOV T/A MAYORS CHEMIST
Adults Services,Adult Social Care,Physical Support - adults (18-64),Learning Dis Commissioning,Social Care - Day Care,20/05/2016,3644418,"2,125.29",NAS Services Ltd
Adults Services,Adult Social Care,Support with Memory and Cognition - adults (18-64),Cmht Iod / Poplar South,Social Care - Supported Living,20/05/2016,3654990,"1,967.86",NEXT STEP SUPPORT LIMITED
Adults Services,Adult Social Care,Physical Support - adults (18-64),"Failed Care Package Conversion		",Social Care - Others,20/05/2016,3654806,849.53,Oasis Care & Training Agency
Adults Services,Adult Social Care,Physical Support - adults (18-64),"Failed Care Package Conversion		",Social Care - Others,20/05/2016,3654809,849.53,Oasis Care & Training Agency
Adults Services,Adult Social Care,Physical Support - adults (18-64),"Failed Care Package Conversion		",Social Care - Homecare,20/05/2016,3654805,518.18,Oasis Care & Training Agency
Adults Services,Adult Social Care,Physical Support - adults (18-64),"Failed Care Package Conversion		",Social Care - Homecare,20/05/2016,3654808,539.33,Oasis Care & Training Agency
Adults Services,Adult Social Care,Physical Support - adults (18-64),"Failed Care Package Conversion		",Social Care - Mental Health,20/05/2016,3655026,"1,058.75",Ocean Somali Community Association
Adults Services,Adult Social Care,Physical Support - adults (18-64),"Failed Care Package Conversion		",Social Care - Others,20/05/2016,3654167,"1,750.00",OLD FRIEND HOTEL
Adults Services,Adult Social Care,Support with Memory and Cognition - adults (18-64),Cmht Bethnal Green,Social Care - Direct Payments,20/05/2016,3654501,538.88,PayPacket Ltd
Adults Services,Adult Social Care,Physical Support - adults (18-64),"Failed Care Package Conversion		",Social Care - Mental Health,20/05/2016,3655027,591.50,PERFORMING ARTS AND CINEMA CLUB
Adults Services,Adult Social Care,Support with Memory and Cognition - adults (18-64),Generic Care Packages NE Team -PS,Social Care - Homecare,20/05/2016,3654982,665.46,REDSPOT HOMECARE (CONTRACTS) LTD
Adults Services,Adult Social Care,Support with Memory and Cognition - adults (18-64),Generic Care Packages SW Team -SS,Social Care - Homecare,20/05/2016,3654960,565.45,REDSPOT HOMECARE (CONTRACTS) LTD
Adults Services,Adult Social Care,Support with Memory and Cognition - adults (18-64),Generic Care Packages SW Team -SS,Social Care - Homecare,20/05/2016,3654961,652.31,REDSPOT HOMECARE (CONTRACTS) LTD
Adults Services,Adult Social Care,Support with Memory and Cognition - adults (18-64),Generic Care Packages SW Team -SS,Social Care - Homecare,20/05/2016,3654962,665.46,REDSPOT HOMECARE (CONTRACTS) LTD
Adults Services,Adult Social Care,Support with Memory and Cognition - adults (18-64),Generic Care Packages SW Team -SS,Social Care - Homecare,20/05/2016,3654973,"1,081.06",REDSPOT HOMECARE (CONTRACTS) LTD
Adults Services,Adult Social Care,Support with Memory and Cognition - adults (18-64),Generic Care Packages SW Team -SS,Social Care - Homecare,20/05/2016,3654987,614.91,REDSPOT HOMECARE (CONTRACTS) LTD
Adults Services,Adult Social Care,Physical Support - adults (18-64),"Failed Care Package Conversion		",Social Care - Others,20/05/2016,3654965,855.59,REDSPOT HOMECARE (CONTRACTS) LTD
Adults Services,Adult Social Care,Physical Support - adults (18-64),"Failed Care Package Conversion		",Social Care - Others,20/05/2016,3654975,911.20,REDSPOT HOMECARE (CONTRACTS) LTD
Adults Services,Adult Social Care,Physical Support - adults (18-64),"Failed Care Package Conversion		",Social Care - Mental Health,20/05/2016,3654033,"34,500.00",Rethink Mental Illness
Adults Services,Adult Social Care,Support with Memory and Cognition - adults (18-64),Generic Care Packages NE Team -PS,Social Care - Homecare,20/05/2016,3655080,531.96,SANCTUARY HOME CARE LIMITED
Adults Services,Adult Social Care,Support with Memory and Cognition - adults (18-64),Generic Care Packages NE Team -PS,Social Care - Homecare,20/05/2016,3655082,556.14,SANCTUARY HOME CARE LIMITED
Adults Services,Adult Social Care,Support with Memory and Cognition - adults (18-64),Generic Care Packages NE Team-SMC,Social Care - Home Care (Short Term),20/05/2016,3655092,515.84,SANCTUARY HOME CARE LIMITED
Adults Services,Adult Social Care,Support with Memory and Cognition - adults (18-64),Generic Care Packages NW Team -PS,Social Care - Homecare,20/05/2016,3655044,"1,217.06",SANCTUARY HOME CARE LIMITED
Adults Services,Adult Social Care,Support with Memory and Cognition - adults (18-64),Generic Care Packages NW Team -PS,Social Care - Home Care (Short Term),20/05/2016,3655060,588.38,SANCTUARY HOME CARE LIMITED
Adults Services,Adult Social Care,Support with Memory and Cognition - adults (18-64),Generic Care Packages SE Team -PS,Social Care - Homecare,20/05/2016,3655087,540.02,SANCTUARY HOME CARE LIMITED
Adults Services,Adult Social Care,Support with Memory and Cognition - adults (18-64),Generic Care Packages SW Team -SS,Social Care - Homecare,20/05/2016,3655075,705.25,SANCTUARY HOME CARE LIMITED
Adults Services,Adult Social Care,Support with Memory and Cognition - adults (18-64),Generic Care Packages SW Team -SS,Social Care - Homecare,20/05/2016,3655102,"1,805.44",SANCTUARY HOME CARE LIMITED
Adults Services,Adult Social Care,Support with Memory and Cognition - adults (18-64),Cmht Bethnal Green,Social Care - Homecare,20/05/2016,3655062,967.20,SANCTUARY HOME CARE LIMITED
Adults Services,Adult Social Care,Physical Support - adults (18-64),"Failed Care Package Conversion		",Social Care - Others,20/05/2016,3655065,"1,241.24",SANCTUARY HOME CARE LIMITED
Adults Services,Adult Social Care,Physical Support - adults (18-64),"Failed Care Package Conversion		",Social Care - Others,20/05/2016,3655085,507.78,SANCTUARY HOME CARE LIMITED
Adults Services,Adult Social Care,Support with Memory and Cognition - adults (18-64),Generic Care Packages NE Team -PS,Social Care - Homecare,20/05/2016,3654814,"1,637.25",SEVACARE UK LTD
Adults Services,Adult Social Care,Support with Memory and Cognition - adults (18-64),Generic Care Packages NE Team -PS,Social Care - Homecare,20/05/2016,3654823,"1,106.25",SEVACARE UK LTD
Adults Services,Adult Social Care,Support with Memory and Cognition - adults (18-64),Generic Care Packages NE Team -PS,Social Care - Homecare,20/05/2016,3654869,"1,652.00",SEVACARE UK LTD
Adults Services,Adult Social Care,Support with Memory and Cognition - adults (18-64),Generic Care Packages NE Team -PS,Social Care - Homecare,20/05/2016,3654898,"1,106.25",SEVACARE UK LTD
Adults Services,Adult Social Care,Support with Memory and Cognition - adults (18-64),Generic Care Packages NE Team -PS,Social Care - Home Care (Short Term),20/05/2016,3654813,958.75,SEVACARE UK LTD
Adults Services,Adult Social Care,Support with Memory and Cognition - adults (18-64),Generic Care Packages NE Team -PS,Social Care - Home Care (Short Term),20/05/2016,3654868,944.00,SEVACARE UK LTD
Adults Services,Adult Social Care,Support with Memory and Cognition - adults (18-64),Generic Care Packages NW Team -PS,Social Care - Homecare,20/05/2016,3654812,604.75,SEVACARE UK LTD
Adults Services,Adult Social Care,Support with Memory and Cognition - adults (18-64),Generic Care Packages NW Team -PS,Social Care - Homecare,20/05/2016,3654817,"1,135.75",SEVACARE UK LTD
Adults Services,Adult Social Care,Support with Memory and Cognition - adults (18-64),Generic Care Packages NW Team -PS,Social Care - Homecare,20/05/2016,3654839,516.25,SEVACARE UK LTD
Adults Services,Adult Social Care,Support with Memory and Cognition - adults (18-64),Generic Care Packages NW Team -PS,Social Care - Homecare,20/05/2016,3654859,604.75,SEVACARE UK LTD
Adults Services,Adult Social Care,Support with Memory and Cognition - adults (18-64),Generic Care Packages NW Team -PS,Social Care - Homecare,20/05/2016,3654882,"1,128.38",SEVACARE UK LTD
Adults Services,Adult Social Care,Support with Memory and Cognition - adults (18-64),Generic Care Packages NW Team -PS,Social Care - Homecare,20/05/2016,3654888,623.19,SEVACARE UK LTD
Adults Services,Adult Social Care,Support with Memory and Cognition - adults (18-64),Generic Care Packages NW Team -PS,Social Care - Homecare,20/05/2016,3654935,508.88,SEVACARE UK LTD
Adults Services,Adult Social Care,Support with Memory and Cognition - adults (18-64),Generic Care Packages NW Team -PS,Social Care - Home Care (Short Term),20/05/2016,3654829,590.00,SEVACARE UK LTD
Adults Services,Adult Social Care,Support with Memory and Cognition - adults (18-64),Generic Care Packages NW Team -PS,Social Care - Home Care (Short Term),20/05/2016,3654909,590.00,SEVACARE UK LTD
Adults Services,Adult Social Care,Support with Memory and Cognition - adults (18-64),Generic Care Packages SE Team -PS,Social Care - Homecare,20/05/2016,3654852,575.25,SEVACARE UK LTD
Adults Services,Adult Social Care,Support with Memory and Cognition - adults (18-64),Generic Care Packages SE Team -PS,Social Care - Homecare,20/05/2016,3654879,"1,135.75",SEVACARE UK LTD
Adults Services,Adult Social Care,Support with Memory and Cognition - adults (18-64),Generic Care Packages SE Team -PS,Social Care - Homecare,20/05/2016,3654894,"1,312.75",SEVACARE UK LTD
Adults Services,Adult Social Care,Support with Memory and Cognition - adults (18-64),Generic Care Packages SE Team -PS,Social Care - Homecare,20/05/2016,3654927,508.88,SEVACARE UK LTD
Adults Services,Adult Social Care,Support with Memory and Cognition - adults (18-64),Generic Care Packages SW Team -SS,Social Care - Homecare,20/05/2016,3654822,781.75,SEVACARE UK LTD
Adults Services,Adult Social Care,Support with Memory and Cognition - adults (18-64),Generic Care Packages SW Team -SS,Social Care - Homecare,20/05/2016,3654897,755.94,SEVACARE UK LTD
Adults Services,Adult Social Care,Support with Memory and Cognition - adults (18-64),Generic Care Packages SW Team -SS,Social Care - Homecare,20/05/2016,3654904,840.75,SEVACARE UK LTD
Adults Services,Adult Social Care,Support with Memory and Cognition - adults (18-64),Generic Care Packages SW Team -SS,Social Care - Homecare,20/05/2016,3654948,531.00,SEVACARE UK LTD
Adults Services,Adult Social Care,Support with Memory and Cognition - adults (18-64),Generic Care Packages SW Team -PS,Social Care - Homecare,20/05/2016,3654816,516.25,SEVACARE UK LTD
Adults Services,Adult Social Care,Physical Support - adults (18-64),"Failed Care Package Conversion		",Social Care - Others,20/05/2016,3654895,"1,747.88",SEVACARE UK LTD
Adults Services,Adult Social Care,Physical Support - adults (18-64),"Failed Care Package Conversion		",Social Care - Others,20/05/2016,3654941,"1,644.63",SEVACARE UK LTD
Adults Services,Adult Social Care,Support with Memory and Cognition - adults (18-64),Generic Care Packages NE Team -PS,Social Care - Homecare,20/05/2016,3655138,809.33,Soma Healthcare Ltd
Adults Services,Adult Social Care,Support with Memory and Cognition - adults (18-64),Generic Care Packages NE Team -PS,Social Care - Homecare,20/05/2016,3655145,"1,032.08",Soma Healthcare Ltd
Adults Services,Adult Social Care,Support with Memory and Cognition - adults (18-64),Generic Care Packages NE Team -PS,Social Care - Homecare,20/05/2016,3655166,556.88,Soma Healthcare Ltd
Adults Services,Adult Social Care,Support with Memory and Cognition - adults (18-64),Generic Care Packages NE Team -PS,Social Care - Homecare,20/05/2016,3655179,"1,737.45",Soma Healthcare Ltd
Adults Services,Adult Social Care,Support with Memory and Cognition - adults (18-64),Generic Care Packages NE Team -PS,Social Care - Homecare,20/05/2016,3655234,579.15,Soma Healthcare Ltd
Adults Services,Adult Social Care,Support with Memory and Cognition - adults (18-64),Generic Care Packages NE Team -PS,Social Care - Homecare,20/05/2016,3655246,705.38,Soma Healthcare Ltd
Adults Services,Adult Social Care,Support with Memory and Cognition - adults (18-64),Generic Care Packages NE Team -PS,Social Care - Homecare,20/05/2016,3655249,"1,106.33",Soma Healthcare Ltd
Adults Services,Adult Social Care,Support with Memory and Cognition - adults (18-64),Generic Care Packages NW Team -PS,Social Care - Homecare,20/05/2016,3655129,556.88,Soma Healthcare Ltd
Adults Services,Adult Social Care,Support with Memory and Cognition - adults (18-64),Generic Care Packages NW Team -PS,Social Care - Homecare,20/05/2016,3655132,"1,730.03",Soma Healthcare Ltd
Adults Services,Adult Social Care,Support with Memory and Cognition - adults (18-64),Generic Care Packages NW Team -PS,Social Care - Homecare,20/05/2016,3655202,579.15,Soma Healthcare Ltd
Adults Services,Adult Social Care,Support with Memory and Cognition - adults (18-64),Generic Care Packages NW Team -PS,Social Care - Homecare,20/05/2016,3655209,772.20,Soma Healthcare Ltd
Adults Services,Adult Social Care,Support with Memory and Cognition - adults (18-64),Generic Care Packages NW Team -PS,Social Care - Homecare,20/05/2016,3655248,"1,692.90",Soma Healthcare Ltd
Adults Services,Adult Social Care,Support with Memory and Cognition - adults (18-64),Generic Care Packages NW Team -PS,Social Care - Direct Payments,20/05/2016,3654606,671.62,Soma Healthcare Ltd
Adults Services,Adult Social Care,Support with Memory and Cognition - adults (18-64),Generic Care Packages NW Team -PS,Social Care - Home Care (Short Term),20/05/2016,3655199,"1,381.05",Soma Healthcare Ltd
Adults Services,Adult Social Care,Support with Memory and Cognition - adults (18-64),Generic Care Packages SE Team -PS,Social Care - Homecare,20/05/2016,3655112,"1,410.75",Soma Healthcare Ltd
Adults Services,Adult Social Care,Support with Memory and Cognition - adults (18-64),Generic Care Packages SE Team -PS,Social Care - Homecare,20/05/2016,3655114,564.30,Soma Healthcare Ltd
Adults Services,Adult Social Care,Support with Memory and Cognition - adults (18-64),Generic Care Packages SE Team -PS,Social Care - Homecare,20/05/2016,3655123,"2,420.55",Soma Healthcare Ltd
Adults Services,Adult Social Care,Support with Memory and Cognition - adults (18-64),Generic Care Packages SE Team -PS,Social Care - Homecare,20/05/2016,3655139,"1,750.73",Soma Healthcare Ltd
Adults Services,Adult Social Care,Support with Memory and Cognition - adults (18-64),Generic Care Packages SE Team -PS,Social Care - Homecare,20/05/2016,3655143,653.40,Soma Healthcare Ltd
Adults Services,Adult Social Care,Support with Memory and Cognition - adults (18-64),Generic Care Packages SE Team -PS,Social Care - Homecare,20/05/2016,3655191,523.46,Soma Healthcare Ltd
Adults Services,Adult Social Care,Support with Memory and Cognition - adults (18-64),Generic Care Packages SE Team -PS,Social Care - Homecare,20/05/2016,3655206,504.90,Soma Healthcare Ltd
Adults Services,Adult Social Care,Support with Memory and Cognition - adults (18-64),Generic Care Packages SE Team -PS,Social Care - Homecare,20/05/2016,3655231,"1,715.18",Soma Healthcare Ltd
Adults Services,Adult Social Care,Support with Memory and Cognition - adults (18-64),Generic Care Packages SE Team-SMC,Social Care - Homecare,20/05/2016,3655165,935.55,Soma Healthcare Ltd
Adults Services,Adult Social Care,Support with Memory and Cognition - adults (18-64),Generic Care Packages SE Team -SI,Social Care - Homecare,20/05/2016,3655144,564.30,Soma Healthcare Ltd
Adults Services,Adult Social Care,Support with Memory and Cognition - adults (18-64),Generic Care Packages SW Team -SS,Social Care - Homecare,20/05/2016,3655163,"1,143.45",Soma Healthcare Ltd
Adults Services,Adult Social Care,Support with Memory and Cognition - adults (18-64),Generic Care Packages SW Team -SS,Social Care - Homecare,20/05/2016,3655205,"1,663.20",Soma Healthcare Ltd
Adults Services,Adult Social Care,Support with Memory and Cognition - adults (18-64),Generic Care Packages SW Team -SS,Social Care - Homecare,20/05/2016,3655223,"1,143.45",Soma Healthcare Ltd
Adults Services,Adult Social Care,Support with Memory and Cognition - adults (18-64),Generic Care Packages SW Team -SS,Social Care - Homecare,20/05/2016,3655237,928.13,Soma Healthcare Ltd
Adults Services,Adult Social Care,Support with Memory and Cognition - adults (18-64),Generic Care Packages SW Team -SS,Social Care - Direct Payments,20/05/2016,3654221,-586.86,Soma Healthcare Ltd
Adults Services,Adult Social Care,Support with Memory and Cognition - adults (18-64),Cmht Iod / Poplar South,Social Care - Homecare,20/05/2016,3655213,564.30,Soma Healthcare Ltd
Adults Services,Adult Social Care,Support with Memory and Cognition - adults (18-64),CLDS Longer Term Support Teams,Social Care - Homecare,20/05/2016,3655142,608.85,Soma Healthcare Ltd
Adults Services,Adult Social Care,Support with Memory and Cognition - adults (18-64),CLDS Longer Term Support Teams,Social Care - Homecare,20/05/2016,3655200,861.30,Soma Healthcare Ltd
Adults Services,Adult Social Care,Physical Support - adults (18-64),"Failed Care Package Conversion		",Social Care - Others,20/05/2016,3655120,697.95,Soma Healthcare Ltd
Adults Services,Adult Social Care,Physical Support - adults (18-64),"Failed Care Package Conversion		",Social Care - Others,20/05/2016,3655136,519.75,Soma Healthcare Ltd
Adults Services,Adult Social Care,Physical Support - adults (18-64),"Failed Care Package Conversion		",Social Care - Others,20/05/2016,3655211,"1,978.76",Soma Healthcare Ltd
Adults Services,Adult Social Care,Physical Support - adults (18-64),"Failed Care Package Conversion		",Social Care - Others,20/05/2016,3655242,542.03,Soma Healthcare Ltd
Adults Services,Adult Social Care,Support with Memory and Cognition - adults (18-64),Generic Care Packages SW Team -SS,Social Care - Direct Payments,20/05/2016,3654224,"1,055.40",St Hilda's East Community Centre
Adults Services,Adult Social Care,Support with Memory and Cognition - adults (18-64),Generic Care Packages SE Team -PS,Social Care - Homecare,20/05/2016,3654086,"2,008.80",STAR NURSING & CARE SERVICES LTD
Adults Services,Adult Social Care,Physical Support - adults (18-64),Learning Dis Commissioning,Social Care - Residential Care,20/05/2016,3649779,"25,549.17",The Fircroft Trust
Adults Services,Adult Social Care,Support with Memory and Cognition - adults (18-64),Generic Care Packages NE Team -PS,Social Care - Nursing Care,20/05/2016,3655021,"3,000.00",TOPCARE LTD
Adults Services,Adult Social Care,Support with Memory and Cognition - adults (18-64),CLDS Longer Term Support Teams,Social Care - Day Care,20/05/2016,3654998,"1,466.96",Tower Project
Adults Services,Adult Social Care,Support with Memory and Cognition - adults (18-64),Cmht For Older People,Social Care - Nursing Care,20/05/2016,3654801,"18,226.86",TREES PARK (EAST HAM) LIMITED
Adults Services,Adult Social Care,Physical Support - adults (18-64),"Failed Care Package Conversion		",Social Care - Others,20/05/2016,3654801,"3,056.00",TREES PARK (EAST HAM) LIMITED
Adults Services,General Fund/Council Fund,Homelessness,Supporting People Services,Social Care - Direct Payments,20/05/2016,3654358,990.00,DAVID HOWARD LTD CLIENT ACCOUNT
Adults Services,No Service Specified,No Division Specified,Capital-Minor Works (SC),Building Works - Main Works,20/05/2016,3646436,"153,403.12",Poplar HARCA LTD
Adults Services,No Service Specified,No Division Specified,Capital-Minor Works (SC),Building Works - Main Works,20/05/2016,3635828,"8,128.79",Tower Hamlets Schools LTD
Adults Services,Public Health,Miscellaneous Public Health Services,Public Health Team - 3,Third Party Payments - Other Establishments,20/05/2016,3636950,"50,770.75",Homerton University Hospital Trust
Adults Services,Public Health,Miscellaneous Public Health Services,Public Health - Director,Third Party Payments - Other Establishments,20/05/2016,3653890,"20,000.00",Queen Mary University of London
Adults Services,Adult Social Care,Physical Support - adults (18-64),Older People Commissioning,Social Care - Homecare,23/05/2016,3649805,676.17,POSITIVE CARE LINK
Adults Services,Adult Social Care,Physical Support - adults (18-64),Learning Dis Commissioning,Social Care - Help to Live at Home,23/05/2016,3648777,"7,611.00",SPENCER & ARLINGTON LTD
Adults Services,Adult Social Care,Physical Support - adults (18-64),Learning Dis Commissioning,Social Care - Day Care,23/05/2016,3643373,918.00,THE GARWOOD FOUNDATION
Adults Services,Adult Social Care,Physical Support - adults (18-64),Mental Health Commissioning,Social Care - Prevention & Support,23/05/2016,3647883,"1,063.86",THE LONDON BOROUGH OF TOWER HAMLETS
Adults Services,Adult Social Care,Physical Support - adults (18-64),Learning Dis Commissioning,Social Care - Help to Live at Home,23/05/2016,3644421,"2,400.00",Transitions Living
Adults Services,Adult Social Care,Physical Support - adults (18-64),Learning Dis Commissioning,Social Care - Help to Live at Home,23/05/2016,3648782,"6,019.34",Transitions Living
Adults Services,No Service Specified,No Division Specified,Community Equipment Store,Services - Professional Fees - Environmental Services Fees,23/05/2016,3644865,955.04,RTS
Adults Services,Adult Social Care,Support with Memory and Cognition - adults (18-64),CLDS Longer Term Support Teams,Social Care - Residential Care,25/05/2016,3656749,"4,932.23",Redacted Section 40 FOI Act
Adults Services,Adult Social Care,Physical Support - adults (18-64),Public Health � Healthy Middle Age & Older People.,Third Party Payments - Voluntary Associations,25/05/2016,3655707,"5,000.00",Ability Bow
Adults Services,Adult Social Care,Support with Memory and Cognition - adults (18-64),Sight and Hearing Service,Social Care - Residential Care,25/05/2016,3656689,"4,257.36",ACTION ON HEARING LOSS
Adults Services,Adult Social Care,Support with Memory and Cognition - adults (18-64),Sight and Hearing Service,Social Care - Residential Care,25/05/2016,3656690,"4,100.90",ACTION ON HEARING LOSS
Adults Services,Adult Social Care,Physical Support - adults (18-64),"Failed Care Package Conversion		",Social Care - Old People-Supp Needs,25/05/2016,3657371,"19,689.25",AGE UK EAST LONDON
Adults Services,Adult Social Care,Support with Memory and Cognition - adults (18-64),CLDS Longer Term Support Teams,Social Care - Residential Care,25/05/2016,3656766,"9,133.75",AITCH CARE HOMES LONDON LTD
Adults Services,Adult Social Care,Support with Memory and Cognition - adults (18-64),CLDS Longer Term Support Teams,Social Care - Residential Care,25/05/2016,3656776,"8,570.44",AITCH CARE HOMES LONDON LTD
Adults Services,Adult Social Care,Support with Memory and Cognition - adults (18-64),Cmht Stepney / Wapping,Social Care - Residential Care,25/05/2016,3656876,"2,012.96",AK SUPPORTED HOUSING LTD
Adults Services,Adult Social Care,Support with Memory and Cognition - adults (18-64),CLDS Longer Term Support Teams,Social Care - Residential Care,25/05/2016,3656807,"1,638.57",ANGEL SUPPORT LIVING LTD
Adults Services,Adult Social Care,Support with Memory and Cognition - adults (18-64),CLDS Longer Term Support Teams,Social Care - Residential Care,25/05/2016,3656826,"3,270.32",ANGEL SUPPORT LIVING LTD
Adults Services,Adult Social Care,Support with Memory and Cognition - adults (18-64),CLDS Longer Term Support Teams,Social Care - Residential Care,25/05/2016,3657359,"4,500.00",APASENTH
Adults Services,Adult Social Care,Support with Memory and Cognition - adults (18-64),CLDS Longer Term Support Teams,Social Care - Residential Care,25/05/2016,3657360,"4,950.00",APASENTH
Adults Services,Adult Social Care,Support with Memory and Cognition - adults (18-64),CLDS Longer Term Support Teams,Social Care - Residential Care,25/05/2016,3657361,"4,950.00",APASENTH
Adults Services,Adult Social Care,Support with Memory and Cognition - adults (18-64),CLDS Longer Term Support Teams,Social Care - Residential Care,25/05/2016,3657362,"4,500.00",APASENTH
Adults Services,Adult Social Care,Support with Memory and Cognition - adults (18-64),CLDS Longer Term Support Teams,Social Care - Residential Care,25/05/2016,3657363,"3,625.20",APASENTH
Adults Services,Adult Social Care,Support with Memory and Cognition - adults (18-64),CLDS Longer Term Support Teams,Social Care - Day Care,25/05/2016,3657103,"1,144.92",APASENTH
Adults Services,Adult Social Care,Support with Memory and Cognition - adults (18-64),CLDS Longer Term Support Teams,Social Care - Day Care,25/05/2016,3657104,908.00,APASENTH
Adults Services,Adult Social Care,Support with Memory and Cognition - adults (18-64),CLDS Longer Term Support Teams,Social Care - Day Care,25/05/2016,3657105,"1,144.92",APASENTH
Adults Services,Adult Social Care,Support with Memory and Cognition - adults (18-64),CLDS Longer Term Support Teams,Social Care - Day Care,25/05/2016,3657107,"2,539.01",APASENTH
Adults Services,Adult Social Care,Support with Memory and Cognition - adults (18-64),CLDS Longer Term Support Teams,Social Care - Day Care,25/05/2016,3657109,"1,135.00",APASENTH
Adults Services,Adult Social Care,Support with Memory and Cognition - adults (18-64),CLDS Longer Term Support Teams,Social Care - Day Care,25/05/2016,3657110,"1,144.92",APASENTH
Adults Services,Adult Social Care,Support with Memory and Cognition - adults (18-64),CLDS Longer Term Support Teams,Social Care - Day Care,25/05/2016,3657111,"1,454.88",APASENTH
Adults Services,Adult Social Care,Support with Memory and Cognition - adults (18-64),CLDS Longer Term Support Teams,Social Care - Day Care,25/05/2016,3657112,654.24,APASENTH
Adults Services,Adult Social Care,Support with Memory and Cognition - adults (18-64),CLDS Longer Term Support Teams,Social Care - Day Care,25/05/2016,3657113,"1,284.14",APASENTH
Adults Services,Adult Social Care,Support with Memory and Cognition - adults (18-64),CLDS Longer Term Support Teams,Social Care - Day Care,25/05/2016,3657115,872.32,APASENTH
Adults Services,Adult Social Care,Support with Memory and Cognition - adults (18-64),CLDS Longer Term Support Teams,Social Care - Day Care,25/05/2016,3657116,"1,454.88",APASENTH
Adults Services,Adult Social Care,Support with Memory and Cognition - adults (18-64),CLDS Longer Term Support Teams,Social Care - Day Care,25/05/2016,3657118,831.36,APASENTH
Adults Services,Adult Social Care,Support with Memory and Cognition - adults (18-64),CLDS Longer Term Support Teams,Social Care - Day Care,25/05/2016,3657120,"1,144.92",APASENTH
Adults Services,Adult Social Care,Support with Memory and Cognition - adults (18-64),CLDS Longer Term Support Teams,Social Care - Day Care,25/05/2016,3657121,"1,454.88",APASENTH
Adults Services,Adult Social Care,Support with Memory and Cognition - adults (18-64),CLDS Longer Term Support Teams,Social Care - Day Care,25/05/2016,3657122,545.20,APASENTH
Adults Services,Adult Social Care,Support with Memory and Cognition - adults (18-64),CLDS Longer Term Support Teams,Social Care - Day Care,25/05/2016,3657123,"1,385.60",APASENTH
Adults Services,Adult Social Care,Support with Memory and Cognition - adults (18-64),CLDS Longer Term Support Teams,Social Care - Day Care,25/05/2016,3657124,"2,156.50",APASENTH
Adults Services,Adult Social Care,Support with Memory and Cognition - adults (18-64),CLDS Longer Term Support Teams,Social Care - Day Care,25/05/2016,3657125,654.24,APASENTH
Adults Services,Adult Social Care,Support with Memory and Cognition - adults (18-64),CLDS Longer Term Support Teams,Social Care - Day Care,25/05/2016,3657126,"1,144.92",APASENTH
Adults Services,Adult Social Care,Support with Memory and Cognition - adults (18-64),CLDS Longer Term Support Teams,Social Care - Day Care,25/05/2016,3657128,926.84,APASENTH
Adults Services,Adult Social Care,Support with Memory and Cognition - adults (18-64),CLDS Longer Term Support Teams,Social Care - Day Care,25/05/2016,3657129,817.80,APASENTH
Adults Services,Adult Social Care,Support with Memory and Cognition - adults (18-64),CLDS Longer Term Support Teams,Social Care - Day Care,25/05/2016,3657131,599.72,APASENTH
Adults Services,Adult Social Care,Support with Memory and Cognition - adults (18-64),CLDS Longer Term Support Teams,Social Care - Day Care,25/05/2016,3657132,"2,074.17",APASENTH
Adults Services,Adult Social Care,Support with Memory and Cognition - adults (18-64),CLDS Longer Term Support Teams,Social Care - Day Care,25/05/2016,3657133,"1,702.50",APASENTH
Adults Services,Adult Social Care,Support with Memory and Cognition - adults (18-64),CLDS Longer Term Support Teams,Social Care - Day Care,25/05/2016,3657134,"1,144.92",APASENTH
Adults Services,Adult Social Care,Support with Memory and Cognition - adults (18-64),CLDS Longer Term Support Teams,Social Care - Day Care,25/05/2016,3657136,"2,383.50",APASENTH
Adults Services,Adult Social Care,Support with Memory and Cognition - adults (18-64),CLDS Longer Term Support Teams,Social Care - Day Care,25/05/2016,3657137,"1,826.58",APASENTH
Adults Services,Adult Social Care,Support with Memory and Cognition - adults (18-64),CLDS Longer Term Support Teams,Social Care - Day Care,25/05/2016,3657140,"2,074.38",APASENTH
Adults Services,Adult Social Care,Support with Memory and Cognition - adults (18-64),CLDS Longer Term Support Teams,Social Care - Day Care,25/05/2016,3657141,981.36,APASENTH
Adults Services,Adult Social Care,Support with Memory and Cognition - adults (18-64),CLDS Longer Term Support Teams,Social Care - Day Care,25/05/2016,3657143,"1,454.88",APASENTH
Adults Services,Adult Social Care,Support with Memory and Cognition - adults (18-64),CLDS Longer Term Support Teams,Social Care - Day Care,25/05/2016,3657144,817.80,APASENTH
Adults Services,Adult Social Care,Support with Memory and Cognition - adults (18-64),CLDS Longer Term Support Teams,Social Care - Day Care,25/05/2016,3657145,763.28,APASENTH
Adults Services,Adult Social Care,Support with Memory and Cognition - adults (18-64),CLDS Longer Term Support Teams,Social Care - Day Care,25/05/2016,3657146,"1,090.40",APASENTH
Adults Services,Adult Social Care,Support with Memory and Cognition - adults (18-64),CLDS Longer Term Support Teams,Social Care - Day Care,25/05/2016,3657147,599.72,APASENTH
Adults Services,Adult Social Care,Support with Memory and Cognition - adults (18-64),CLDS Longer Term Support Teams,Social Care - Day Care,25/05/2016,3657148,"1,144.92",APASENTH
Adults Services,Adult Social Care,Support with Memory and Cognition - adults (18-64),CLDS Longer Term Support Teams,Social Care - Day Care,25/05/2016,3657150,"1,454.88",APASENTH
Adults Services,Adult Social Care,Support with Memory and Cognition - adults (18-64),CLDS Longer Term Support Teams,Social Care - Day Care,25/05/2016,3657151,654.24,APASENTH
Adults Services,Adult Social Care,Support with Memory and Cognition - adults (18-64),CLDS Longer Term Support Teams,Social Care - Day Care,25/05/2016,3657152,"1,362.36",APASENTH
Adults Services,Adult Social Care,Support with Memory and Cognition - adults (18-64),CLDS Longer Term Support Teams,Social Care - Day Care,25/05/2016,3657153,981.36,APASENTH
Adults Services,Adult Social Care,Support with Memory and Cognition - adults (18-64),CLDS Longer Term Support Teams,Social Care - Day Care,25/05/2016,3657154,"1,144.92",APASENTH
Adults Services,Adult Social Care,Support with Memory and Cognition - adults (18-64),CLDS Longer Term Support Teams,Social Care - Day Care,25/05/2016,3657155,926.84,APASENTH
Adults Services,Adult Social Care,Support with Memory and Cognition - adults (18-64),CLDS Longer Term Support Teams,Social Care - Day Care,25/05/2016,3657156,"1,454.88",APASENTH
Adults Services,Adult Social Care,Support with Memory and Cognition - adults (18-64),CLDS Longer Term Support Teams,Social Care - Day Care,25/05/2016,3657159,"1,021.68",APASENTH
Adults Services,Adult Social Care,Support with Memory and Cognition - adults (18-64),CLDS Longer Term Support Teams,Social Care - Day Care,25/05/2016,3657160,681.00,APASENTH
Adults Services,Adult Social Care,Support with Memory and Cognition - adults (18-64),"Generic Care Packages NW Team-LD				",Social Care - Day Care,25/05/2016,3657139,900.64,APASENTH
Adults Services,Adult Social Care,Support with Memory and Cognition - adults (18-64),Generic Care Packages NW Team -PS,Social Care - Residential Care,25/05/2016,3656916,"4,030.00",APPROACH LODGE LTD
Adults Services,Adult Social Care,Support with Memory and Cognition - adults (18-64),Cmht Bethnal Green,Social Care - Residential Care,25/05/2016,3656841,"4,030.00",APPROACH LODGE LTD
Adults Services,Adult Social Care,Support with Memory and Cognition - adults (18-64),Cmht Bethnal Green,Social Care - Residential Care,25/05/2016,3656848,"4,207.14",APPROACH LODGE LTD
Adults Services,Adult Social Care,Support with Memory and Cognition - adults (18-64),Cmht Bethnal Green,Social Care - Residential Care,25/05/2016,3656888,"4,030.00",APPROACH LODGE LTD
Adults Services,Adult Social Care,Support with Memory and Cognition - adults (18-64),Cmht Iod / Poplar South,Social Care - Residential Care,25/05/2016,3656838,"4,030.00",APPROACH LODGE LTD
Adults Services,Adult Social Care,Support with Memory and Cognition - adults (18-64),Cmht Iod / Poplar South,Social Care - Residential Care,25/05/2016,3656839,"4,030.00",APPROACH LODGE LTD
Adults Services,Adult Social Care,Support with Memory and Cognition - adults (18-64),CLDS Longer Term Support Teams,Social Care - Residential Care,25/05/2016,3656775,"6,217.32",ASHDENE HOUSE LIMITED
Adults Services,Adult Social Care,Support with Memory and Cognition - adults (18-64),CLDS Longer Term Support Teams,Social Care - Residential Care,25/05/2016,3656740,"5,455.20",ASHGATE HOUSE LTD
Adults Services,Adult Social Care,Support with Memory and Cognition - adults (18-64),CLDS Longer Term Support Teams,Social Care - Residential Care,25/05/2016,3656742,"5,513.17",ASHKING HOUSE LTD
Adults Services,Adult Social Care,Support with Memory and Cognition - adults (18-64),CLDS Longer Term Support Teams,Social Care - Residential Care,25/05/2016,3656743,"6,677.00",ASHKING HOUSE LTD
Adults Services,Adult Social Care,Support with Memory and Cognition - adults (18-64),Cmht Bow / Poplar North,Social Care - Residential Care,25/05/2016,3656836,"2,974.72",ASHLEY HEALTHCARE LTD
Adults Services,Adult Social Care,Support with Memory and Cognition - adults (18-64),Generic Care Packages NE Team -PS,Social Care - Residential Care,25/05/2016,3656716,"7,145.99",ASHTEAD HOUSE LTD
Adults Services,Adult Social Care,Support with Memory and Cognition - adults (18-64),Generic Care Packages SE Team -PS,Social Care - Nursing Care,25/05/2016,3656458,"12,404.17",Barron Kirk Quality Care Ltd
Adults Services,Adult Social Care,Support with Memory and Cognition - adults (18-64),CLDS Longer Term Support Teams,Social Care - Residential Care,25/05/2016,3656745,"3,409.11",BEECH LODGE
Adults Services,Adult Social Care,Support with Memory and Cognition - adults (18-64),CLDS Longer Term Support Teams,Social Care - Residential Care,25/05/2016,3656746,"5,481.24",BEECHWOOD RESIDENTIAL HOME
Adults Services,Adult Social Care,Support with Memory and Cognition - adults (18-64),Generic Care Packages SW Team -SS,Social Care - Homecare,25/05/2016,3656924,"1,148.67",Bluebird Care (Rother&Hastings)
Adults Services,Adult Social Care,Support with Memory and Cognition - adults (18-64),Generic Care Packages SW Team -SS,Social Care - Homecare,25/05/2016,3657077,"1,118.06",Bluebird Care (Rother&Hastings)
Adults Services,Adult Social Care,Support with Memory and Cognition - adults (18-64),CLDS Longer Term Support Teams,Social Care - Residential Care,25/05/2016,3656735,"8,480.05",BROOKDALE HEALTHCARE LTD
Adults Services,Adult Social Care,Support with Memory and Cognition - adults (18-64),CLDS Longer Term Support Teams,Social Care - Residential Care,25/05/2016,3656764,"8,945.71",BROOKDALE HEALTHCARE LTD
Adults Services,Adult Social Care,Support with Memory and Cognition - adults (18-64),Cmht Bow / Poplar North,Social Care - Residential Care,25/05/2016,3656852,"4,073.13",BUPA CARE HOMES
Adults Services,Adult Social Care,Support with Memory and Cognition - adults (18-64),Generic Care Packages NE Team -PS,Social Care - Residential Care,25/05/2016,3656687,"2,462.20",CAMBRIDGE NURSING HOME
Adults Services,Adult Social Care,Support with Memory and Cognition - adults (18-64),Cmht Bethnal Green,Social Care - Residential Care,25/05/2016,3656851,"3,270.28",CAMERON LODGE
Adults Services,Adult Social Care,Support with Memory and Cognition - adults (18-64),Cmht Bethnal Green,Social Care - Residential Care,25/05/2016,3656860,"3,899.98",CAMERON LODGE
Adults Services,Adult Social Care,Support with Memory and Cognition - adults (18-64),Generic Care Packages NE Team-SMC,Social Care - Residential Care,25/05/2016,3656885,"3,542.86",CARMEN LODGE
Adults Services,Adult Social Care,Support with Memory and Cognition - adults (18-64),Cmht Bethnal Green,Social Care - Residential Care,25/05/2016,3656897,"2,989.29",CARMEN LODGE
Adults Services,Adult Social Care,Support with Memory and Cognition - adults (18-64),Cmht Bethnal Green,Social Care - Residential Care,25/05/2016,3656898,"2,989.29",CARMEN LODGE
Adults Services,Adult Social Care,Support with Memory and Cognition - adults (18-64),Cmht Bow / Poplar North,Social Care - Residential Care,25/05/2016,3656906,"2,667.77",CARMEN LODGE
Adults Services,Adult Social Care,Support with Memory and Cognition - adults (18-64),Cmht Bow / Poplar North,Social Care - Residential Care,25/05/2016,3656917,"2,192.14",CARMEN LODGE
Adults Services,Adult Social Care,Support with Memory and Cognition - adults (18-64),Cmht Iod / Poplar South,Social Care - Residential Care,25/05/2016,3656901,"3,542.86",CARMEN LODGE
Adults Services,Adult Social Care,Support with Memory and Cognition - adults (18-64),Cmht Stepney / Wapping,Social Care - Residential Care,25/05/2016,3656843,"2,931.98",CARMEN LODGE
Adults Services,Adult Social Care,Support with Memory and Cognition - adults (18-64),Cmht Stepney / Wapping,Social Care - Residential Care,25/05/2016,3656849,"3,382.06",CARMEN LODGE
